Council Name,Date,TransNo,Amount � (Excl VAT),Supplier name,Supplier Category,Expense Area,Expense Type,Expense Code
London Borough of Sutton,31/10/2022,20035459,"15,383.00",31ten Consulting Ltd,FINANCIAL / INSURANCE INSTNS,Resources,Consultancy Services - Other,A44065
London Borough of Sutton,01/10/2022,50280434,"16,562.68",4D Care Ltd,SOCIAL SERVICES RESIDENTIAL,Peoples Services,Residential Care-Children,A56115
London Borough of Sutton,21/11/2022,20037182,"2,291.90",REDACTED - PERSONAL DATA,SUNDRY SUPPLIER - HOUSING,Environment Housing and Neighbourhoods,Rent Deposit Scheme,B32179
London Borough of Sutton,26/08/2022,20035083,502.95,A R G Europe Limited,CONSTRUCTION INDUSTRY,HRA,Payments to Contractors,C14000
London Borough of Sutton,12/08/2022,20035085,"5,341.18",A R G Europe Limited,CONSTRUCTION INDUSTRY,HRA,Payments to Contractors,C14000
London Borough of Sutton,24/08/2022,20035088,"1,866.44",A R G Europe Limited,CONSTRUCTION INDUSTRY,HRA,Payments to Contractors,C14000
London Borough of Sutton,03/08/2022,20035090,641.65,A R G Europe Limited,CONSTRUCTION INDUSTRY,HRA,Payments to Contractors,C14000
London Borough of Sutton,03/08/2022,20035091,"4,505.11",A R G Europe Limited,CONSTRUCTION INDUSTRY,HRA,Payments to Contractors,C14000
London Borough of Sutton,11/08/2022,20035092,"1,237.09",A R G Europe Limited,CONSTRUCTION INDUSTRY,HRA,Payments to Contractors,C14000
London Borough of Sutton,14/07/2022,20035094,"4,268.69",A R G Europe Limited,CONSTRUCTION INDUSTRY,HRA,Payments to Contractors,C14000
London Borough of Sutton,31/08/2022,20035124,"11,091.52",A R G Europe Limited,CONSTRUCTION INDUSTRY,HRA,Payments to Contractors,C14000
London Borough of Sutton,25/10/2022,50279210,"1,080.71",A R G Europe Limited,CONSTRUCTION INDUSTRY,HRA,Payments to Contractors,C14000
London Borough of Sutton,06/10/2022,50281601,481.22,A R G Europe Limited,CONSTRUCTION INDUSTRY,HRA,Payments to Contractors,C14000
London Borough of Sutton,09/11/2022,50281606,693.29,A R G Europe Limited,CONSTRUCTION INDUSTRY,HRA,Payments to Contractors,C14000
London Borough of Sutton,06/10/2022,50281607,"1,256.09",A R G Europe Limited,CONSTRUCTION INDUSTRY,HRA,Payments to Contractors,C14000
London Borough of Sutton,25/10/2022,50281608,"1,046.74",A R G Europe Limited,CONSTRUCTION INDUSTRY,HRA,Payments to Contractors,C14000
London Borough of Sutton,31/10/2022,50281609,931.17,A R G Europe Limited,CONSTRUCTION INDUSTRY,HRA,Payments to Contractors,C14000
London Borough of Sutton,17/11/2022,20036652,565,A T Sound Hire,OFFICE SERVICES,Resources,Equipment And Materials Purchase,A40000
London Borough of Sutton,17/11/2022,20036654,722,A T Sound Hire,OFFICE SERVICES,Resources,Equipment And Materials Purchase,A40000
London Borough of Sutton,05/10/2022,50280387,"30,070.00",A Wilderness Way Ltd,CHILDREN'S SERVICES - FOSTERING & ADOPTION SERVICES,Peoples Services,Residential Care-Children,A56115
London Borough of Sutton,25/11/2022,50286800,"4,036.76",Abbey Care Centre,SOCIAL SERVICES RESIDENTIAL,Peoples Services,Nursing Care - Ext Provider,A56025
London Borough of Sutton,25/11/2022,50286800,-836.76,Abbey Care Centre,SOCIAL SERVICES RESIDENTIAL,Peoples Services,Nursing Care - 3rd party top up payment,A56023
London Borough of Sutton,25/11/2022,50286845,-836.76,Abbey Care Centre,SOCIAL SERVICES RESIDENTIAL,Peoples Services,Nursing Care - 3rd party top up payment,A56023
London Borough of Sutton,25/11/2022,50286845,"3,821.24",Abbey Care Centre,SOCIAL SERVICES RESIDENTIAL,Peoples Services,Nursing Care Short Term,A56026
London Borough of Sutton,25/11/2022,50286886,"3,848.24",Abbey Care Centre,SOCIAL SERVICES RESIDENTIAL,Peoples Services,Nursing Care - Ext Provider,A56025
London Borough of Sutton,25/11/2022,50286886,-750.4,Abbey Care Centre,SOCIAL SERVICES RESIDENTIAL,Peoples Services,Nursing Care - 3rd party top up payment,A56023
London Borough of Sutton,25/11/2022,50287020,-750.4,Abbey Care Centre,SOCIAL SERVICES RESIDENTIAL,Peoples Services,Nursing Care - 3rd party top up payment,A56023
London Borough of Sutton,25/11/2022,50287020,"3,848.24",Abbey Care Centre,SOCIAL SERVICES RESIDENTIAL,Peoples Services,Nursing Care Short Term,A56026
London Borough of Sutton,25/11/2022,50287020,"-1,492.80",Abbey Care Centre,SOCIAL SERVICES RESIDENTIAL,Peoples Services,Nursing Care - 3rd party top up payment,A56023
London Borough of Sutton,25/11/2022,50287127,-750.4,Abbey Care Centre,SOCIAL SERVICES RESIDENTIAL,Peoples Services,Nursing Care - 3rd party top up payment,A56023
London Borough of Sutton,25/11/2022,50287127,"3,848.24",Abbey Care Centre,SOCIAL SERVICES RESIDENTIAL,Peoples Services,Nursing Care Short Term,A56026
London Borough of Sutton,08/11/2022,50277769,643.65,ABC Pre-School Beddington LLP,GRANTS & EX GRATIA PAYMENTS,Peoples Services,Payment - Nursery Funding,A51056
London Borough of Sutton,08/11/2022,50277826,"1,863.68",ABC Pre-School Beddington LLP,GRANTS & EX GRATIA PAYMENTS,Peoples Services,Payment - Nursery Funding,A51056
London Borough of Sutton,17/10/2022,20034342,"5,926.51",Absolute Care Services Ltd,SOCIAL SERVICES DAY CARE,Peoples Services,Homecare Core Services,A56020
London Borough of Sutton,24/10/2022,20034791,"5,715.81",Absolute Care Services Ltd,SOCIAL SERVICES DAY CARE,Peoples Services,Homecare Core Services,A56020
London Borough of Sutton,24/10/2022,20034793,"5,926.51",Absolute Care Services Ltd,SOCIAL SERVICES DAY CARE,Peoples Services,Homecare Core Services,A56020
London Borough of Sutton,31/10/2022,20035416,"6,794.87",Absolute Care Services Ltd,SOCIAL SERVICES DAY CARE,Peoples Services,Homecare Core Services,A56020
London Borough of Sutton,31/10/2022,20035417,"5,926.51",Absolute Care Services Ltd,SOCIAL SERVICES DAY CARE,Peoples Services,Homecare Core Services,A56020
London Borough of Sutton,31/10/2022,20035418,"5,715.81",Absolute Care Services Ltd,SOCIAL SERVICES DAY CARE,Peoples Services,Homecare Core Services,A56020
London Borough of Sutton,07/11/2022,20035779,"5,926.51",Absolute Care Services Ltd,SOCIAL SERVICES DAY CARE,Peoples Services,Homecare Core Services,A56020
London Borough of Sutton,07/11/2022,20035780,"6,794.87",Absolute Care Services Ltd,SOCIAL SERVICES DAY CARE,Peoples Services,Homecare Core Services,A56020
London Borough of Sutton,07/11/2022,20035781,"5,715.81",Absolute Care Services Ltd,SOCIAL SERVICES DAY CARE,Peoples Services,Homecare Core Services,A56020
London Borough of Sutton,14/11/2022,20036095,"5,715.81",Absolute Care Services Ltd,SOCIAL SERVICES DAY CARE,Peoples Services,Homecare Core Services,A56020
London Borough of Sutton,14/11/2022,20036103,"5,926.51",Absolute Care Services Ltd,SOCIAL SERVICES DAY CARE,Peoples Services,Homecare Core Services,A56020
London Borough of Sutton,14/11/2022,20036129,"6,794.87",Absolute Care Services Ltd,SOCIAL SERVICES DAY CARE,Peoples Services,Homecare Core Services,A56020
London Borough of Sutton,23/10/2022,50278487,896.35,Absolute Care Services Ltd,SOCIAL SERVICES DAY CARE,Peoples Services,Home Care Services,A56019
London Borough of Sutton,23/10/2022,50278487,118.2,Absolute Care Services Ltd,SOCIAL SERVICES DAY CARE,Peoples Services,Home Care Services,A56019
London Borough of Sutton,23/10/2022,50278512,772.55,Absolute Care Services Ltd,SOCIAL SERVICES DAY CARE,Peoples Services,Home Care Services,A56019
London Borough of Sutton,23/10/2022,50278512,45,Absolute Care Services Ltd,SOCIAL SERVICES DAY CARE,Peoples Services,Home Care Services,A56019
London Borough of Sutton,23/10/2022,50278524,546.68,Absolute Care Services Ltd,SOCIAL SERVICES DAY CARE,Peoples Services,Home Care Services,A56019
London Borough of Sutton,23/10/2022,50278528,689.5,Absolute Care Services Ltd,SOCIAL SERVICES DAY CARE,Peoples Services,Home Care Services,A56019
London Borough of Sutton,23/10/2022,50278529,16.08,Absolute Care Services Ltd,SOCIAL SERVICES DAY CARE,Peoples Services,Home Care Services,A56019
London Borough of Sutton,23/10/2022,50278529,506.52,Absolute Care Services Ltd,SOCIAL SERVICES DAY CARE,Peoples Services,Home Care Services,A56019
London Borough of Sutton,30/10/2022,50278530,16.08,Absolute Care Services Ltd,SOCIAL SERVICES DAY CARE,Peoples Services,Home Care Services,A56019
London Borough of Sutton,30/10/2022,50278530,506.52,Absolute Care Services Ltd,SOCIAL SERVICES DAY CARE,Peoples Services,Home Care Services,A56019
London Borough of Sutton,23/10/2022,50278549,620.55,Absolute Care Services Ltd,SOCIAL SERVICES DAY CARE,Peoples Services,Home Care Services,A56019
London Borough of Sutton,23/10/2022,50278549,39.4,Absolute Care Services Ltd,SOCIAL SERVICES DAY CARE,Peoples Services,Home Care Services,A56019
London Borough of Sutton,23/10/2022,50278618,620.55,Absolute Care Services Ltd,SOCIAL SERVICES DAY CARE,Peoples Services,Home Care Services,A56019
London Borough of Sutton,23/10/2022,50279873,522.6,Absolute Care Services Ltd,SOCIAL SERVICES DAY CARE,Peoples Services,Home Care Services,A56019
London Borough of Sutton,30/10/2022,50279874,522.6,Absolute Care Services Ltd,SOCIAL SERVICES DAY CARE,Peoples Services,Home Care Services,A56019
London Borough of Sutton,23/10/2022,50279931,431.07,Absolute Care Services Ltd,SOCIAL SERVICES DAY CARE,Peoples Services,Home Care Services,A56019
London Borough of Sutton,23/10/2022,50279931,99.57,Absolute Care Services Ltd,SOCIAL SERVICES DAY CARE,Peoples Services,Home Care Services,A56019
London Borough of Sutton,30/10/2022,50279932,431.07,Absolute Care Services Ltd,SOCIAL SERVICES DAY CARE,Peoples Services,Home Care Services,A56019
London Borough of Sutton,30/10/2022,50279932,99.57,Absolute Care Services Ltd,SOCIAL SERVICES DAY CARE,Peoples Services,Home Care Services,A56019
London Borough of Sutton,30/10/2022,50279943,620.63,Absolute Care Services Ltd,SOCIAL SERVICES DAY CARE,Peoples Services,Home Care Services,A56019
London Borough of Sutton,30/10/2022,50279943,39.4,Absolute Care Services Ltd,SOCIAL SERVICES DAY CARE,Peoples Services,Home Care Services,A56019
London Borough of Sutton,30/10/2022,50279945,896.57,Absolute Care Services Ltd,SOCIAL SERVICES DAY CARE,Peoples Services,Home Care Services,A56019
London Borough of Sutton,30/10/2022,50279945,118.2,Absolute Care Services Ltd,SOCIAL SERVICES DAY CARE,Peoples Services,Home Care Services,A56019
London Borough of Sutton,30/10/2022,50279950,772.61,Absolute Care Services Ltd,SOCIAL SERVICES DAY CARE,Peoples Services,Home Care Services,A56019
London Borough of Sutton,30/10/2022,50279950,45.01,Absolute Care Services Ltd,SOCIAL SERVICES DAY CARE,Peoples Services,Home Care Services,A56019
London Borough of Sutton,30/10/2022,50279958,546.79,Absolute Care Services Ltd,SOCIAL SERVICES DAY CARE,Peoples Services,Home Care Services,A56019
London Borough of Sutton,30/10/2022,50279960,689.5,Absolute Care Services Ltd,SOCIAL SERVICES DAY CARE,Peoples Services,Home Care Services,A56019
London Borough of Sutton,30/10/2022,50279965,620.62,Absolute Care Services Ltd,SOCIAL SERVICES DAY CARE,Peoples Services,Home Care Services,A56019
London Borough of Sutton,30/10/2022,50281293,620.62,Absolute Care Services Ltd,SOCIAL SERVICES DAY CARE,Peoples Services,Home Care Services,A56019
London Borough of Sutton,23/10/2022,50281306,526.49,Absolute Care Services Ltd,SOCIAL SERVICES DAY CARE,Peoples Services,Home Care Services,A56019
London Borough of Sutton,23/10/2022,50281306,105.82,Absolute Care Services Ltd,SOCIAL SERVICES DAY CARE,Peoples Services,Home Care Services,A56019
London Borough of Sutton,23/10/2022,50281306,75.21,Absolute Care Services Ltd,SOCIAL SERVICES DAY CARE,Peoples Services,Home Care Services,A56019
London Borough of Sutton,30/10/2022,50281307,526.49,Absolute Care Services Ltd,SOCIAL SERVICES DAY CARE,Peoples Services,Home Care Services,A56019
London Borough of Sutton,30/10/2022,50281307,105.82,Absolute Care Services Ltd,SOCIAL SERVICES DAY CARE,Peoples Services,Home Care Services,A56019
London Borough of Sutton,30/10/2022,50281307,75.21,Absolute Care Services Ltd,SOCIAL SERVICES DAY CARE,Peoples Services,Home Care Services,A56019
London Borough of Sutton,23/10/2022,50281308,409.11,Absolute Care Services Ltd,SOCIAL SERVICES DAY CARE,Peoples Services,Home Care Services,A56019
London Borough of Sutton,23/10/2022,50281308,100.5,Absolute Care Services Ltd,SOCIAL SERVICES DAY CARE,Peoples Services,Home Care Services,A56019
London Borough of Sutton,23/10/2022,50281308,12.99,Absolute Care Services Ltd,SOCIAL SERVICES DAY CARE,Peoples Services,Home Care Services,A56019
London Borough of Sutton,30/10/2022,50281309,409.11,Absolute Care Services Ltd,SOCIAL SERVICES DAY CARE,Peoples Services,Home Care Services,A56019
London Borough of Sutton,30/10/2022,50281309,100.5,Absolute Care Services Ltd,SOCIAL SERVICES DAY CARE,Peoples Services,Home Care Services,A56019
London Borough of Sutton,30/10/2022,50281309,12.99,Absolute Care Services Ltd,SOCIAL SERVICES DAY CARE,Peoples Services,Home Care Services,A56019
London Borough of Sutton,13/11/2022,50283021,409.11,Absolute Care Services Ltd,SOCIAL SERVICES DAY CARE,Peoples Services,Home Care Services,A56019
London Borough of Sutton,13/11/2022,50283021,100.5,Absolute Care Services Ltd,SOCIAL SERVICES DAY CARE,Peoples Services,Home Care Services,A56019
London Borough of Sutton,13/11/2022,50283021,12.99,Absolute Care Services Ltd,SOCIAL SERVICES DAY CARE,Peoples Services,Home Care Services,A56019
London Borough of Sutton,13/11/2022,50283026,538.68,Absolute Care Services Ltd,SOCIAL SERVICES DAY CARE,Peoples Services,Home Care Services,A56019
London Borough of Sutton,13/11/2022,50283032,437.6,Absolute Care Services Ltd,SOCIAL SERVICES DAY CARE,Peoples Services,Home Care Services,A56019
London Borough of Sutton,13/11/2022,50283032,101.08,Absolute Care Services Ltd,SOCIAL SERVICES DAY CARE,Peoples Services,Home Care Services,A56019
London Borough of Sutton,06/11/2022,50284255,16.08,Absolute Care Services Ltd,SOCIAL SERVICES DAY CARE,Peoples Services,Home Care Services,A56019
London Borough of Sutton,06/11/2022,50284255,506.52,Absolute Care Services Ltd,SOCIAL SERVICES DAY CARE,Peoples Services,Home Care Services,A56019
London Borough of Sutton,06/11/2022,50284478,772.61,Absolute Care Services Ltd,SOCIAL SERVICES DAY CARE,Peoples Services,Home Care Services,A56019
London Borough of Sutton,06/11/2022,50284478,45.01,Absolute Care Services Ltd,SOCIAL SERVICES DAY CARE,Peoples Services,Home Care Services,A56019
London Borough of Sutton,06/11/2022,50284485,620.62,Absolute Care Services Ltd,SOCIAL SERVICES DAY CARE,Peoples Services,Home Care Services,A56019
London Borough of Sutton,06/11/2022,50284485,39.4,Absolute Care Services Ltd,SOCIAL SERVICES DAY CARE,Peoples Services,Home Care Services,A56019
London Borough of Sutton,06/11/2022,50284492,620.62,Absolute Care Services Ltd,SOCIAL SERVICES DAY CARE,Peoples Services,Home Care Services,A56019
London Borough of Sutton,06/11/2022,50284505,620.62,Absolute Care Services Ltd,SOCIAL SERVICES DAY CARE,Peoples Services,Home Care Services,A56019
London Borough of Sutton,06/11/2022,50284512,896.56,Absolute Care Services Ltd,SOCIAL SERVICES DAY CARE,Peoples Services,Home Care Services,A56019
London Borough of Sutton,06/11/2022,50284512,118.2,Absolute Care Services Ltd,SOCIAL SERVICES DAY CARE,Peoples Services,Home Care Services,A56019
London Borough of Sutton,06/11/2022,50284514,546.79,Absolute Care Services Ltd,SOCIAL SERVICES DAY CARE,Peoples Services,Home Care Services,A56019
London Borough of Sutton,06/11/2022,50284516,684.58,Absolute Care Services Ltd,SOCIAL SERVICES DAY CARE,Peoples Services,Home Care Services,A56019
London Borough of Sutton,22/11/2022,20037208,"2,000.00",Abstract 2013 UK Ltd,SUNDRY SUPPLIER - FINANCE,Resources,Members Expenses - Other,A46505
London Borough of Sutton,02/11/2022,20035433,"12,637.67",Access UK Limited ,TAXI AND COACH HIRE,Peoples Services,Childrens Social Care Transport,A32009
London Borough of Sutton,09/11/2022,20036022,"125,025.58",Access UK Limited ,TAXI AND COACH HIRE,Peoples Services,Childrens Social Care Transport,A32009
London Borough of Sutton,16/11/2022,20036427,"177,950.45",Access UK Limited ,TAXI AND COACH HIRE,Peoples Services,Childrens Social Care Transport,A32009
London Borough of Sutton,23/11/2022,20037295,"220,891.25",Access UK Limited ,TAXI AND COACH HIRE,Peoples Services,Childrens Social Care Transport,A32009
London Borough of Sutton,03/11/2022,50278691,"5,410.61",Accomplish Group Ltd,SOCIAL SERVICES RESIDENTIAL,Peoples Services,Supported Living,A56088
London Borough of Sutton,10/11/2022,50281659,"4,671.40",Accomplish Group Ltd,SOCIAL SERVICES RESIDENTIAL,Peoples Services,Supported Living,A56088
London Borough of Sutton,10/11/2022,50281660,"3,080.00",Accomplish Group Ltd,SOCIAL SERVICES RESIDENTIAL,Peoples Services,Supported Living,A56088
London Borough of Sutton,25/11/2022,50286686,-438.8,Achieve Together Limited,SOCIAL SERVICES RESIDENTIAL,Peoples Services,Residential Care - Client Cont ( Net Paymt ),A56113
London Borough of Sutton,25/11/2022,50286686,"6,845.04",Achieve Together Limited,SOCIAL SERVICES RESIDENTIAL,Peoples Services,Residential Care - Ext Provider,A56114
London Borough of Sutton,25/11/2022,50286716,"8,103.64",Achieve Together Limited,SOCIAL SERVICES RESIDENTIAL,Peoples Services,Residential Care - Ext Provider,A56114
London Borough of Sutton,25/11/2022,50286716,-425.6,Achieve Together Limited,SOCIAL SERVICES RESIDENTIAL,Peoples Services,Residential Care - Client Cont ( Net Paymt ),A56113
London Borough of Sutton,25/11/2022,50286896,"4,375.48",Achieve Together Limited,SOCIAL SERVICES RESIDENTIAL,Peoples Services,Residential Care - Ext Provider,A56114
London Borough of Sutton,25/11/2022,50286896,"5,541.43",Achieve Together Limited,SOCIAL SERVICES RESIDENTIAL,Peoples Services,Residential Care - Client Cont ( Net Paymt ),A56113
London Borough of Sutton,25/11/2022,50286896,"-6,030.23",Achieve Together Limited,SOCIAL SERVICES RESIDENTIAL,Peoples Services,Residential Care - Client Cont ( Net Paymt ),A56113
London Borough of Sutton,25/11/2022,50286896,334.29,Achieve Together Limited,SOCIAL SERVICES RESIDENTIAL,Peoples Services,One to One Care,A56108
London Borough of Sutton,25/11/2022,50286915,"7,303.88",Achieve Together Limited,SOCIAL SERVICES RESIDENTIAL,Peoples Services,Residential Care - Ext Provider,A56114
London Borough of Sutton,25/11/2022,50286915,-474.8,Achieve Together Limited,SOCIAL SERVICES RESIDENTIAL,Peoples Services,Residential Care - Client Cont ( Net Paymt ),A56113
London Borough of Sutton,25/11/2022,50286920,"4,682.44",Achieve Together Limited,SOCIAL SERVICES RESIDENTIAL,Peoples Services,Residential Care - Ext Provider,A56114
London Borough of Sutton,25/11/2022,50286920,-583.55,Achieve Together Limited,SOCIAL SERVICES RESIDENTIAL,Peoples Services,Residential Care - Client Cont ( Net Paymt ),A56113
London Borough of Sutton,25/11/2022,50286957,"5,810.56",Achieve Together Limited,SOCIAL SERVICES RESIDENTIAL,Peoples Services,Residential Care - Ext Provider,A56114
London Borough of Sutton,25/11/2022,50287117,"5,100.00",Achieve Together Limited,SOCIAL SERVICES RESIDENTIAL,Peoples Services,Residential Care - Ext Provider,A56114
London Borough of Sutton,16/11/2022,50282050,"8,511.13",ACHIEVE TOGETHER LTD,SOCIAL SERVICES RESIDENTIAL,Peoples Services,Supported Living,A56088
London Borough of Sutton,16/11/2022,50282054,"3,060.00",ACHIEVE TOGETHER LTD,SOCIAL SERVICES RESIDENTIAL,Peoples Services,Supported Living,A56088
London Borough of Sutton,16/11/2022,50282061,"3,544.29",ACHIEVE TOGETHER LTD,SOCIAL SERVICES RESIDENTIAL,Peoples Services,Supported Living,A56088
London Borough of Sutton,16/11/2022,50282084,"4,444.29",ACHIEVE TOGETHER LTD,SOCIAL SERVICES RESIDENTIAL,Peoples Services,Supported Living,A56088
London Borough of Sutton,16/11/2022,50282128,"3,440.57",ACHIEVE TOGETHER LTD,SOCIAL SERVICES RESIDENTIAL,Peoples Services,Supported Living,A56088
London Borough of Sutton,25/11/2022,50286649,"5,620.60",ACHIEVE TOGETHER LTD,SOCIAL SERVICES RESIDENTIAL,Peoples Services,Residential Care - Ext Provider,A56114
London Borough of Sutton,25/11/2022,50286649,-438.8,ACHIEVE TOGETHER LTD,SOCIAL SERVICES RESIDENTIAL,Peoples Services,Residential Care - Client Cont ( Net Paymt ),A56113
London Borough of Sutton,25/11/2022,50286709,"11,047.88",ACHIEVE TOGETHER LTD,SOCIAL SERVICES RESIDENTIAL,Peoples Services,Residential Care - Ext Provider,A56114
London Borough of Sutton,25/11/2022,50286724,"4,653.76",ACHIEVE TOGETHER LTD,SOCIAL SERVICES RESIDENTIAL,Peoples Services,Residential Care - Ext Provider,A56114
London Borough of Sutton,03/10/2022,50280410,"16,784.33",Acorn Homes UK Ltd,CHILDREN'S SERVICES - FOSTERING & ADOPTION SERVICES,Peoples Services,Residential Care-Children,A56115
London Borough of Sutton,25/11/2022,50286767,"3,012.36",Acorn Lodge,SOCIAL SERVICES RESIDENTIAL,Peoples Services,Residential Care - Ext Provider,A56114
London Borough of Sutton,25/11/2022,50286681,"3,232.48",Acorn Residential Home,SOCIAL SERVICES RESIDENTIAL,Peoples Services,Residential Care - Ext Provider,A56114
London Borough of Sutton,25/11/2022,50286898,"4,372.18",Active Prospects,SOCIAL SERVICES DAY CARE,Peoples Services,Residential Care - Client Cont ( Net Paymt ),A56113
London Borough of Sutton,25/11/2022,50286898,"-44,862.81",Active Prospects,SOCIAL SERVICES DAY CARE,Peoples Services,Residential Care - Ext Provider,A56114
London Borough of Sutton,25/11/2022,50286898,"51,304.65",Active Prospects,SOCIAL SERVICES DAY CARE,Peoples Services,Residential Care - Ext Provider,A56114
London Borough of Sutton,25/11/2022,50287014,-438.8,Active Prospects,SOCIAL SERVICES DAY CARE,Peoples Services,Residential Care - Client Cont ( Net Paymt ),A56113
London Borough of Sutton,25/11/2022,50287014,"8,918.80",Active Prospects,SOCIAL SERVICES DAY CARE,Peoples Services,Residential Care - Ext Provider,A56114
London Borough of Sutton,01/11/2022,50276712,533.76,Adelfi Homecare Ltd,SOCIAL SERVICES RESIDENTIAL,Peoples Services,Home Care Services,A56019
London Borough of Sutton,25/11/2022,50286684,"41,396.79",Admiral Healthcare Ltd.,SOCIAL SERVICES RESIDENTIAL,Peoples Services,Nursing Care - Ext Provider,A56025
London Borough of Sutton,01/09/2022,20035419,765.01,Adt Fire & Security Plc,BUILDING MNTCE - SERVICES,Peoples Services,Security / Surveillance Equipment Maintenance,A20009
London Borough of Sutton,27/10/2022,50280452,"3,715.35",Affinity Fostering Services Ltd,CHILDREN'S SERVICES - FOSTERING & ADOPTION SERVICES,Peoples Services,Foster Parents Support,A44110
London Borough of Sutton,27/10/2022,50280453,"3,527.49",Affinity Fostering Services Ltd,CHILDREN'S SERVICES - FOSTERING & ADOPTION SERVICES,Peoples Services,Foster Parents Support,A44110
London Borough of Sutton,27/10/2022,50280454,"3,494.01",Affinity Fostering Services Ltd,CHILDREN'S SERVICES - FOSTERING & ADOPTION SERVICES,Peoples Services,Foster Parents Support,A44110
London Borough of Sutton,27/10/2022,50280455,"3,494.01",Affinity Fostering Services Ltd,CHILDREN'S SERVICES - FOSTERING & ADOPTION SERVICES,Peoples Services,Foster Parents Support,A44110
London Borough of Sutton,27/10/2022,50280456,"3,317.31",Affinity Fostering Services Ltd,CHILDREN'S SERVICES - FOSTERING & ADOPTION SERVICES,Peoples Services,Foster Parents Support,A44110
London Borough of Sutton,26/09/2022,20033526,"7,335.57",AIMEDIADATA LTD,IT EQUIPMENT MAINTENANCE,Resources,Publicity,A44266
London Borough of Sutton,25/11/2022,50286650,"7,793.40",Leighton House Ltd,SOCIAL SERVICES RESIDENTIAL,Peoples Services,Residential Care - Ext Provider,A56114
London Borough of Sutton,25/11/2022,50286725,"8,716.00",Aitch Care Homes,SOCIAL SERVICES RESIDENTIAL,Peoples Services,Residential Care - Ext Provider,A56114
London Borough of Sutton,31/10/2022,20035194,952.14,Albany Housing YP Ltd,CARE LEAVERS,Peoples Services,Approved Lodgings,A61000
London Borough of Sutton,07/09/2022,20035271,"1,750.00",ALKINT SERVICES LTD,"SOCIAL SERVICES - DOLS, GUM & BIA ASSESSMENTS",Peoples Services,Client Related Assessments,A56017
London Borough of Sutton,07/09/2022,20035272,"1,750.00",ALKINT SERVICES LTD,"SOCIAL SERVICES - DOLS, GUM & BIA ASSESSMENTS",Peoples Services,Client Related Assessments,A56017
London Borough of Sutton,07/09/2022,20035273,"1,750.00",ALKINT SERVICES LTD,"SOCIAL SERVICES - DOLS, GUM & BIA ASSESSMENTS",Peoples Services,Client Related Assessments,A56017
London Borough of Sutton,07/09/2022,20035274,"1,750.00",ALKINT SERVICES LTD,"SOCIAL SERVICES - DOLS, GUM & BIA ASSESSMENTS",Peoples Services,Client Related Assessments,A56017
London Borough of Sutton,08/11/2022,50277514,"159,396.66",All Saints Benhilton C Of E,GRANTS & EX GRATIA PAYMENTS,Peoples Services,Payments to Schools,A51013
London Borough of Sutton,08/11/2022,50277544,"10,752.00",All Saints Benhilton C Of E,GRANTS & EX GRATIA PAYMENTS,Peoples Services,Place Funding,A56110
London Borough of Sutton,08/11/2022,50277603,"2,175.00",All Saints Benhilton C Of E,GRANTS & EX GRATIA PAYMENTS,Peoples Services,Payment - Covid 19 Recovery Premium,A51039
London Borough of Sutton,08/11/2022,50277626,"2,787.75",All Saints Benhilton C Of E,GRANTS & EX GRATIA PAYMENTS,Peoples Services,Payment - school led tutoring grant,A51060
London Borough of Sutton,08/11/2022,50277649,"18,697.50",All Saints Benhilton C Of E,GRANTS & EX GRATIA PAYMENTS,Peoples Services,Payment - Deprivation Pupil Premium,A51030
London Borough of Sutton,08/11/2022,50277672,"3,615.00",All Saints Benhilton C Of E,GRANTS & EX GRATIA PAYMENTS,Peoples Services,Payment - Post-LAC Pupil Premium,A51032
London Borough of Sutton,08/11/2022,50277695,"11,433.00",All Saints Benhilton C Of E,GRANTS & EX GRATIA PAYMENTS,Peoples Services,Payment - Primary PE and Sport Premium,A51028
London Borough of Sutton,08/11/2022,50277717,"32,153.00",All Saints Benhilton C Of E,GRANTS & EX GRATIA PAYMENTS,Peoples Services,Payment - school supplementary grant,A51062
London Borough of Sutton,08/11/2022,50277739,"3,838.00",All Saints Benhilton C Of E,GRANTS & EX GRATIA PAYMENTS,Peoples Services,Payment - Teachers Pension Grant,A51027
London Borough of Sutton,08/11/2022,50277757,"1,359.00",All Saints Benhilton C Of E,GRANTS & EX GRATIA PAYMENTS,Peoples Services,Payment - Teachers Pay Grant,A51026
London Borough of Sutton,08/11/2022,50277766,630,All Saints Benhilton C Of E,GRANTS & EX GRATIA PAYMENTS,Peoples Services,Payments to Schools,A51013
London Borough of Sutton,07/11/2022,50278884,"3,586.90",All Saints Benhilton C Of E,GRANTS & EX GRATIA PAYMENTS,Peoples Services,Top-up Funding,A51016
London Borough of Sutton,18/11/2022,50282192,810,All Saints Benhilton C Of E,GRANTS & EX GRATIA PAYMENTS,Resources,"Grants, Contributions & Donations",A47005
London Borough of Sutton,18/11/2022,50284694,"2,000.00",All Saints Benhilton C Of E,GRANTS & EX GRATIA PAYMENTS,Peoples Services,Top Up Additional Support,A60015
London Borough of Sutton,08/11/2022,50277545,"9,408.00",All Saints Carshalton Primary School,GRANTS & EX GRATIA PAYMENTS,Peoples Services,Place Funding,A56110
London Borough of Sutton,25/11/2022,50286670,"4,621.64",Allied Care (Mhs) Ltd,SOCIAL SERVICES - OTHER,Peoples Services,Residential Care - Ext Provider,A56114
London Borough of Sutton,03/11/2022,20035643,745,Alljos Services Ltd,PREMISES - CLEANING & LAUNDRY,Environment Housing and Neighbourhoods,Grants Given For Capital Purposes,C20004
London Borough of Sutton,26/10/2022,20035836,"1,825.00",Alljos Services Ltd,PREMISES - CLEANING & LAUNDRY,Environment Housing and Neighbourhoods,Grants Given For Capital Purposes,C20004
London Borough of Sutton,01/11/2022,20035538,"1,629.28",Allstar Business Solutions,FUEL AND VEHICLE SUPPLIES,Environment Housing and Neighbourhoods,Vehicles -  Fuel,A30015
London Borough of Sutton,25/11/2022,50286817,"6,609.52",Allswell Care Services Ltd,SOCIAL SERVICES RESIDENTIAL,Peoples Services,Residential Care - Ext Provider,A56114
London Borough of Sutton,25/11/2022,50286860,"5,397.60",Allswell Care Services Ltd,SOCIAL SERVICES RESIDENTIAL,Peoples Services,Residential Care - Ext Provider,A56114
London Borough of Sutton,25/11/2022,50286932,"5,397.60",Allswell Care Services Ltd,SOCIAL SERVICES RESIDENTIAL,Peoples Services,Residential Care - Ext Provider,A56114
London Borough of Sutton,13/10/2022,50278226,626.7,Alpenbest Limited,SOCIAL SERVICES DAY CARE,Peoples Services,Home Care Services,A56019
London Borough of Sutton,13/10/2022,50278227,326.15,Alpenbest Limited,SOCIAL SERVICES DAY CARE,Peoples Services,Home Care Services,A56019
London Borough of Sutton,13/10/2022,50278227,"1,455.38",Alpenbest Limited,SOCIAL SERVICES DAY CARE,Peoples Services,Home Care Services,A56019
London Borough of Sutton,13/10/2022,50278241,"1,405.28",Alpenbest Limited,SOCIAL SERVICES DAY CARE,Peoples Services,Home Care Services,A56019
London Borough of Sutton,13/10/2022,50278242,"3,201.90",Alpenbest Limited,SOCIAL SERVICES DAY CARE,Peoples Services,Home Care Services,A56019
London Borough of Sutton,13/10/2022,50278318,"1,708.96",Alpenbest Limited,SOCIAL SERVICES DAY CARE,Peoples Services,Home Care Services,A56019
London Borough of Sutton,13/07/2022,50278694,"1,748.92",Alpenbest Limited,SOCIAL SERVICES DAY CARE,Peoples Services,Home Care Services,A56019
London Borough of Sutton,13/10/2022,50278697,"1,830.05",Alpenbest Limited,SOCIAL SERVICES DAY CARE,Peoples Services,Home Care Services,A56019
London Borough of Sutton,04/11/2022,50278698,"1,648.76",Alpenbest Limited,SOCIAL SERVICES DAY CARE,Peoples Services,Home Care Services,A56019
London Borough of Sutton,15/09/2022,50278700,805.33,Alpenbest Limited,SOCIAL SERVICES DAY CARE,Peoples Services,Home Care Services,A56019
London Borough of Sutton,13/10/2022,50278701,"1,215.98",Alpenbest Limited,SOCIAL SERVICES DAY CARE,Peoples Services,Home Care Services,A56019
London Borough of Sutton,04/11/2022,50278702,"1,235.15",Alpenbest Limited,SOCIAL SERVICES DAY CARE,Peoples Services,Home Care Services,A56019
London Borough of Sutton,04/11/2022,50278706,"1,591.76",Alpenbest Limited,SOCIAL SERVICES DAY CARE,Peoples Services,Home Care Services,A56019
London Borough of Sutton,13/10/2022,50278707,"1,605.71",Alpenbest Limited,SOCIAL SERVICES DAY CARE,Peoples Services,Home Care Services,A56019
London Borough of Sutton,04/11/2022,50278716,"3,241.20",Alpenbest Limited,SOCIAL SERVICES DAY CARE,Peoples Services,Home Care Services,A56019
London Borough of Sutton,04/11/2022,50278718,565.87,Alpenbest Limited,SOCIAL SERVICES DAY CARE,Peoples Services,Home Care Services,A56019
London Borough of Sutton,04/11/2022,50278720,"4,666.92",Alpenbest Limited,SOCIAL SERVICES DAY CARE,Peoples Services,Home Care Services,A56019
London Borough of Sutton,04/11/2022,50278721,"1,085.10",Alpenbest Limited,SOCIAL SERVICES DAY CARE,Peoples Services,Home Care Services,A56019
London Borough of Sutton,04/11/2022,50278722,966.16,Alpenbest Limited,SOCIAL SERVICES DAY CARE,Peoples Services,Home Care Services,A56019
London Borough of Sutton,04/11/2022,50278722,"1,108.68",Alpenbest Limited,SOCIAL SERVICES DAY CARE,Peoples Services,Home Care Services,A56019
London Borough of Sutton,04/11/2022,50278723,739.12,Alpenbest Limited,SOCIAL SERVICES DAY CARE,Peoples Services,Home Care Services,A56019
London Borough of Sutton,04/11/2022,50278724,"1,222.20",Alpenbest Limited,SOCIAL SERVICES DAY CARE,Peoples Services,Home Care Services,A56019
London Borough of Sutton,04/11/2022,50278726,"1,608.69",Alpenbest Limited,SOCIAL SERVICES DAY CARE,Peoples Services,Home Care Services,A56019
London Borough of Sutton,04/11/2022,50278727,940.33,Alpenbest Limited,SOCIAL SERVICES DAY CARE,Peoples Services,Home Care Services,A56019
London Borough of Sutton,13/10/2022,50278756,916.9,Alpenbest Limited,SOCIAL SERVICES DAY CARE,Peoples Services,Home Care Services,A56019
London Borough of Sutton,04/11/2022,50278759,964.42,Alpenbest Limited,SOCIAL SERVICES DAY CARE,Peoples Services,Home Care Services,A56019
London Borough of Sutton,04/11/2022,50278760,"3,183.52",Alpenbest Limited,SOCIAL SERVICES DAY CARE,Peoples Services,Home Care Services,A56019
London Borough of Sutton,04/11/2022,50278764,834.58,Alpenbest Limited,SOCIAL SERVICES DAY CARE,Peoples Services,Home Care Services,A56019
London Borough of Sutton,04/11/2022,50278765,"1,591.76",Alpenbest Limited,SOCIAL SERVICES DAY CARE,Peoples Services,Home Care Services,A56019
London Borough of Sutton,04/11/2022,50278766,"1,604.71",Alpenbest Limited,SOCIAL SERVICES DAY CARE,Peoples Services,Home Care Services,A56019
London Borough of Sutton,04/11/2022,50278767,601.37,Alpenbest Limited,SOCIAL SERVICES DAY CARE,Peoples Services,Home Care Services,A56019
London Borough of Sutton,04/11/2022,50278768,"2,504.83",Alpenbest Limited,SOCIAL SERVICES DAY CARE,Peoples Services,Home Care Services,A56019
London Borough of Sutton,04/11/2022,50278768,"2,074.92",Alpenbest Limited,SOCIAL SERVICES DAY CARE,Peoples Services,Home Care Services,A56019
London Borough of Sutton,04/11/2022,50278769,852.64,Alpenbest Limited,SOCIAL SERVICES DAY CARE,Peoples Services,Home Care Services,A56019
London Borough of Sutton,04/11/2022,50278770,"1,351.22",Alpenbest Limited,SOCIAL SERVICES DAY CARE,Peoples Services,Home Care Services,A56019
London Borough of Sutton,04/11/2022,50278771,852.64,Alpenbest Limited,SOCIAL SERVICES DAY CARE,Peoples Services,Home Care Services,A56019
London Borough of Sutton,04/11/2022,50278772,"3,196.28",Alpenbest Limited,SOCIAL SERVICES DAY CARE,Peoples Services,Home Care Services,A56019
London Borough of Sutton,04/11/2022,50278774,"1,648.88",Alpenbest Limited,SOCIAL SERVICES DAY CARE,Peoples Services,Home Care Services,A56019
London Borough of Sutton,04/11/2022,50278775,"1,050.69",Alpenbest Limited,SOCIAL SERVICES DAY CARE,Peoples Services,Home Care Services,A56019
London Borough of Sutton,04/11/2022,50279778,702.11,Alpenbest Limited,SOCIAL SERVICES DAY CARE,Peoples Services,Home Care Services,A56019
London Borough of Sutton,04/11/2022,50279781,"1,771.57",Alpenbest Limited,SOCIAL SERVICES DAY CARE,Peoples Services,Home Care Services,A56019
London Borough of Sutton,04/11/2022,50281670,"1,480.20",Alpenbest Limited,SOCIAL SERVICES DAY CARE,Peoples Services,Home Care Services,A56019
London Borough of Sutton,04/11/2022,50281670,"1,591.76",Alpenbest Limited,SOCIAL SERVICES DAY CARE,Peoples Services,Home Care Services,A56019
London Borough of Sutton,04/11/2022,50285915,"3,136.90",Alpenbest Limited,SOCIAL SERVICES DAY CARE,Peoples Services,Home Care Services,A56019
London Borough of Sutton,31/10/2022,50276660,836,Ambient Support Limited,SOCIAL SERVICES RESIDENTIAL,Peoples Services,Supported Living,A56088
London Borough of Sutton,03/10/2022,50276661,"7,264.00",Ambient Support Limited,SOCIAL SERVICES RESIDENTIAL,Peoples Services,Supported Living,A56088
London Borough of Sutton,05/08/2022,50281990,"20,151.65",AMBITIOUS ABOUT AUTISM,CHILDREN'S SERVICES - SEN SERVICES,Peoples Services,Independent School Fees,A56002
London Borough of Sutton,05/08/2022,50281991,"20,151.65",AMBITIOUS ABOUT AUTISM,CHILDREN'S SERVICES - SEN SERVICES,Peoples Services,Independent School Fees,A56002
London Borough of Sutton,25/11/2022,50286685,"5,520.00",ANA Treatment Centres Ltd,SOCIAL SERVICES RESIDENTIAL,Peoples Services,Interim Placements - Ext Provider,A56102
London Borough of Sutton,25/11/2022,50286685,-621.96,ANA Treatment Centres Ltd,SOCIAL SERVICES RESIDENTIAL,Peoples Services,Residential Care - Client Cont ( Net Paymt ),A56113
London Borough of Sutton,01/10/2022,50280349,"3,656.76",Anchor Foster Care Services Ltd,CHILDREN'S SERVICES - FOSTERING & ADOPTION SERVICES,Peoples Services,Foster Parents Support,A44110
London Borough of Sutton,01/10/2022,50280404,"4,495.00",Anchor Foster Care Services Ltd,CHILDREN'S SERVICES - FOSTERING & ADOPTION SERVICES,Peoples Services,Foster Parents Support,A44110
London Borough of Sutton,23/11/2022,20036994,938.34,REDACTED - PERSONAL DATA,PLS LANDLORDS,Environment Housing and Neighbourhoods,Temporary Protection - Homeless Persons,A62028
London Borough of Sutton,31/10/2022,50277263,"2,100.00",REDACTED - PERSONAL DATA,CHILDREN'S SERVICES - SEN SERVICES,Peoples Services,Independent School Fees,A56002
London Borough of Sutton,01/11/2022,50277264,"2,020.00",REDACTED - PERSONAL DATA,CHILDREN'S SERVICES - SEN SERVICES,Peoples Services,Independent School Fees,A56002
London Borough of Sutton,19/10/2022,20034553,625,REDACTED - PERSONAL DATA,SUNDRY SUPPLIER - EDUCATION,Peoples Services,LAC - Education,A44280
London Borough of Sutton,07/10/2022,50280372,"3,476.43",Ansacare Fostering Agency Ltd,CHILDREN'S SERVICES - FOSTERING & ADOPTION SERVICES,Peoples Services,Foster Parents Support,A44110
London Borough of Sutton,07/10/2022,50280437,"3,476.43",Ansacare Fostering Agency Ltd,CHILDREN'S SERVICES - FOSTERING & ADOPTION SERVICES,Peoples Services,Foster Parents Support,A44110
London Borough of Sutton,12/10/2022,20035060,"9,400.00",Aon Solutions UK Limited,FINANCIAL / INSURANCE INSTNS,Resources,Fees,A44040
London Borough of Sutton,12/07/2022,20035463,"7,675.00",Aon Solutions UK Limited,FINANCIAL / INSURANCE INSTNS,Resources,Fees,A44040
London Borough of Sutton,23/06/2022,20035464,"3,875.00",Aon Solutions UK Limited,FINANCIAL / INSURANCE INSTNS,Resources,Fees,A44040
London Borough of Sutton,31/10/2022,50277095,"1,312.36",Ashlong House Ltd,SOCIAL SERVICES RESIDENTIAL,Peoples Services,Supported Living,A56088
London Borough of Sutton,31/10/2022,50281876,"1,065.84",Ashlong House Ltd,SOCIAL SERVICES RESIDENTIAL,Peoples Services,Supported Living,A56088
London Borough of Sutton,25/11/2022,50286726,"-1,990.00",Ashurst Lodge Healthcare Ltd,CHILDREN'S SERVICES - RESIDENTIAL,Peoples Services,Nursing Care - 3rd party top up payment,A56023
London Borough of Sutton,25/11/2022,50286726,"3,980.00",Ashurst Lodge Healthcare Ltd,CHILDREN'S SERVICES - RESIDENTIAL,Peoples Services,Residential Care - Ext Provider,A56114
London Borough of Sutton,25/11/2022,50286669,"4,144.68",Aspen Place,SOCIAL SERVICES DAY CARE,Peoples Services,Nursing Care - Ext Provider,A56025
London Borough of Sutton,25/11/2022,50286703,"5,699.00",Aspens Charities,SOCIAL SERVICES RESIDENTIAL,Peoples Services,Residential Care - Ext Provider,A56114
London Borough of Sutton,31/10/2022,50276686,"7,356.30",Aspirations Care Ltd,SOCIAL SERVICES DAY CARE,Peoples Services,Home Care Services,A56019
London Borough of Sutton,31/10/2022,50276686,"2,480.00",Aspirations Care Ltd,SOCIAL SERVICES DAY CARE,Peoples Services,Home Care Services,A56019
London Borough of Sutton,14/09/2022,20036438,"56,675.24",Atalian Servest Limited,PREMISES - CLEANING & LAUNDRY,Resources,FM - Building Cleaning Contract - Servest,A56095
London Borough of Sutton,13/10/2022,20036439,"56,675.24",Atalian Servest Limited,PREMISES - CLEANING & LAUNDRY,Resources,FM - Building Cleaning Contract - Servest,A56095
London Borough of Sutton,25/11/2022,50286652,"6,024.56",Autism & Aspergers Care Services,SOCIAL SERVICES RESIDENTIAL,Peoples Services,Residential Care - Ext Provider,A56114
London Borough of Sutton,28/11/2022,50280396,"49,334.28",Avance Ltd ,CHILDREN'S SERVICES - FOSTERING & ADOPTION SERVICES,Peoples Services,Residential Care-Children,A56115
London Borough of Sutton,21/11/2022,20037105,"79,966.50",Avenue Primary Acadamy,GRANTS & EX GRATIA PAYMENTS,Peoples Services,Payments to Contractors,C14000
London Borough of Sutton,21/11/2022,20037124,"12,266.93",Avenue Primary Acadamy,GRANTS & EX GRATIA PAYMENTS,Peoples Services,Equipment Purchases,C17000
London Borough of Sutton,21/11/2022,20037205,"12,266.93",Avenue Primary Acadamy,GRANTS & EX GRATIA PAYMENTS,Peoples Services,Equipment Purchases,C17000
London Borough of Sutton,08/11/2022,50277546,"13,532.40",Avenue Primary Acadamy,GRANTS & EX GRATIA PAYMENTS,Peoples Services,Place Funding,A56110
London Borough of Sutton,07/11/2022,50278885,"4,999.42",Avenue Primary Acadamy,GRANTS & EX GRATIA PAYMENTS,Peoples Services,Top-up Funding,A51016
London Borough of Sutton,07/11/2022,50278911,"11,680.37",Avenue Primary Acadamy,GRANTS & EX GRATIA PAYMENTS,Peoples Services,Top-up Funding,A51016
London Borough of Sutton,07/11/2022,50278911,"2,446.60",Avenue Primary Acadamy,GRANTS & EX GRATIA PAYMENTS,Peoples Services,Top-up Funding,A51016
London Borough of Sutton,18/11/2022,50282194,"1,635.00",Avenue Primary Acadamy,GRANTS & EX GRATIA PAYMENTS,Resources,"Grants, Contributions & Donations",A47005
London Borough of Sutton,31/10/2022,50280329,"14,588.16",Ayai Care Limited,SOCIAL SERVICES DAY CARE,Peoples Services,Approved Lodgings,A61000
London Borough of Sutton,31/10/2022,50280446,"31,143.93",Ayai Care Limited,SOCIAL SERVICES DAY CARE,Peoples Services,Residential Care-Children,A56115
London Borough of Sutton,30/08/2022,50281871,"1,720.00",Ayai Care Limited,SOCIAL SERVICES DAY CARE,Peoples Services,One to One Care,A56108
London Borough of Sutton,30/08/2022,50281872,"1,290.00",Ayai Care Limited,SOCIAL SERVICES DAY CARE,Peoples Services,One to One Care,A56108
London Borough of Sutton,22/09/2022,50281874,"1,505.00",Ayai Care Limited,SOCIAL SERVICES DAY CARE,Peoples Services,One to One Care,A56108
London Borough of Sutton,02/11/2022,50281875,"1,290.00",Ayai Care Limited,SOCIAL SERVICES DAY CARE,Peoples Services,One to One Care,A56108
London Borough of Sutton,06/10/2022,50281877,"1,935.00",Ayai Care Limited,SOCIAL SERVICES DAY CARE,Peoples Services,One to One Care,A56108
London Borough of Sutton,16/11/2022,50282069,"13,165.71",Ayai Care Limited,SOCIAL SERVICES DAY CARE,Peoples Services,Supported Living,A56088
London Borough of Sutton,16/11/2022,50282126,"13,680.00",Ayai Care Limited,SOCIAL SERVICES DAY CARE,Peoples Services,Supported Living,A56088
London Borough of Sutton,25/10/2022,20034801,"3,907.68",Back on Track Housing Ltd,SOCIAL SERVICES - OTHER,Peoples Services,Approved Lodgings,A61000
London Borough of Sutton,25/10/2022,50280335,"5,225.67",Back on Track Housing Ltd,SOCIAL SERVICES - OTHER,Peoples Services,Accommodation - Supported Living,A62001
London Borough of Sutton,10/10/2022,50280350,"1,080.00",Back on Track Housing Ltd,SOCIAL SERVICES - OTHER,Peoples Services,Accommodation - Supported Living,A62001
London Borough of Sutton,10/10/2022,50280350,62.5,Back on Track Housing Ltd,SOCIAL SERVICES - OTHER,Peoples Services,Accommodation - Supported Living,A62001
London Borough of Sutton,25/10/2022,50280415,"5,059.46",Back on Track Housing Ltd,SOCIAL SERVICES - OTHER,Peoples Services,Accommodation - Supported Living,A62001
London Borough of Sutton,25/10/2022,50280462,"5,225.67",Back on Track Housing Ltd,SOCIAL SERVICES - OTHER,Peoples Services,Approved Lodgings,A61000
London Borough of Sutton,08/11/2022,50277547,"14,942.03",Bandon Hill Primary School (Academy),GRANTS & EX GRATIA PAYMENTS,Peoples Services,Place Funding,A56110
London Borough of Sutton,07/11/2022,50278886,"2,168.44",Bandon Hill Primary School (Academy),GRANTS & EX GRATIA PAYMENTS,Peoples Services,Top-up Funding,A51016
London Borough of Sutton,07/11/2022,50278912,"1,445.63",Bandon Hill Primary School (Academy),GRANTS & EX GRATIA PAYMENTS,Peoples Services,Top-up Funding,A51016
London Borough of Sutton,18/11/2022,50282195,945,Bandon Hill Primary School (Academy),GRANTS & EX GRATIA PAYMENTS,Resources,"Grants, Contributions & Donations",A47005
London Borough of Sutton,18/11/2022,50284693,"4,000.00",Bandon Hill Primary School (Academy),GRANTS & EX GRATIA PAYMENTS,Peoples Services,Top Up Additional Support,A60015
London Borough of Sutton,31/10/2022,50280392,"2,263.50",Banya,SOCIAL SERVICES RESIDENTIAL,Peoples Services,Foster Parents Support,A44110
London Borough of Sutton,10/06/2022,20035061,"1,713.75",Barnett Waddingham LLP,LEGAL & PROFESSIONAL SERVICES,Resources,Fees,A44040
London Borough of Sutton,27/10/2022,20035020,"1,000.00",BCS Learning & Development Ltd,ACADEMIC INSTNS - OTHER,Health and Wellbeing,Registration & Licence Fees Payable,A44267
London Borough of Sutton,08/11/2022,50277508,"105,063.94",Beddington Infants School,GRANTS & EX GRATIA PAYMENTS,Peoples Services,Payments to Schools,A51013
London Borough of Sutton,08/11/2022,50277549,"11,840.85",Beddington Infants School,GRANTS & EX GRATIA PAYMENTS,Peoples Services,Place Funding,A56110
London Borough of Sutton,08/11/2022,50277597,"1,558.75",Beddington Infants School,GRANTS & EX GRATIA PAYMENTS,Peoples Services,Payment - Covid 19 Recovery Premium,A51039
London Borough of Sutton,08/11/2022,50277620,"1,842.75",Beddington Infants School,GRANTS & EX GRATIA PAYMENTS,Peoples Services,Payment - school led tutoring grant,A51060
London Borough of Sutton,08/11/2022,50277643,"14,542.50",Beddington Infants School,GRANTS & EX GRATIA PAYMENTS,Peoples Services,Payment - Deprivation Pupil Premium,A51030
London Borough of Sutton,08/11/2022,50277667,602.5,Beddington Infants School,GRANTS & EX GRATIA PAYMENTS,Peoples Services,Payment - Post-LAC Pupil Premium,A51032
London Borough of Sutton,08/11/2022,50277705,"10,354.00",Beddington Infants School,GRANTS & EX GRATIA PAYMENTS,Peoples Services,Payment - Primary PE and Sport Premium,A51028
London Borough of Sutton,08/11/2022,50277711,"21,397.00",Beddington Infants School,GRANTS & EX GRATIA PAYMENTS,Peoples Services,Payment - school supplementary grant,A51062
London Borough of Sutton,08/11/2022,50277736,"3,412.00",Beddington Infants School,GRANTS & EX GRATIA PAYMENTS,Peoples Services,Payment - Teachers Pension Grant,A51027
London Borough of Sutton,08/11/2022,50277754,"1,208.00",Beddington Infants School,GRANTS & EX GRATIA PAYMENTS,Peoples Services,Payment - Teachers Pay Grant,A51026
London Borough of Sutton,07/11/2022,50278888,760.85,Beddington Infants School,GRANTS & EX GRATIA PAYMENTS,Peoples Services,Top-up Funding,A51016
London Borough of Sutton,25/11/2022,50285934,"12,300.00",Beddington Infants School,GRANTS & EX GRATIA PAYMENTS,Non-Service Cost Centres,Recharge-Teaching Staff,A10600
London Borough of Sutton,08/11/2022,50277550,"6,766.20",Beddington Park Primary (Academy) ,GRANTS & EX GRATIA PAYMENTS,Peoples Services,Place Funding,A56110
London Borough of Sutton,18/11/2022,50282198,"1,470.00",Beddington Park Primary (Academy) ,GRANTS & EX GRATIA PAYMENTS,Resources,"Grants, Contributions & Donations",A47005
London Borough of Sutton,18/11/2022,50282251,700,Beddington Park Primary (Academy) ,GRANTS & EX GRATIA PAYMENTS,Peoples Services,SEND Inclusion funding,A60038
London Borough of Sutton,16/11/2022,50282044,"-3,803.57",Beechcroft Care Limited,SOCIAL SERVICES RESIDENTIAL,Peoples Services,Nursing Care - 3rd party top up payment,A56023
London Borough of Sutton,16/11/2022,50282044,"7,607.14",Beechcroft Care Limited,SOCIAL SERVICES RESIDENTIAL,Peoples Services,Supported Living,A56088
London Borough of Sutton,24/10/2022,20034713,"1,041.88",Beeches Tree Care,AGRICULTURAL & ESTATE SERVICES,Environment Housing and Neighbourhoods,Tree Works,A56042
London Borough of Sutton,24/10/2022,20034716,"2,880.85",Beeches Tree Care,AGRICULTURAL & ESTATE SERVICES,Environment Housing and Neighbourhoods,Highway Trees - Maintenance,A28005
London Borough of Sutton,24/10/2022,20034717,"1,092.21",Beeches Tree Care,AGRICULTURAL & ESTATE SERVICES,Environment Housing and Neighbourhoods,Highway Trees - Maintenance,A28005
London Borough of Sutton,02/11/2022,20035409,"9,170.01",Beeches Tree Care,AGRICULTURAL & ESTATE SERVICES,Environment Housing and Neighbourhoods,Maintenance of trees,A28003
London Borough of Sutton,02/11/2022,20035410,"2,563.98",Beeches Tree Care,AGRICULTURAL & ESTATE SERVICES,Environment Housing and Neighbourhoods,Maintenance of trees,A28003
London Borough of Sutton,04/11/2022,20035728,"2,168.58",Beeches Tree Care,AGRICULTURAL & ESTATE SERVICES,Environment Housing and Neighbourhoods,Tree Works,A56042
London Borough of Sutton,04/11/2022,20035729,"1,888.26",Beeches Tree Care,AGRICULTURAL & ESTATE SERVICES,Environment Housing and Neighbourhoods,Tree Works,A56042
London Borough of Sutton,11/11/2022,20036079,"4,576.25",Beeches Tree Care,AGRICULTURAL & ESTATE SERVICES,Environment Housing and Neighbourhoods,Highway Trees - Maintenance,A28005
London Borough of Sutton,11/11/2022,20036080,"7,070.99",Beeches Tree Care,AGRICULTURAL & ESTATE SERVICES,Environment Housing and Neighbourhoods,Highway Trees - Maintenance,A28005
London Borough of Sutton,21/11/2022,20037045,"2,571.89",Beeches Tree Care,AGRICULTURAL & ESTATE SERVICES,Environment Housing and Neighbourhoods,Tree Works,A56042
London Borough of Sutton,21/11/2022,20037090,"2,390.61",Beeches Tree Care,AGRICULTURAL & ESTATE SERVICES,Environment Housing and Neighbourhoods,Highway Trees - Maintenance,A28005
London Borough of Sutton,21/11/2022,20037091,"3,324.71",Beeches Tree Care,AGRICULTURAL & ESTATE SERVICES,Environment Housing and Neighbourhoods,Highway Trees - Maintenance,A28005
London Borough of Sutton,08/11/2022,50277770,"1,416.03",Belmont Village Playgroup,GRANTS & EX GRATIA PAYMENTS,Peoples Services,Payment - Nursery Funding,A51056
London Borough of Sutton,08/11/2022,50277829,"2,819.25",Belmont Village Playgroup,GRANTS & EX GRATIA PAYMENTS,Peoples Services,Payment - Nursery Funding,A51056
London Borough of Sutton,30/10/2022,50279792,827.97,Best at Home Domiciliary Care Services Ltd,SOCIAL SERVICES DAY CARE,Peoples Services,Home Care Services,A56019
London Borough of Sutton,30/10/2022,50279795,"3,156.00",Best at Home Domiciliary Care Services Ltd,SOCIAL SERVICES DAY CARE,Peoples Services,Home Care Services,A56019
London Borough of Sutton,30/10/2022,50279805,901.97,Best at Home Domiciliary Care Services Ltd,SOCIAL SERVICES DAY CARE,Peoples Services,Home Care Services,A56019
London Borough of Sutton,30/10/2022,50279807,"3,156.00",Best at Home Domiciliary Care Services Ltd,SOCIAL SERVICES DAY CARE,Peoples Services,Home Care Services,A56019
London Borough of Sutton,30/10/2022,50279810,"3,156.00",Best at Home Domiciliary Care Services Ltd,SOCIAL SERVICES DAY CARE,Peoples Services,Home Care Services,A56019
London Borough of Sutton,30/10/2022,50279834,827.97,Best at Home Domiciliary Care Services Ltd,SOCIAL SERVICES DAY CARE,Peoples Services,Home Care Services,A56019
London Borough of Sutton,30/10/2022,50279852,827.97,Best at Home Domiciliary Care Services Ltd,SOCIAL SERVICES DAY CARE,Peoples Services,Home Care Services,A56019
London Borough of Sutton,30/10/2022,50279852,150,Best at Home Domiciliary Care Services Ltd,SOCIAL SERVICES DAY CARE,Peoples Services,Home Care Services,A56019
London Borough of Sutton,30/10/2022,50279857,981.94,Best at Home Domiciliary Care Services Ltd,SOCIAL SERVICES DAY CARE,Peoples Services,Home Care Services,A56019
London Borough of Sutton,30/10/2022,50279862,542.5,Best at Home Domiciliary Care Services Ltd,SOCIAL SERVICES DAY CARE,Peoples Services,Home Care Services,A56019
London Borough of Sutton,30/10/2022,50279863,827.97,Best at Home Domiciliary Care Services Ltd,SOCIAL SERVICES DAY CARE,Peoples Services,Home Care Services,A56019
London Borough of Sutton,06/11/2022,50281162,"3,156.00",Best at Home Domiciliary Care Services Ltd,SOCIAL SERVICES DAY CARE,Peoples Services,Home Care Services,A56019
London Borough of Sutton,06/11/2022,50281171,827.97,Best at Home Domiciliary Care Services Ltd,SOCIAL SERVICES DAY CARE,Peoples Services,Home Care Services,A56019
London Borough of Sutton,06/11/2022,50281177,"3,156.00",Best at Home Domiciliary Care Services Ltd,SOCIAL SERVICES DAY CARE,Peoples Services,Home Care Services,A56019
London Borough of Sutton,06/11/2022,50281206,981.94,Best at Home Domiciliary Care Services Ltd,SOCIAL SERVICES DAY CARE,Peoples Services,Home Care Services,A56019
London Borough of Sutton,06/11/2022,50281212,542.5,Best at Home Domiciliary Care Services Ltd,SOCIAL SERVICES DAY CARE,Peoples Services,Home Care Services,A56019
London Borough of Sutton,06/11/2022,50281215,827.97,Best at Home Domiciliary Care Services Ltd,SOCIAL SERVICES DAY CARE,Peoples Services,Home Care Services,A56019
London Borough of Sutton,06/11/2022,50281237,827.97,Best at Home Domiciliary Care Services Ltd,SOCIAL SERVICES DAY CARE,Peoples Services,Home Care Services,A56019
London Borough of Sutton,06/11/2022,50281253,901.97,Best at Home Domiciliary Care Services Ltd,SOCIAL SERVICES DAY CARE,Peoples Services,Home Care Services,A56019
London Borough of Sutton,06/11/2022,50281256,"3,156.00",Best at Home Domiciliary Care Services Ltd,SOCIAL SERVICES DAY CARE,Peoples Services,Home Care Services,A56019
London Borough of Sutton,06/11/2022,50281277,827.97,Best at Home Domiciliary Care Services Ltd,SOCIAL SERVICES DAY CARE,Peoples Services,Home Care Services,A56019
London Borough of Sutton,06/11/2022,50281277,150,Best at Home Domiciliary Care Services Ltd,SOCIAL SERVICES DAY CARE,Peoples Services,Home Care Services,A56019
London Borough of Sutton,13/11/2022,50282928,"3,156.00",Best at Home Domiciliary Care Services Ltd,SOCIAL SERVICES DAY CARE,Peoples Services,Home Care Services,A56019
London Borough of Sutton,13/11/2022,50282940,827.97,Best at Home Domiciliary Care Services Ltd,SOCIAL SERVICES DAY CARE,Peoples Services,Home Care Services,A56019
London Borough of Sutton,13/11/2022,50282947,"3,156.00",Best at Home Domiciliary Care Services Ltd,SOCIAL SERVICES DAY CARE,Peoples Services,Home Care Services,A56019
London Borough of Sutton,13/11/2022,50282956,901.97,Best at Home Domiciliary Care Services Ltd,SOCIAL SERVICES DAY CARE,Peoples Services,Home Care Services,A56019
London Borough of Sutton,13/11/2022,50282959,"3,156.00",Best at Home Domiciliary Care Services Ltd,SOCIAL SERVICES DAY CARE,Peoples Services,Home Care Services,A56019
London Borough of Sutton,13/11/2022,50282965,827.97,Best at Home Domiciliary Care Services Ltd,SOCIAL SERVICES DAY CARE,Peoples Services,Home Care Services,A56019
London Borough of Sutton,13/11/2022,50282969,981.94,Best at Home Domiciliary Care Services Ltd,SOCIAL SERVICES DAY CARE,Peoples Services,Home Care Services,A56019
London Borough of Sutton,13/11/2022,50282973,542.5,Best at Home Domiciliary Care Services Ltd,SOCIAL SERVICES DAY CARE,Peoples Services,Home Care Services,A56019
London Borough of Sutton,13/11/2022,50282974,827.97,Best at Home Domiciliary Care Services Ltd,SOCIAL SERVICES DAY CARE,Peoples Services,Home Care Services,A56019
London Borough of Sutton,13/11/2022,50283002,827.97,Best at Home Domiciliary Care Services Ltd,SOCIAL SERVICES DAY CARE,Peoples Services,Home Care Services,A56019
London Borough of Sutton,13/11/2022,50283002,150,Best at Home Domiciliary Care Services Ltd,SOCIAL SERVICES DAY CARE,Peoples Services,Home Care Services,A56019
London Borough of Sutton,18/09/2022,50285916,612.19,Best at Home Domiciliary Care Services Ltd,SOCIAL SERVICES DAY CARE,Peoples Services,Home Care Services,A56019
London Borough of Sutton,06/11/2022,50285917,641.93,Best at Home Domiciliary Care Services Ltd,SOCIAL SERVICES DAY CARE,Peoples Services,Home Care Services,A56019
London Borough of Sutton,30/10/2022,50285918,661.43,Best at Home Domiciliary Care Services Ltd,SOCIAL SERVICES DAY CARE,Peoples Services,Home Care Services,A56019
London Borough of Sutton,16/10/2022,50285919,641.93,Best at Home Domiciliary Care Services Ltd,SOCIAL SERVICES DAY CARE,Peoples Services,Home Care Services,A56019
London Borough of Sutton,20/11/2022,50287267,827.97,Best at Home Domiciliary Care Services Ltd,SOCIAL SERVICES DAY CARE,Peoples Services,Home Care Services,A56019
London Borough of Sutton,20/11/2022,50287267,150,Best at Home Domiciliary Care Services Ltd,SOCIAL SERVICES DAY CARE,Peoples Services,Home Care Services,A56019
London Borough of Sutton,20/11/2022,50287275,"3,156.00",Best at Home Domiciliary Care Services Ltd,SOCIAL SERVICES DAY CARE,Peoples Services,Home Care Services,A56019
London Borough of Sutton,20/11/2022,50287280,827.97,Best at Home Domiciliary Care Services Ltd,SOCIAL SERVICES DAY CARE,Peoples Services,Home Care Services,A56019
London Borough of Sutton,20/11/2022,50287283,"3,156.00",Best at Home Domiciliary Care Services Ltd,SOCIAL SERVICES DAY CARE,Peoples Services,Home Care Services,A56019
London Borough of Sutton,20/11/2022,50287301,901.97,Best at Home Domiciliary Care Services Ltd,SOCIAL SERVICES DAY CARE,Peoples Services,Home Care Services,A56019
London Borough of Sutton,20/11/2022,50287304,"3,156.00",Best at Home Domiciliary Care Services Ltd,SOCIAL SERVICES DAY CARE,Peoples Services,Home Care Services,A56019
London Borough of Sutton,20/11/2022,50287329,981.94,Best at Home Domiciliary Care Services Ltd,SOCIAL SERVICES DAY CARE,Peoples Services,Home Care Services,A56019
London Borough of Sutton,20/11/2022,50287334,542.5,Best at Home Domiciliary Care Services Ltd,SOCIAL SERVICES DAY CARE,Peoples Services,Home Care Services,A56019
London Borough of Sutton,20/11/2022,50287337,827.97,Best at Home Domiciliary Care Services Ltd,SOCIAL SERVICES DAY CARE,Peoples Services,Home Care Services,A56019
London Borough of Sutton,20/11/2022,50287343,981.5,Best at Home Domiciliary Care Services Ltd,SOCIAL SERVICES DAY CARE,Peoples Services,Home Care Services,A56019
London Borough of Sutton,20/11/2022,50287397,827.97,Best at Home Domiciliary Care Services Ltd,SOCIAL SERVICES DAY CARE,Peoples Services,Home Care Services,A56019
London Borough of Sutton,31/10/2022,20037341,"9,271.00",Bestcourt UK Ltd,ACCOMMODATION BED & BREAKFAST,Environment Housing and Neighbourhoods,Bed & Breakfast,A56000
London Borough of Sutton,28/09/2022,20035390,"2,900.00",Better Families Social Work Services Ltd,SUNDRY SUPPLIER - SOCIAL SERVICES,Peoples Services,Childrens Social Care Transport,A32009
London Borough of Sutton,04/08/2022,20036534,442.5,Better Families Social Work Services Ltd,SUNDRY SUPPLIER - SOCIAL SERVICES,Peoples Services,Client Care/Assistance,A61011
London Borough of Sutton,25/09/2022,20037119,"9,985.95",Better Families Social Work Services Ltd,SUNDRY SUPPLIER - SOCIAL SERVICES,Peoples Services,Client Care/Assistance,A61011
London Borough of Sutton,31/08/2022,20034499,429.6,Bevan Brittan LLP,LEGAL & PROFESSIONAL SERVICES,Development Growth and Regeneration,External Legal Fees,C20008
London Borough of Sutton,30/08/2022,20035140,"2,470.20",Bevan Brittan LLP,LEGAL & PROFESSIONAL SERVICES,HRA,External Legal Fees,C20008
London Borough of Sutton,30/09/2022,20035334,"2,902.50",Bevan Brittan LLP,LEGAL & PROFESSIONAL SERVICES,HRA,External Legal Fees,C20008
London Borough of Sutton,01/09/2022,50284679,840,Beyond Autism,CHILDREN'S SERVICES - RESIDENTIAL,Peoples Services,Independent School Fees,A56002
London Borough of Sutton,31/08/2022,50284691,"21,347.66",Beyond Autism,CHILDREN'S SERVICES - RESIDENTIAL,Peoples Services,Independent School Fees,A56002
London Borough of Sutton,16/11/2022,20037093,480.19,BFS Group,FOOD & DRINK,Health and Wellbeing,Catering Contract - Frozen Meals,A41001
London Borough of Sutton,24/11/2022,50285965,"9,595.95",REDACTED - PERSONAL DATA,CARE LEAVERS,Peoples Services,Approved Lodgings,A61000
London Borough of Sutton,08/11/2022,50277923,"2,571.35",Bizzy Bees Day Nursery,GRANTS & EX GRATIA PAYMENTS,Peoples Services,Payment - Nursery Funding,A51056
London Borough of Sutton,10/11/2022,20036068,"52,500.00",Bloom Procurement Services Ltd,TEMP STAFF & CONSULTANCY,Resources,Professional Fees,A44066
London Borough of Sutton,16/11/2022,20036472,"44,500.00",Bloom Procurement Services Ltd,TEMP STAFF & CONSULTANCY,Resources,Professional Fees,A44066
London Borough of Sutton,16/11/2022,20036473,"5,000.00",Bloom Procurement Services Ltd,TEMP STAFF & CONSULTANCY,Resources,Professional Fees,A44066
London Borough of Sutton,25/11/2022,50286702,"2,127.08",BNP Care Ltd,SOCIAL SERVICES RESIDENTIAL,Peoples Services,Residential Care - Ext Provider,A56114
London Borough of Sutton,25/11/2022,50286748,"3,942.88",BNP Care Ltd,SOCIAL SERVICES RESIDENTIAL,Peoples Services,Residential Care - Ext Provider,A56114
London Borough of Sutton,31/10/2022,20035361,"2,350.44",BOC Limited,BUILDING MNTCE - SERVICES,Resources,Equipment And Materials Purchase,A40000
London Borough of Sutton,29/07/2022,20036160,"2,355.00",Box Twenty Consulting Engineers Ltd,TEMP STAFF & CONSULTANCY,HRA,External Fees and Consultants,C20000
London Borough of Sutton,14/06/2022,20036490,"4,160.00",Breastfeeding Network,SUNDRY SUPPLIER - EDUCATION,Health and Wellbeing,Other Supplies & Services,A44291
London Borough of Sutton,25/11/2022,50286806,"3,848.24",Bridge House Care Centre,SOCIAL SERVICES RESIDENTIAL,Peoples Services,Nursing Care - Ext Provider,A56025
London Borough of Sutton,25/11/2022,50286806,-750.4,Bridge House Care Centre,SOCIAL SERVICES RESIDENTIAL,Peoples Services,Nursing Care - 3rd party top up payment,A56023
London Borough of Sutton,25/11/2022,50286826,"-12,557.85",Bridge House Care Centre,SOCIAL SERVICES RESIDENTIAL,Peoples Services,Nursing Care - Ext Provider,A56025
London Borough of Sutton,25/11/2022,50286826,-836.76,Bridge House Care Centre,SOCIAL SERVICES RESIDENTIAL,Peoples Services,Nursing Care - 3rd party top up payment,A56023
London Borough of Sutton,25/11/2022,50286840,-750.4,Bridge House Care Centre,SOCIAL SERVICES RESIDENTIAL,Peoples Services,Nursing Care - 3rd party top up payment,A56023
London Borough of Sutton,25/11/2022,50286840,"-1,492.80",Bridge House Care Centre,SOCIAL SERVICES RESIDENTIAL,Peoples Services,Nursing Care - 3rd party top up payment,A56023
London Borough of Sutton,25/11/2022,50286840,"3,736.00",Bridge House Care Centre,SOCIAL SERVICES RESIDENTIAL,Peoples Services,Nursing Care - Ext Provider,A56025
London Borough of Sutton,25/11/2022,50286857,"3,821.24",Bridge House Care Centre,SOCIAL SERVICES RESIDENTIAL,Peoples Services,Nursing Care - Ext Provider,A56025
London Borough of Sutton,25/11/2022,50286857,-836.76,Bridge House Care Centre,SOCIAL SERVICES RESIDENTIAL,Peoples Services,Nursing Care - 3rd party top up payment,A56023
London Borough of Sutton,25/11/2022,50286862,-836.76,Bridge House Care Centre,SOCIAL SERVICES RESIDENTIAL,Peoples Services,Nursing Care - 3rd party top up payment,A56023
London Borough of Sutton,25/11/2022,50286862,"3,821.24",Bridge House Care Centre,SOCIAL SERVICES RESIDENTIAL,Peoples Services,Nursing Care Short Term,A56026
London Borough of Sutton,25/11/2022,50286888,"3,719.80",Bridge House Care Centre,SOCIAL SERVICES RESIDENTIAL,Peoples Services,Nursing Care - Ext Provider,A56025
London Borough of Sutton,25/11/2022,50286888,-735.68,Bridge House Care Centre,SOCIAL SERVICES RESIDENTIAL,Peoples Services,Nursing Care - 3rd party top up payment,A56023
London Borough of Sutton,25/11/2022,50286926,"3,736.00",Bridge House Care Centre,SOCIAL SERVICES RESIDENTIAL,Peoples Services,Nursing Care - Ext Provider,A56025
London Borough of Sutton,25/11/2022,50286926,-750.4,Bridge House Care Centre,SOCIAL SERVICES RESIDENTIAL,Peoples Services,Nursing Care - 3rd party top up payment,A56023
London Borough of Sutton,25/11/2022,50286934,-750.4,Bridge House Care Centre,SOCIAL SERVICES RESIDENTIAL,Peoples Services,Nursing Care - 3rd party top up payment,A56023
London Borough of Sutton,25/11/2022,50286943,-750.4,Bridge House Care Centre,SOCIAL SERVICES RESIDENTIAL,Peoples Services,Nursing Care - 3rd party top up payment,A56023
London Borough of Sutton,25/11/2022,50286943,"3,734.88",Bridge House Care Centre,SOCIAL SERVICES RESIDENTIAL,Peoples Services,Nursing Care Short Term,A56026
London Borough of Sutton,25/11/2022,50286944,"3,734.88",Bridge House Care Centre,SOCIAL SERVICES RESIDENTIAL,Peoples Services,Nursing Care - Ext Provider,A56025
London Borough of Sutton,25/11/2022,50286947,"3,848.24",Bridge House Care Centre,SOCIAL SERVICES RESIDENTIAL,Peoples Services,Nursing Care - Ext Provider,A56025
London Borough of Sutton,25/11/2022,50286947,-750.4,Bridge House Care Centre,SOCIAL SERVICES RESIDENTIAL,Peoples Services,Nursing Care - 3rd party top up payment,A56023
London Borough of Sutton,25/11/2022,50286965,"3,822.36",Bridge House Care Centre,SOCIAL SERVICES RESIDENTIAL,Peoples Services,Nursing Care - Ext Provider,A56025
London Borough of Sutton,25/11/2022,50286965,-836.76,Bridge House Care Centre,SOCIAL SERVICES RESIDENTIAL,Peoples Services,Nursing Care - 3rd party top up payment,A56023
London Borough of Sutton,25/11/2022,50286979,-750.4,Bridge House Care Centre,SOCIAL SERVICES RESIDENTIAL,Peoples Services,Nursing Care - 3rd party top up payment,A56023
London Borough of Sutton,25/11/2022,50286979,"3,848.24",Bridge House Care Centre,SOCIAL SERVICES RESIDENTIAL,Peoples Services,Nursing Care - Ext Provider,A56025
London Borough of Sutton,25/11/2022,50287015,"3,720.16",Bridge House Care Centre,SOCIAL SERVICES RESIDENTIAL,Peoples Services,Nursing Care - Ext Provider,A56025
London Borough of Sutton,25/11/2022,50287015,-735.68,Bridge House Care Centre,SOCIAL SERVICES RESIDENTIAL,Peoples Services,Nursing Care - 3rd party top up payment,A56023
London Borough of Sutton,25/11/2022,50287030,"3,848.24",Bridge House Care Centre,SOCIAL SERVICES RESIDENTIAL,Peoples Services,Nursing Care - Ext Provider,A56025
London Borough of Sutton,25/11/2022,50287030,-750.4,Bridge House Care Centre,SOCIAL SERVICES RESIDENTIAL,Peoples Services,Nursing Care - 3rd party top up payment,A56023
London Borough of Sutton,25/11/2022,50287073,"3,665.20",Bridge House Care Centre,SOCIAL SERVICES RESIDENTIAL,Peoples Services,Nursing Care - Ext Provider,A56025
London Borough of Sutton,25/11/2022,50287073,-632.64,Bridge House Care Centre,SOCIAL SERVICES RESIDENTIAL,Peoples Services,Nursing Care - 3rd party top up payment,A56023
London Borough of Sutton,25/11/2022,50287094,"3,734.88",Bridge House Care Centre,SOCIAL SERVICES RESIDENTIAL,Peoples Services,Nursing Care - Ext Provider,A56025
London Borough of Sutton,25/11/2022,50287094,-750.4,Bridge House Care Centre,SOCIAL SERVICES RESIDENTIAL,Peoples Services,Nursing Care - 3rd party top up payment,A56023
London Borough of Sutton,25/11/2022,50287123,-750.4,Bridge House Care Centre,SOCIAL SERVICES RESIDENTIAL,Peoples Services,Nursing Care - 3rd party top up payment,A56023
London Borough of Sutton,25/11/2022,50287123,"3,848.24",Bridge House Care Centre,SOCIAL SERVICES RESIDENTIAL,Peoples Services,Nursing Care Short Term,A56026
London Borough of Sutton,25/11/2022,50287132,"3,579.44",Bridge House Care Centre,SOCIAL SERVICES RESIDENTIAL,Peoples Services,Nursing Care - Ext Provider,A56025
London Borough of Sutton,25/11/2022,50287132,-632.64,Bridge House Care Centre,SOCIAL SERVICES RESIDENTIAL,Peoples Services,Nursing Care - 3rd party top up payment,A56023
London Borough of Sutton,25/11/2022,50287151,-750.4,Bridge House Care Centre,SOCIAL SERVICES RESIDENTIAL,Peoples Services,Nursing Care - 3rd party top up payment,A56023
London Borough of Sutton,25/11/2022,50287151,"3,734.88",Bridge House Care Centre,SOCIAL SERVICES RESIDENTIAL,Peoples Services,Nursing Care Short Term,A56026
London Borough of Sutton,08/11/2022,50277900,845.78,REDACTED - PERSONAL DATA,TEMP STAFF & CONSULTANCY,Peoples Services,Payment - Nursery Funding,A51056
London Borough of Sutton,01/10/2022,50280450,"3,498.57",Bridging Gaps Limited,CHILDREN'S SERVICES - FOSTERING & ADOPTION SERVICES,Peoples Services,Foster Parents Support,A44110
London Borough of Sutton,01/10/2022,50280338,"3,506.41",Brighter Futures Foster Care Ltd,CHILDREN'S SERVICES - FOSTERING & ADOPTION SERVICES,Peoples Services,Foster Parents Support,A44110
London Borough of Sutton,01/10/2022,50280398,"3,164.17",Brighter Futures Foster Care Ltd,CHILDREN'S SERVICES - FOSTERING & ADOPTION SERVICES,Peoples Services,Foster Parents Support,A44110
London Borough of Sutton,01/10/2022,50280451,"3,506.41",Brighter Futures Foster Care Ltd,CHILDREN'S SERVICES - FOSTERING & ADOPTION SERVICES,Peoples Services,Foster Parents Support,A44110
London Borough of Sutton,11/11/2022,50282005,"1,832.35",Brit School,GRANTS & EX GRATIA PAYMENTS,Peoples Services,Independent School Fees,A56002
London Borough of Sutton,14/10/2022,20034962,"1,282.56",British Gas,UTILITIES,Environment Housing and Neighbourhoods,Electricity,A21000
London Borough of Sutton,21/10/2022,20035188,913.08,British Gas,UTILITIES,HRA,Electricity,A21000
London Borough of Sutton,25/11/2022,50286723,-817.3,British Home & Hospital For Incurables,SOCIAL SERVICES RESIDENTIAL,Peoples Services,Nursing Care - Client Cont ( Net paymt ),A56024
London Borough of Sutton,25/11/2022,50286723,"2,591.80",British Home & Hospital For Incurables,SOCIAL SERVICES RESIDENTIAL,Peoples Services,Nursing Care - Ext Provider,A56025
London Borough of Sutton,28/10/2022,20035193,"1,005.19",British Telecommunications Plc,UTILITIES,Resources,Telephones,A45020
London Borough of Sutton,29/09/2022,20035458,"3,609.60",Browne Jacobson LLP Office Account,FINANCIAL / INSURANCE INSTNS,Resources,Professional Fees,A44066
London Borough of Sutton,18/11/2022,50284695,"1,833.29",Brunel SEN Multi Academy Trust,CHILDREN'S SERVICES - SEN SERVICES,Peoples Services,Top-up Funding,A51016
London Borough of Sutton,18/11/2022,50284696,"1,833.29",Brunel SEN Multi Academy Trust,CHILDREN'S SERVICES - SEN SERVICES,Peoples Services,Top-up Funding,A51016
London Borough of Sutton,16/11/2022,50284697,"1,833.29",Brunel SEN Multi Academy Trust,CHILDREN'S SERVICES - SEN SERVICES,Peoples Services,Top-up Funding,A51016
London Borough of Sutton,01/10/2022,20036281,"1,471.00",BSI British Standard Institute,BUILDING MNTCE - SERVICES,Environment Housing and Neighbourhoods,Subscriptions,A47010
London Borough of Sutton,01/10/2022,20033712,432,BuildVantage Limited,ACCOMMODATION BED & BREAKFAST,Environment Housing and Neighbourhoods,Bed & Breakfast,A56000
London Borough of Sutton,01/10/2022,20033718,918,BuildVantage Limited,ACCOMMODATION BED & BREAKFAST,Environment Housing and Neighbourhoods,Bed & Breakfast,A56000
London Borough of Sutton,08/11/2022,50277773,"4,505.55",Bumpsa Daisies Nurserys,GRANTS & EX GRATIA PAYMENTS,Peoples Services,Payment - Nursery Funding,A51056
London Borough of Sutton,08/11/2022,50277838,"7,257.60",Bumpsa Daisies Nurserys,GRANTS & EX GRATIA PAYMENTS,Peoples Services,Payment - Nursery Funding,A51056
London Borough of Sutton,25/11/2022,50286955,-836.76,Bupa Care Services,SOCIAL SERVICES RESIDENTIAL,Peoples Services,Nursing Care - 3rd party top up payment,A56023
London Borough of Sutton,25/11/2022,50286955,"7,084.60",Bupa Care Services,SOCIAL SERVICES RESIDENTIAL,Peoples Services,Nursing Care Short Term,A56026
London Borough of Sutton,25/11/2022,50287137,"-5,493.87",Bupa Care Services,SOCIAL SERVICES RESIDENTIAL,Peoples Services,Nursing Care - 3rd party top up payment,A56023
London Borough of Sutton,25/11/2022,50287137,"7,491.16",Bupa Care Services,SOCIAL SERVICES RESIDENTIAL,Peoples Services,Nursing Care Short Term,A56026
London Borough of Sutton,08/11/2022,50277776,643.65,Busy Bees Day Nurseries Ltd ,GRANTS & EX GRATIA PAYMENTS,Peoples Services,Payment - Nursery Funding,A51056
London Borough of Sutton,08/11/2022,50277841,"9,067.52",Busy Bees Day Nurseries Ltd ,GRANTS & EX GRATIA PAYMENTS,Peoples Services,Payment - Nursery Funding,A51056
London Borough of Sutton,08/11/2022,50277775,965.48,Busy Bees Day Nurseries Ltd ,GRANTS & EX GRATIA PAYMENTS,Peoples Services,Payment - Nursery Funding,A51056
London Borough of Sutton,08/11/2022,50277840,"9,408.00",Busy Bees Day Nurseries Ltd ,GRANTS & EX GRATIA PAYMENTS,Peoples Services,Payment - Nursery Funding,A51056
London Borough of Sutton,25/11/2022,50286718,"8,118.48",Butterfly's Care Homes Ltd,SOCIAL SERVICES RESIDENTIAL,Peoples Services,Residential Care - Ext Provider,A56114
London Borough of Sutton,02/11/2022,20035502,"506,022.60",Buxton Building Contractors Ltd,CONSTRUCTION INDUSTRY,HRA,Payments to Contractors,C14000
London Borough of Sutton,04/11/2022,20035664,"-5,060.23",Buxton Building Contractors Ltd,CONSTRUCTION INDUSTRY,Resources,Fees And Charges (VATable),A92310
London Borough of Sutton,01/11/2022,50280408,"2,975.69",By The Bridge Ltd,CHILDREN'S SERVICES - FOSTERING & ADOPTION SERVICES,Peoples Services,Foster Parents Support,A44110
London Borough of Sutton,01/11/2022,50280409,"2,975.69",By The Bridge Ltd,CHILDREN'S SERVICES - FOSTERING & ADOPTION SERVICES,Peoples Services,Foster Parents Support,A44110
London Borough of Sutton,01/11/2022,50280418,"4,667.05",By The Bridge Ltd,CHILDREN'S SERVICES - FOSTERING & ADOPTION SERVICES,Peoples Services,Foster Parents Support,A44110
London Borough of Sutton,22/06/2022,50279204,"5,034.27",Cablesheer (Asbestos) Ltd,CONSTRUCTION INDUSTRY,HRA,Payments to Contractors,C14000
London Borough of Sutton,20/09/2022,50280464,"24,374.68",Calcot Services for Children Ltd,CHILDREN'S SERVICES - FOSTERING & ADOPTION SERVICES,Peoples Services,Residential Care-Children,A56115
London Borough of Sutton,27/09/2022,50282689,"20,105.67",Cambian Childcare Ltd,CHILDREN'S SERVICES - FOSTERING & ADOPTION SERVICES,Peoples Services,Residential Care-Children,A56115
London Borough of Sutton,27/09/2022,50282690,"32,284.29",Cambian Childcare Ltd,CHILDREN'S SERVICES - FOSTERING & ADOPTION SERVICES,Peoples Services,Residential Care-Children,A56115
London Borough of Sutton,22/11/2022,50284702,"4,207.14",Cambian Childcare Ltd,CHILDREN'S SERVICES - FOSTERING & ADOPTION SERVICES,Peoples Services,Independent School Fees,A56002
London Borough of Sutton,05/10/2022,20036249,"9,347.90",Canon (UK) Ltd,REPROGRAPHICS & PHOTOGRAPHY,Resources,IT Hardware Maintenance,A45008
London Borough of Sutton,05/10/2022,20036251,"1,447.10",Canon (UK) Ltd,REPROGRAPHICS & PHOTOGRAPHY,Resources,IT Hardware Maintenance,A45008
London Borough of Sutton,05/07/2022,20036252,"1,447.10",Canon (UK) Ltd,REPROGRAPHICS & PHOTOGRAPHY,Resources,IT Hardware Maintenance,A45008
London Borough of Sutton,25/11/2022,50286696,"-1,167.10",Canterbury Oast Trust,SOCIAL SERVICES RESIDENTIAL,Peoples Services,Residential Care - Client Cont ( Net Paymt ),A56113
London Borough of Sutton,25/11/2022,50286696,204.72,Canterbury Oast Trust,SOCIAL SERVICES RESIDENTIAL,Peoples Services,One to One Care,A56108
London Borough of Sutton,25/11/2022,50286696,"4,060.72",Canterbury Oast Trust,SOCIAL SERVICES RESIDENTIAL,Peoples Services,Residential Care - Ext Provider,A56114
London Borough of Sutton,07/11/2022,50282691,"25,941.03",Canterbury Support Ltd,CHILDREN'S SERVICE - OTHER,Peoples Services,Residential Care-Children,A56115
London Borough of Sutton,31/10/2022,50280357,"5,690.67",Capstone Foster Care (South East) Ltd,CHILDREN'S SERVICES - FOSTERING & ADOPTION SERVICES,Peoples Services,Foster Parents Support,A44110
London Borough of Sutton,31/10/2022,50280358,"5,695.01",Capstone Foster Care (South East) Ltd,CHILDREN'S SERVICES - FOSTERING & ADOPTION SERVICES,Peoples Services,Foster Parents Support,A44110
London Borough of Sutton,31/10/2022,50277077,"9,116.17",Care Advocates Ltd,MANAGEMENT & TRAINING SERVICES,Peoples Services,Supported Living,A56088
London Borough of Sutton,31/10/2022,50277098,"6,591.84",Care Advocates Ltd,MANAGEMENT & TRAINING SERVICES,Peoples Services,Supported Living,A56088
London Borough of Sutton,31/10/2022,50277100,"5,286.74",Care Advocates Ltd,MANAGEMENT & TRAINING SERVICES,Peoples Services,Supported Living,A56088
London Borough of Sutton,25/11/2022,50287026,"-1,607.14",Care Concern Group t/a Haling Park Care Home,SOCIAL SERVICES RESIDENTIAL,Peoples Services,Nursing Care - 3rd party top up payment,A56023
London Borough of Sutton,25/11/2022,50287026,-402,Care Concern Group t/a Haling Park Care Home,SOCIAL SERVICES RESIDENTIAL,Peoples Services,Nursing Care - 3rd party top up payment,A56023
London Borough of Sutton,25/11/2022,50287026,"3,616.29",Care Concern Group t/a Haling Park Care Home,SOCIAL SERVICES RESIDENTIAL,Peoples Services,Nursing Care - Ext Provider,A56025
London Borough of Sutton,25/11/2022,50287055,"-2,500.00",Care Concern Group t/a Haling Park Care Home,SOCIAL SERVICES RESIDENTIAL,Peoples Services,Nursing Care - 3rd party top up payment,A56023
London Borough of Sutton,25/11/2022,50287055,-836.76,Care Concern Group t/a Haling Park Care Home,SOCIAL SERVICES RESIDENTIAL,Peoples Services,Nursing Care - 3rd party top up payment,A56023
London Borough of Sutton,25/11/2022,50287055,"5,836.76",Care Concern Group t/a Haling Park Care Home,SOCIAL SERVICES RESIDENTIAL,Peoples Services,Nursing Care - Ext Provider,A56025
London Borough of Sutton,25/11/2022,50287076,"3,320.32",Care Concern Group t/a Haling Park Care Home,SOCIAL SERVICES RESIDENTIAL,Peoples Services,Residential Care - Ext Provider,A56114
London Borough of Sutton,16/11/2022,50282072,"2,003.57",Care Connexions UK Limited,SOCIAL SERVICES RESIDENTIAL,Peoples Services,One to One Care,A56108
London Borough of Sutton,25/11/2022,50286668,"3,768.36",Care Direct Uk Ltd  (David House),SOCIAL SERVICES RESIDENTIAL,Peoples Services,Residential Care - Ext Provider,A56114
London Borough of Sutton,22/08/2022,50276763,709,Care More Ltd,SOCIAL SERVICES RESIDENTIAL,Peoples Services,Home Care Services,A56019
London Borough of Sutton,05/09/2022,50276767,632,Care More Ltd,SOCIAL SERVICES RESIDENTIAL,Peoples Services,Home Care Services,A56019
London Borough of Sutton,09/08/2022,50276768,468,Care More Ltd,SOCIAL SERVICES RESIDENTIAL,Peoples Services,Home Care Services,A56019
London Borough of Sutton,09/08/2022,50276768,"3,710.25",Care More Ltd,SOCIAL SERVICES RESIDENTIAL,Peoples Services,Home Care Services,A56019
London Borough of Sutton,05/09/2022,50276771,548.5,Care More Ltd,SOCIAL SERVICES RESIDENTIAL,Peoples Services,Home Care Services,A56019
London Borough of Sutton,18/10/2022,50276811,570.5,Care More Ltd,SOCIAL SERVICES RESIDENTIAL,Peoples Services,Home Care Services,A56019
London Borough of Sutton,18/10/2022,50276812,779,Care More Ltd,SOCIAL SERVICES RESIDENTIAL,Peoples Services,Home Care Services,A56019
London Borough of Sutton,18/10/2022,50276815,586.25,Care More Ltd,SOCIAL SERVICES RESIDENTIAL,Peoples Services,Home Care Services,A56019
London Borough of Sutton,09/10/2022,50276841,803.5,Care More Ltd,SOCIAL SERVICES RESIDENTIAL,Peoples Services,Home Care Services,A56019
London Borough of Sutton,05/09/2022,50276849,580,Care More Ltd,SOCIAL SERVICES RESIDENTIAL,Peoples Services,Home Care Services,A56019
London Borough of Sutton,09/10/2022,50276875,566.75,Care More Ltd,SOCIAL SERVICES RESIDENTIAL,Peoples Services,Home Care Services,A56019
London Borough of Sutton,09/10/2022,50276916,773.5,Care More Ltd,SOCIAL SERVICES RESIDENTIAL,Peoples Services,Home Care Services,A56019
London Borough of Sutton,09/10/2022,50276917,787.5,Care More Ltd,SOCIAL SERVICES RESIDENTIAL,Peoples Services,Home Care Services,A56019
London Borough of Sutton,09/10/2022,50276924,728,Care More Ltd,SOCIAL SERVICES RESIDENTIAL,Peoples Services,Home Care Services,A56019
London Borough of Sutton,09/10/2022,50276931,20,Care More Ltd,SOCIAL SERVICES RESIDENTIAL,Peoples Services,Home Care Services,A56019
London Borough of Sutton,09/10/2022,50276931,926.97,Care More Ltd,SOCIAL SERVICES RESIDENTIAL,Peoples Services,Home Care Services,A56019
London Borough of Sutton,09/10/2022,50276941,773.5,Care More Ltd,SOCIAL SERVICES RESIDENTIAL,Peoples Services,Home Care Services,A56019
London Borough of Sutton,09/10/2022,50276941,45.5,Care More Ltd,SOCIAL SERVICES RESIDENTIAL,Peoples Services,Home Care Services,A56019
London Borough of Sutton,09/10/2022,50276943,826,Care More Ltd,SOCIAL SERVICES RESIDENTIAL,Peoples Services,Home Care Services,A56019
London Borough of Sutton,09/10/2022,50276952,773.48,Care More Ltd,SOCIAL SERVICES RESIDENTIAL,Peoples Services,Home Care Services,A56019
London Borough of Sutton,16/10/2022,50279796,566.75,Care More Ltd,SOCIAL SERVICES RESIDENTIAL,Peoples Services,Home Care Services,A56019
London Borough of Sutton,16/10/2022,50279817,773.5,Care More Ltd,SOCIAL SERVICES RESIDENTIAL,Peoples Services,Home Care Services,A56019
London Borough of Sutton,16/10/2022,50279843,773.5,Care More Ltd,SOCIAL SERVICES RESIDENTIAL,Peoples Services,Home Care Services,A56019
London Borough of Sutton,16/10/2022,50279845,787.5,Care More Ltd,SOCIAL SERVICES RESIDENTIAL,Peoples Services,Home Care Services,A56019
London Borough of Sutton,16/10/2022,50279854,728,Care More Ltd,SOCIAL SERVICES RESIDENTIAL,Peoples Services,Home Care Services,A56019
London Borough of Sutton,16/10/2022,50279860,20,Care More Ltd,SOCIAL SERVICES RESIDENTIAL,Peoples Services,Home Care Services,A56019
London Borough of Sutton,16/10/2022,50279860,917,Care More Ltd,SOCIAL SERVICES RESIDENTIAL,Peoples Services,Home Care Services,A56019
London Borough of Sutton,16/10/2022,50279867,773.5,Care More Ltd,SOCIAL SERVICES RESIDENTIAL,Peoples Services,Home Care Services,A56019
London Borough of Sutton,16/10/2022,50279867,45.5,Care More Ltd,SOCIAL SERVICES RESIDENTIAL,Peoples Services,Home Care Services,A56019
London Borough of Sutton,16/10/2022,50279868,826,Care More Ltd,SOCIAL SERVICES RESIDENTIAL,Peoples Services,Home Care Services,A56019
London Borough of Sutton,16/10/2022,50281082,826,Care More Ltd,SOCIAL SERVICES RESIDENTIAL,Peoples Services,Home Care Services,A56019
London Borough of Sutton,23/10/2022,50281675,773.5,Care More Ltd,SOCIAL SERVICES RESIDENTIAL,Peoples Services,Home Care Services,A56019
London Borough of Sutton,23/10/2022,50281676,787.5,Care More Ltd,SOCIAL SERVICES RESIDENTIAL,Peoples Services,Home Care Services,A56019
London Borough of Sutton,23/10/2022,50281677,728,Care More Ltd,SOCIAL SERVICES RESIDENTIAL,Peoples Services,Home Care Services,A56019
London Borough of Sutton,23/10/2022,50281686,741,Care More Ltd,SOCIAL SERVICES RESIDENTIAL,Peoples Services,Home Care Services,A56019
London Borough of Sutton,23/10/2022,50281686,45.5,Care More Ltd,SOCIAL SERVICES RESIDENTIAL,Peoples Services,Home Care Services,A56019
London Borough of Sutton,23/10/2022,50281687,826,Care More Ltd,SOCIAL SERVICES RESIDENTIAL,Peoples Services,Home Care Services,A56019
London Borough of Sutton,23/10/2022,50281689,773.5,Care More Ltd,SOCIAL SERVICES RESIDENTIAL,Peoples Services,Home Care Services,A56019
London Borough of Sutton,23/10/2022,50281724,826,Care More Ltd,SOCIAL SERVICES RESIDENTIAL,Peoples Services,Home Care Services,A56019
London Borough of Sutton,23/10/2022,50281731,566.75,Care More Ltd,SOCIAL SERVICES RESIDENTIAL,Peoples Services,Home Care Services,A56019
London Borough of Sutton,30/10/2022,50284142,19.86,Care More Ltd,SOCIAL SERVICES RESIDENTIAL,Peoples Services,Home Care Services,A56019
London Borough of Sutton,30/10/2022,50284142,917.14,Care More Ltd,SOCIAL SERVICES RESIDENTIAL,Peoples Services,Home Care Services,A56019
London Borough of Sutton,06/11/2022,50284143,20,Care More Ltd,SOCIAL SERVICES RESIDENTIAL,Peoples Services,Home Care Services,A56019
London Borough of Sutton,06/11/2022,50284143,917,Care More Ltd,SOCIAL SERVICES RESIDENTIAL,Peoples Services,Home Care Services,A56019
London Borough of Sutton,30/10/2022,50284163,566.75,Care More Ltd,SOCIAL SERVICES RESIDENTIAL,Peoples Services,Home Care Services,A56019
London Borough of Sutton,06/11/2022,50284164,566.75,Care More Ltd,SOCIAL SERVICES RESIDENTIAL,Peoples Services,Home Care Services,A56019
London Borough of Sutton,30/10/2022,50284173,773.5,Care More Ltd,SOCIAL SERVICES RESIDENTIAL,Peoples Services,Home Care Services,A56019
London Borough of Sutton,06/11/2022,50284174,773.5,Care More Ltd,SOCIAL SERVICES RESIDENTIAL,Peoples Services,Home Care Services,A56019
London Borough of Sutton,30/10/2022,50284176,773.5,Care More Ltd,SOCIAL SERVICES RESIDENTIAL,Peoples Services,Home Care Services,A56019
London Borough of Sutton,06/11/2022,50284177,773.5,Care More Ltd,SOCIAL SERVICES RESIDENTIAL,Peoples Services,Home Care Services,A56019
London Borough of Sutton,30/10/2022,50284178,787.5,Care More Ltd,SOCIAL SERVICES RESIDENTIAL,Peoples Services,Home Care Services,A56019
London Borough of Sutton,06/11/2022,50284179,787.5,Care More Ltd,SOCIAL SERVICES RESIDENTIAL,Peoples Services,Home Care Services,A56019
London Borough of Sutton,30/10/2022,50284180,728,Care More Ltd,SOCIAL SERVICES RESIDENTIAL,Peoples Services,Home Care Services,A56019
London Borough of Sutton,06/11/2022,50284181,728,Care More Ltd,SOCIAL SERVICES RESIDENTIAL,Peoples Services,Home Care Services,A56019
London Borough of Sutton,30/10/2022,50284190,773.57,Care More Ltd,SOCIAL SERVICES RESIDENTIAL,Peoples Services,Home Care Services,A56019
London Borough of Sutton,30/10/2022,50284190,45.43,Care More Ltd,SOCIAL SERVICES RESIDENTIAL,Peoples Services,Home Care Services,A56019
London Borough of Sutton,06/11/2022,50284191,773.5,Care More Ltd,SOCIAL SERVICES RESIDENTIAL,Peoples Services,Home Care Services,A56019
London Borough of Sutton,06/11/2022,50284191,45.5,Care More Ltd,SOCIAL SERVICES RESIDENTIAL,Peoples Services,Home Care Services,A56019
London Borough of Sutton,30/10/2022,50284192,826,Care More Ltd,SOCIAL SERVICES RESIDENTIAL,Peoples Services,Home Care Services,A56019
London Borough of Sutton,06/11/2022,50284193,826,Care More Ltd,SOCIAL SERVICES RESIDENTIAL,Peoples Services,Home Care Services,A56019
London Borough of Sutton,30/10/2022,50284199,773.5,Care More Ltd,SOCIAL SERVICES RESIDENTIAL,Peoples Services,Home Care Services,A56019
London Borough of Sutton,06/11/2022,50284200,773.5,Care More Ltd,SOCIAL SERVICES RESIDENTIAL,Peoples Services,Home Care Services,A56019
London Borough of Sutton,13/11/2022,50287284,579.77,Care More Ltd,SOCIAL SERVICES RESIDENTIAL,Peoples Services,Home Care Services,A56019
London Borough of Sutton,20/11/2022,50287285,566.77,Care More Ltd,SOCIAL SERVICES RESIDENTIAL,Peoples Services,Home Care Services,A56019
London Borough of Sutton,20/11/2022,50287315,922.57,Care More Ltd,SOCIAL SERVICES RESIDENTIAL,Peoples Services,Home Care Services,A56019
London Borough of Sutton,13/11/2022,50287320,773.5,Care More Ltd,SOCIAL SERVICES RESIDENTIAL,Peoples Services,Home Care Services,A56019
London Borough of Sutton,20/11/2022,50287321,773.54,Care More Ltd,SOCIAL SERVICES RESIDENTIAL,Peoples Services,Home Care Services,A56019
London Borough of Sutton,13/11/2022,50287323,787.5,Care More Ltd,SOCIAL SERVICES RESIDENTIAL,Peoples Services,Home Care Services,A56019
London Borough of Sutton,20/11/2022,50287324,787.54,Care More Ltd,SOCIAL SERVICES RESIDENTIAL,Peoples Services,Home Care Services,A56019
London Borough of Sutton,13/11/2022,50287326,728,Care More Ltd,SOCIAL SERVICES RESIDENTIAL,Peoples Services,Home Care Services,A56019
London Borough of Sutton,20/11/2022,50287327,728,Care More Ltd,SOCIAL SERVICES RESIDENTIAL,Peoples Services,Home Care Services,A56019
London Borough of Sutton,13/11/2022,50287332,20,Care More Ltd,SOCIAL SERVICES RESIDENTIAL,Peoples Services,Home Care Services,A56019
London Borough of Sutton,13/11/2022,50287332,917,Care More Ltd,SOCIAL SERVICES RESIDENTIAL,Peoples Services,Home Care Services,A56019
London Borough of Sutton,13/11/2022,50287341,773.5,Care More Ltd,SOCIAL SERVICES RESIDENTIAL,Peoples Services,Home Care Services,A56019
London Borough of Sutton,13/11/2022,50287341,45.5,Care More Ltd,SOCIAL SERVICES RESIDENTIAL,Peoples Services,Home Care Services,A56019
London Borough of Sutton,20/11/2022,50287342,773.54,Care More Ltd,SOCIAL SERVICES RESIDENTIAL,Peoples Services,Home Care Services,A56019
London Borough of Sutton,20/11/2022,50287342,45.5,Care More Ltd,SOCIAL SERVICES RESIDENTIAL,Peoples Services,Home Care Services,A56019
London Borough of Sutton,13/11/2022,50287344,826,Care More Ltd,SOCIAL SERVICES RESIDENTIAL,Peoples Services,Home Care Services,A56019
London Borough of Sutton,20/11/2022,50287345,826,Care More Ltd,SOCIAL SERVICES RESIDENTIAL,Peoples Services,Home Care Services,A56019
London Borough of Sutton,13/11/2022,50287351,773.5,Care More Ltd,SOCIAL SERVICES RESIDENTIAL,Peoples Services,Home Care Services,A56019
London Borough of Sutton,20/11/2022,50287352,773.54,Care More Ltd,SOCIAL SERVICES RESIDENTIAL,Peoples Services,Home Care Services,A56019
London Borough of Sutton,25/11/2022,50286663,-438.8,Care UK Homecare Ltd,SOCIAL SERVICES RESIDENTIAL,Peoples Services,Residential Care - Client Cont ( Net Paymt ),A56113
London Borough of Sutton,25/11/2022,50286663,"4,772.96",Care UK Homecare Ltd,SOCIAL SERVICES RESIDENTIAL,Peoples Services,Residential Care - Ext Provider,A56114
London Borough of Sutton,25/11/2022,50286789,"4,200.00",Care UK Homecare Ltd,SOCIAL SERVICES RESIDENTIAL,Peoples Services,Nursing Care Short Term,A56026
London Borough of Sutton,25/11/2022,50286935,"3,960.00",Care UK Homecare Ltd,SOCIAL SERVICES RESIDENTIAL,Peoples Services,Nursing Care - Ext Provider,A56025
London Borough of Sutton,25/11/2022,50286935,-836.76,Care UK Homecare Ltd,SOCIAL SERVICES RESIDENTIAL,Peoples Services,Nursing Care - 3rd party top up payment,A56023
London Borough of Sutton,25/11/2022,50287124,-836.76,Care UK Homecare Ltd,SOCIAL SERVICES RESIDENTIAL,Peoples Services,Nursing Care - 3rd party top up payment,A56023
London Borough of Sutton,25/11/2022,50287124,"4,200.00",Care UK Homecare Ltd,SOCIAL SERVICES RESIDENTIAL,Peoples Services,Nursing Care Short Term,A56026
London Borough of Sutton,25/11/2022,50287142,-662.24,Care UK Homecare Ltd,SOCIAL SERVICES RESIDENTIAL,Peoples Services,Nursing Care - 3rd party top up payment,A56023
London Borough of Sutton,25/11/2022,50287142,"3,696.24",Care UK Homecare Ltd,SOCIAL SERVICES RESIDENTIAL,Peoples Services,Nursing Care - Ext Provider,A56025
London Borough of Sutton,14/11/2022,50281631,"5,062.64",Care Unlimited Domcare Ltd,SOCIAL SERVICES DAY CARE,Peoples Services,Supported Living,A56088
London Borough of Sutton,14/11/2022,50281633,"5,062.64",Care Unlimited Domcare Ltd,SOCIAL SERVICES DAY CARE,Peoples Services,Supported Living,A56088
London Borough of Sutton,10/11/2022,50281634,"5,062.64",Care Unlimited Domcare Ltd,SOCIAL SERVICES DAY CARE,Peoples Services,Supported Living,A56088
London Borough of Sutton,14/11/2022,50281636,"5,062.64",Care Unlimited Domcare Ltd,SOCIAL SERVICES DAY CARE,Peoples Services,Supported Living,A56088
London Borough of Sutton,10/11/2022,50281637,"5,062.64",Care Unlimited Domcare Ltd,SOCIAL SERVICES DAY CARE,Peoples Services,Supported Living,A56088
London Borough of Sutton,10/11/2022,50281638,"5,062.64",Care Unlimited Domcare Ltd,SOCIAL SERVICES DAY CARE,Peoples Services,Supported Living,A56088
London Borough of Sutton,10/11/2022,50281661,"5,931.52",Care Unlimited Domcare Ltd,SOCIAL SERVICES DAY CARE,Peoples Services,Supported Living,A56088
London Borough of Sutton,14/11/2022,50281662,"5,931.52",Care Unlimited Domcare Ltd,SOCIAL SERVICES DAY CARE,Peoples Services,Supported Living,A56088
London Borough of Sutton,14/11/2022,50284051,"5,062.64",Care Unlimited Domcare Ltd,SOCIAL SERVICES DAY CARE,Peoples Services,Supported Living,A56088
London Borough of Sutton,10/11/2022,50284052,"5,062.64",Care Unlimited Domcare Ltd,SOCIAL SERVICES DAY CARE,Peoples Services,Supported Living,A56088
London Borough of Sutton,02/11/2022,50277380,"3,596.00",Care4Care Services Ltd,SOCIAL SERVICES DAY CARE,Peoples Services,Home Care Services,A56019
London Borough of Sutton,02/11/2022,50277380,322.2,Care4Care Services Ltd,SOCIAL SERVICES DAY CARE,Peoples Services,Home Care Services,A56019
London Borough of Sutton,02/11/2022,50277382,"1,979.00",Care4Care Services Ltd,SOCIAL SERVICES DAY CARE,Peoples Services,Home Care Services,A56019
London Borough of Sutton,02/11/2022,50277383,820.5,Care4Care Services Ltd,SOCIAL SERVICES DAY CARE,Peoples Services,Home Care Services,A56019
London Borough of Sutton,02/11/2022,50277384,"3,987.43",Care4Care Services Ltd,SOCIAL SERVICES DAY CARE,Peoples Services,Home Care Services,A56019
London Borough of Sutton,02/11/2022,50277385,"3,992.80",Care4Care Services Ltd,SOCIAL SERVICES DAY CARE,Peoples Services,Home Care Services,A56019
London Borough of Sutton,02/11/2022,50277386,872,Care4Care Services Ltd,SOCIAL SERVICES DAY CARE,Peoples Services,Home Care Services,A56019
London Borough of Sutton,02/11/2022,50277387,"1,042.20",Care4Care Services Ltd,SOCIAL SERVICES DAY CARE,Peoples Services,Home Care Services,A56019
London Borough of Sutton,02/11/2022,50277389,899,Care4Care Services Ltd,SOCIAL SERVICES DAY CARE,Peoples Services,Home Care Services,A56019
London Borough of Sutton,30/10/2022,50283214,803.37,Caremark (Sutton),SOCIAL SERVICES DAY CARE,Peoples Services,Home Care Services,A56019
London Borough of Sutton,30/10/2022,50283214,32.25,Caremark (Sutton),SOCIAL SERVICES DAY CARE,Peoples Services,Home Care Services,A56019
London Borough of Sutton,06/11/2022,50283221,540.75,Caremark (Sutton),SOCIAL SERVICES DAY CARE,Peoples Services,Home Care Services,A56019
London Borough of Sutton,13/11/2022,50283222,540.75,Caremark (Sutton),SOCIAL SERVICES DAY CARE,Peoples Services,Home Care Services,A56019
London Borough of Sutton,23/10/2022,50283223,540.75,Caremark (Sutton),SOCIAL SERVICES DAY CARE,Peoples Services,Home Care Services,A56019
London Borough of Sutton,30/10/2022,50283224,540.75,Caremark (Sutton),SOCIAL SERVICES DAY CARE,Peoples Services,Home Care Services,A56019
London Borough of Sutton,06/11/2022,50283230,803.37,Caremark (Sutton),SOCIAL SERVICES DAY CARE,Peoples Services,Home Care Services,A56019
London Borough of Sutton,06/11/2022,50283230,32.25,Caremark (Sutton),SOCIAL SERVICES DAY CARE,Peoples Services,Home Care Services,A56019
London Borough of Sutton,13/11/2022,50283231,803.37,Caremark (Sutton),SOCIAL SERVICES DAY CARE,Peoples Services,Home Care Services,A56019
London Borough of Sutton,13/11/2022,50283231,32.25,Caremark (Sutton),SOCIAL SERVICES DAY CARE,Peoples Services,Home Care Services,A56019
London Borough of Sutton,23/10/2022,50283232,803.37,Caremark (Sutton),SOCIAL SERVICES DAY CARE,Peoples Services,Home Care Services,A56019
London Borough of Sutton,23/10/2022,50283232,32.25,Caremark (Sutton),SOCIAL SERVICES DAY CARE,Peoples Services,Home Care Services,A56019
London Borough of Sutton,06/11/2022,50283235,"1,897.00",Caremark (Sutton),SOCIAL SERVICES DAY CARE,Peoples Services,Home Care Services,A56019
London Borough of Sutton,13/11/2022,50283236,"1,875.50",Caremark (Sutton),SOCIAL SERVICES DAY CARE,Peoples Services,Home Care Services,A56019
London Borough of Sutton,06/11/2022,50283245,500.41,Caremark (Sutton),SOCIAL SERVICES DAY CARE,Peoples Services,Home Care Services,A56019
London Borough of Sutton,13/11/2022,50283246,500.41,Caremark (Sutton),SOCIAL SERVICES DAY CARE,Peoples Services,Home Care Services,A56019
London Borough of Sutton,06/11/2022,50283258,580.36,Caremark (Sutton),SOCIAL SERVICES DAY CARE,Peoples Services,Home Care Services,A56019
London Borough of Sutton,13/11/2022,50283259,580.36,Caremark (Sutton),SOCIAL SERVICES DAY CARE,Peoples Services,Home Care Services,A56019
London Borough of Sutton,06/11/2022,50283274,846.37,Caremark (Sutton),SOCIAL SERVICES DAY CARE,Peoples Services,Home Care Services,A56019
London Borough of Sutton,13/11/2022,50283275,846.38,Caremark (Sutton),SOCIAL SERVICES DAY CARE,Peoples Services,Home Care Services,A56019
London Borough of Sutton,06/11/2022,50283294,530.66,Caremark (Sutton),SOCIAL SERVICES DAY CARE,Peoples Services,Home Care Services,A56019
London Borough of Sutton,13/11/2022,50283295,530.66,Caremark (Sutton),SOCIAL SERVICES DAY CARE,Peoples Services,Home Care Services,A56019
London Borough of Sutton,23/10/2022,50283296,530.66,Caremark (Sutton),SOCIAL SERVICES DAY CARE,Peoples Services,Home Care Services,A56019
London Borough of Sutton,30/10/2022,50283297,530.66,Caremark (Sutton),SOCIAL SERVICES DAY CARE,Peoples Services,Home Care Services,A56019
London Borough of Sutton,23/10/2022,50283320,"1,828.50",Caremark (Sutton),SOCIAL SERVICES DAY CARE,Peoples Services,Home Care Services,A56019
London Borough of Sutton,30/10/2022,50283321,"1,875.50",Caremark (Sutton),SOCIAL SERVICES DAY CARE,Peoples Services,Home Care Services,A56019
London Borough of Sutton,23/10/2022,50283327,500.41,Caremark (Sutton),SOCIAL SERVICES DAY CARE,Peoples Services,Home Care Services,A56019
London Borough of Sutton,30/10/2022,50283328,500.41,Caremark (Sutton),SOCIAL SERVICES DAY CARE,Peoples Services,Home Care Services,A56019
London Borough of Sutton,23/10/2022,50283332,580.36,Caremark (Sutton),SOCIAL SERVICES DAY CARE,Peoples Services,Home Care Services,A56019
London Borough of Sutton,30/10/2022,50283333,580.37,Caremark (Sutton),SOCIAL SERVICES DAY CARE,Peoples Services,Home Care Services,A56019
London Borough of Sutton,23/10/2022,50283362,846.38,Caremark (Sutton),SOCIAL SERVICES DAY CARE,Peoples Services,Home Care Services,A56019
London Borough of Sutton,30/10/2022,50283363,846.37,Caremark (Sutton),SOCIAL SERVICES DAY CARE,Peoples Services,Home Care Services,A56019
London Borough of Sutton,06/11/2022,50287460,"1,117.72",Caremark (Sutton),SOCIAL SERVICES DAY CARE,Peoples Services,Home Care Services,A56019
London Borough of Sutton,13/11/2022,50287461,"1,117.72",Caremark (Sutton),SOCIAL SERVICES DAY CARE,Peoples Services,Home Care Services,A56019
London Borough of Sutton,06/11/2022,50287462,929.7,Caremark (Sutton),SOCIAL SERVICES DAY CARE,Peoples Services,Home Care Services,A56019
London Borough of Sutton,13/11/2022,50287463,929.7,Caremark (Sutton),SOCIAL SERVICES DAY CARE,Peoples Services,Home Care Services,A56019
London Borough of Sutton,06/11/2022,50287464,984,Caremark (Sutton),SOCIAL SERVICES DAY CARE,Peoples Services,Home Care Services,A56019
London Borough of Sutton,13/11/2022,50287465,685,Caremark (Sutton),SOCIAL SERVICES DAY CARE,Peoples Services,Home Care Services,A56019
London Borough of Sutton,13/11/2022,50287472,938.37,Caremark (Sutton),SOCIAL SERVICES DAY CARE,Peoples Services,Home Care Services,A56019
London Borough of Sutton,23/10/2022,50287544,526.75,Caremark (Sutton),SOCIAL SERVICES DAY CARE,Peoples Services,Home Care Services,A56019
London Borough of Sutton,23/10/2022,50287545,"1,122.42",Caremark (Sutton),SOCIAL SERVICES DAY CARE,Peoples Services,Home Care Services,A56019
London Borough of Sutton,30/10/2022,50287546,"1,152.12",Caremark (Sutton),SOCIAL SERVICES DAY CARE,Peoples Services,Home Care Services,A56019
London Borough of Sutton,23/10/2022,50287549,929.7,Caremark (Sutton),SOCIAL SERVICES DAY CARE,Peoples Services,Home Care Services,A56019
London Borough of Sutton,30/10/2022,50287550,929.7,Caremark (Sutton),SOCIAL SERVICES DAY CARE,Peoples Services,Home Care Services,A56019
London Borough of Sutton,23/10/2022,50287551,938.37,Caremark (Sutton),SOCIAL SERVICES DAY CARE,Peoples Services,Home Care Services,A56019
London Borough of Sutton,25/11/2022,50286869,"5,621.56",Caretech Community Services Ltd,SOCIAL SERVICES RESIDENTIAL,Peoples Services,Residential Care - Ext Provider,A56114
London Borough of Sutton,25/11/2022,50286907,"5,879.88",Caretech Community Services Ltd,SOCIAL SERVICES RESIDENTIAL,Peoples Services,Residential Care - Ext Provider,A56114
London Borough of Sutton,25/11/2022,50286907,-710,Caretech Community Services Ltd,SOCIAL SERVICES RESIDENTIAL,Peoples Services,Residential Care - Client Cont ( Net Paymt ),A56113
London Borough of Sutton,25/11/2022,50286912,"-1,968.32",Caretech Community Services Ltd,SOCIAL SERVICES RESIDENTIAL,Peoples Services,Residential Care - Ext Provider,A56114
London Borough of Sutton,25/11/2022,50286912,219.4,Caretech Community Services Ltd,SOCIAL SERVICES RESIDENTIAL,Peoples Services,Residential Care - Client Cont ( Net Paymt ),A56113
London Borough of Sutton,25/11/2022,50287150,"6,030.96",Caretech Community Services Ltd,SOCIAL SERVICES RESIDENTIAL,Peoples Services,Residential Care - Ext Provider,A56114
London Borough of Sutton,25/11/2022,50287150,-627.8,Caretech Community Services Ltd,SOCIAL SERVICES RESIDENTIAL,Peoples Services,Residential Care - Client Cont ( Net Paymt ),A56113
London Borough of Sutton,08/11/2022,50277579,"4,076.70",Carew Academy,CHILDREN'S SERVICES - RESIDENTIAL,Peoples Services,Payments to Schools,A51013
London Borough of Sutton,08/11/2022,50277586,"11,296.86",Carew Academy,CHILDREN'S SERVICES - RESIDENTIAL,Peoples Services,Payments to Schools,A51013
London Borough of Sutton,18/11/2022,50282199,"1,770.00",Carew Academy,CHILDREN'S SERVICES - RESIDENTIAL,Resources,"Grants, Contributions & Donations",A47005
London Borough of Sutton,31/10/2022,50280391,"3,262.50",Caridon Young Living Ltd,CHILDREN'S SERVICES - RESIDENTIAL,Peoples Services,Approved Lodgings,A61000
London Borough of Sutton,31/10/2022,50280395,"5,369.65",Caridon Young Living Ltd,CHILDREN'S SERVICES - RESIDENTIAL,Peoples Services,Approved Lodgings,A61000
London Borough of Sutton,16/11/2022,50282107,"3,073.59",Care  Support Partners Ltd,SOCIAL SERVICES RESIDENTIAL,Peoples Services,Supported Living,A56088
London Borough of Sutton,07/11/2022,50278695,"1,075.75",Carlene House,SOCIAL SERVICES RESIDENTIAL,Peoples Services,Supported Living,A56088
London Borough of Sutton,07/11/2022,50278757,"1,158.50",Carlene House,SOCIAL SERVICES RESIDENTIAL,Peoples Services,Supported Living,A56088
London Borough of Sutton,07/11/2022,50278777,"1,324.00",Carlene House,SOCIAL SERVICES RESIDENTIAL,Peoples Services,Supported Living,A56088
London Borough of Sutton,25/11/2022,50286834,"5,684.08",Carlene House,SOCIAL SERVICES RESIDENTIAL,Peoples Services,Residential Care - Ext Provider,A56114
London Borough of Sutton,25/11/2022,50286909,"5,684.08",Carlene House,SOCIAL SERVICES RESIDENTIAL,Peoples Services,Residential Care - Ext Provider,A56114
London Borough of Sutton,25/11/2022,50286951,"5,684.08",Carlene House,SOCIAL SERVICES RESIDENTIAL,Peoples Services,Residential Care - Ext Provider,A56114
London Borough of Sutton,25/11/2022,50286985,"5,684.08",Carlene House,SOCIAL SERVICES RESIDENTIAL,Peoples Services,Residential Care - Ext Provider,A56114
London Borough of Sutton,25/11/2022,50286986,"5,684.08",Carlene House,SOCIAL SERVICES RESIDENTIAL,Peoples Services,Residential Care - Ext Provider,A56114
London Borough of Sutton,25/11/2022,50286994,"5,684.08",Carlene House,SOCIAL SERVICES RESIDENTIAL,Peoples Services,Residential Care - Ext Provider,A56114
London Borough of Sutton,25/11/2022,50287075,"5,684.08",Carlene House,SOCIAL SERVICES RESIDENTIAL,Peoples Services,Residential Care - Ext Provider,A56114
London Borough of Sutton,08/11/2022,50277878,845.78,REDACTED - PERSONAL DATA,GRANTS & EX GRATIA PAYMENTS,Peoples Services,Payment - Nursery Funding,A51056
London Borough of Sutton,21/10/2022,20034661,561,REDACTED - PERSONAL DATA,TEMP STAFF & CONSULTANCY,Health and Wellbeing,Professional Fees,A44066
London Borough of Sutton,08/11/2022,50277836,"1,973.48",REDACTED - PERSONAL DATA,GRANTS & EX GRATIA PAYMENTS,Peoples Services,Payment - Nursery Funding,A51056
London Borough of Sutton,07/11/2022,50278889,956.5,Carshalton Boys Sports College (Academy),GRANTS & EX GRATIA PAYMENTS,Peoples Services,Top-up Funding,A51016
London Borough of Sutton,18/11/2022,50282201,"5,325.00",Carshalton Boys Sports College (Academy),GRANTS & EX GRATIA PAYMENTS,Resources,"Grants, Contributions & Donations",A47005
London Borough of Sutton,27/07/2022,20036026,"7,045.89",Castleton Technology Ltd,FINANCIAL / INSURANCE INSTNS,HRA,Equipment And Materials Repairs & Maintenance,A40051
London Borough of Sutton,31/10/2022,50280384,"26,527.14",Catch 22 Charity Limited,CHILDREN'S SERVICES - RESIDENTIAL,Peoples Services,Residential Care-Children,A56115
London Borough of Sutton,14/11/2022,20036263,"1,050.00",Chana Property Limited,SUNDRY SUPPLIER - HOUSING,Environment Housing and Neighbourhoods,Rent Deposit Scheme,B32179
London Borough of Sutton,14/11/2022,20036263,"1,200.00",Chana Property Limited,SUNDRY SUPPLIER - HOUSING,Environment Housing and Neighbourhoods,Rent Deposit Scheme,B32179
London Borough of Sutton,27/10/2022,20035977,"2,884.00",REDACTED - PERSONAL DATA,SUNDRY SUPPLIER - EDUCATION,Peoples Services,Client Care/Assistance,A61011
London Borough of Sutton,08/11/2022,50277845,"2,932.02",Cheam Baptist Church Pre-School,GRANTS & EX GRATIA PAYMENTS,Peoples Services,Payment - Nursery Funding,A51056
London Borough of Sutton,08/11/2022,50277552,"26,500.95",Cheam Common Infants School -ACADEMY,GRANTS & EX GRATIA PAYMENTS,Peoples Services,Place Funding,A56110
London Borough of Sutton,07/11/2022,50278891,"1,445.63",Cheam Common Infants School -ACADEMY,GRANTS & EX GRATIA PAYMENTS,Peoples Services,Top-up Funding,A51016
London Borough of Sutton,18/11/2022,50282204,810,Cheam Common Junior Academy,GRANTS & EX GRATIA PAYMENTS,Resources,"Grants, Contributions & Donations",A47005
London Borough of Sutton,25/11/2022,50285931,"1,200.00",Cheam Common Junior Academy,GRANTS & EX GRATIA PAYMENTS,Peoples Services,Payments to Schools,A51013
London Borough of Sutton,25/11/2022,50285947,"1,818.86",Cheam Common Junior Academy,GRANTS & EX GRATIA PAYMENTS,Non-Service Cost Centres,Recharge-Teaching Staff,A10600
London Borough of Sutton,16/11/2022,20036484,"14,793.97",Cheam High School (Academy),GRANTS & EX GRATIA PAYMENTS,Peoples Services,Payments to Contractors,C14000
London Borough of Sutton,07/11/2022,50278903,"6,872.16",Cheam High School (Academy),GRANTS & EX GRATIA PAYMENTS,Peoples Services,Top-up Funding,A51016
London Borough of Sutton,18/11/2022,50282206,"4,245.00",Cheam High School (Academy),GRANTS & EX GRATIA PAYMENTS,Resources,"Grants, Contributions & Donations",A47005
London Borough of Sutton,15/11/2022,20036384,"6,861.47",Cheam Park Farm Primary School,GRANTS & EX GRATIA PAYMENTS,Health and Wellbeing,Fees,A44040
London Borough of Sutton,15/11/2022,20036387,"1,163.59",Cheam Park Farm Primary School,GRANTS & EX GRATIA PAYMENTS,Health and Wellbeing,Provider Contract Payments,A44290
London Borough of Sutton,15/11/2022,20036388,710.44,Cheam Park Farm Primary School,GRANTS & EX GRATIA PAYMENTS,Health and Wellbeing,Provider Contract Payments,A44290
London Borough of Sutton,08/11/2022,50277554,"13,977.60",Cheam Park Farm Primary School,GRANTS & EX GRATIA PAYMENTS,Peoples Services,Place Funding,A56110
London Borough of Sutton,07/11/2022,50278892,"5,597.73",Cheam Park Farm Primary School,GRANTS & EX GRATIA PAYMENTS,Peoples Services,Top-up Funding,A51016
London Borough of Sutton,18/11/2022,50282207,720,Cheam Park Farm Primary School,GRANTS & EX GRATIA PAYMENTS,Resources,"Grants, Contributions & Donations",A47005
London Borough of Sutton,25/11/2022,50286783,-735.68,Chegworth Nursing Home Bayswift Ltd,SOCIAL SERVICES RESIDENTIAL,Peoples Services,Nursing Care - 3rd party top up payment,A56023
London Borough of Sutton,25/11/2022,50286783,"3,720.16",Chegworth Nursing Home Bayswift Ltd,SOCIAL SERVICES RESIDENTIAL,Peoples Services,Nursing Care - Ext Provider,A56025
London Borough of Sutton,25/11/2022,50286795,"4,150.40",Chegworth Nursing Home Bayswift Ltd,SOCIAL SERVICES RESIDENTIAL,Peoples Services,Nursing Care - Ext Provider,A56025
London Borough of Sutton,25/11/2022,50286813,"3,821.24",Chegworth Nursing Home Bayswift Ltd,SOCIAL SERVICES RESIDENTIAL,Peoples Services,Nursing Care Short Term,A56026
London Borough of Sutton,25/11/2022,50286813,-836.76,Chegworth Nursing Home Bayswift Ltd,SOCIAL SERVICES RESIDENTIAL,Peoples Services,Nursing Care - 3rd party top up payment,A56023
London Borough of Sutton,25/11/2022,50286821,"3,753.20",Chegworth Nursing Home Bayswift Ltd,SOCIAL SERVICES RESIDENTIAL,Peoples Services,Nursing Care - Ext Provider,A56025
London Borough of Sutton,25/11/2022,50286821,-735.68,Chegworth Nursing Home Bayswift Ltd,SOCIAL SERVICES RESIDENTIAL,Peoples Services,Nursing Care - 3rd party top up payment,A56023
London Borough of Sutton,25/11/2022,50286864,"3,734.88",Chegworth Nursing Home Bayswift Ltd,SOCIAL SERVICES RESIDENTIAL,Peoples Services,Nursing Care Short Term,A56026
London Borough of Sutton,25/11/2022,50286864,-750.4,Chegworth Nursing Home Bayswift Ltd,SOCIAL SERVICES RESIDENTIAL,Peoples Services,Nursing Care - 3rd party top up payment,A56023
London Borough of Sutton,25/11/2022,50286892,-662.24,Chegworth Nursing Home Bayswift Ltd,SOCIAL SERVICES RESIDENTIAL,Peoples Services,Nursing Care - 3rd party top up payment,A56023
London Borough of Sutton,25/11/2022,50286892,"4,955.56",Chegworth Nursing Home Bayswift Ltd,SOCIAL SERVICES RESIDENTIAL,Peoples Services,Nursing Care Short Term,A56026
London Borough of Sutton,25/11/2022,50286925,"3,734.88",Chegworth Nursing Home Bayswift Ltd,SOCIAL SERVICES RESIDENTIAL,Peoples Services,Nursing Care Short Term,A56026
London Borough of Sutton,25/11/2022,50286925,-750.4,Chegworth Nursing Home Bayswift Ltd,SOCIAL SERVICES RESIDENTIAL,Peoples Services,Nursing Care - 3rd party top up payment,A56023
London Borough of Sutton,25/11/2022,50286930,"3,821.24",Chegworth Nursing Home Bayswift Ltd,SOCIAL SERVICES RESIDENTIAL,Peoples Services,Nursing Care Short Term,A56026
London Borough of Sutton,25/11/2022,50286930,-836.76,Chegworth Nursing Home Bayswift Ltd,SOCIAL SERVICES RESIDENTIAL,Peoples Services,Nursing Care - 3rd party top up payment,A56023
London Borough of Sutton,25/11/2022,50286974,"3,820.84",Chegworth Nursing Home Bayswift Ltd,SOCIAL SERVICES RESIDENTIAL,Peoples Services,Nursing Care - Ext Provider,A56025
London Borough of Sutton,25/11/2022,50286974,-836.76,Chegworth Nursing Home Bayswift Ltd,SOCIAL SERVICES RESIDENTIAL,Peoples Services,Nursing Care - 3rd party top up payment,A56023
London Borough of Sutton,25/11/2022,50287039,-632.64,Chegworth Nursing Home Bayswift Ltd,SOCIAL SERVICES RESIDENTIAL,Peoples Services,Nursing Care - 3rd party top up payment,A56023
London Borough of Sutton,25/11/2022,50287039,"3,919.08",Chegworth Nursing Home Bayswift Ltd,SOCIAL SERVICES RESIDENTIAL,Peoples Services,Nursing Care - Ext Provider,A56025
London Borough of Sutton,25/11/2022,50287056,"4,149.92",Chegworth Nursing Home Bayswift Ltd,SOCIAL SERVICES RESIDENTIAL,Peoples Services,Nursing Care - Ext Provider,A56025
London Borough of Sutton,25/11/2022,50287056,-750.4,Chegworth Nursing Home Bayswift Ltd,SOCIAL SERVICES RESIDENTIAL,Peoples Services,Nursing Care - 3rd party top up payment,A56023
London Borough of Sutton,25/11/2022,50287084,"3,665.20",Chegworth Nursing Home Bayswift Ltd,SOCIAL SERVICES RESIDENTIAL,Peoples Services,Nursing Care - Ext Provider,A56025
London Borough of Sutton,25/11/2022,50287084,-632.64,Chegworth Nursing Home Bayswift Ltd,SOCIAL SERVICES RESIDENTIAL,Peoples Services,Nursing Care - 3rd party top up payment,A56023
London Borough of Sutton,25/11/2022,50287100,"3,821.24",Chegworth Nursing Home Bayswift Ltd,SOCIAL SERVICES RESIDENTIAL,Peoples Services,Nursing Care Short Term,A56026
London Borough of Sutton,25/11/2022,50287100,-836.76,Chegworth Nursing Home Bayswift Ltd,SOCIAL SERVICES RESIDENTIAL,Peoples Services,Nursing Care - 3rd party top up payment,A56023
London Borough of Sutton,25/11/2022,50287107,"2,905.28",Chegworth Nursing Home Bayswift Ltd,SOCIAL SERVICES RESIDENTIAL,Peoples Services,Nursing Care Short Term,A56026
London Borough of Sutton,25/11/2022,50287114,"3,665.20",Chegworth Nursing Home Bayswift Ltd,SOCIAL SERVICES RESIDENTIAL,Peoples Services,Nursing Care - Ext Provider,A56025
London Borough of Sutton,25/11/2022,50287114,-632.64,Chegworth Nursing Home Bayswift Ltd,SOCIAL SERVICES RESIDENTIAL,Peoples Services,Nursing Care - 3rd party top up payment,A56023
London Borough of Sutton,25/11/2022,50287147,"3,848.24",Chegworth Nursing Home Bayswift Ltd,SOCIAL SERVICES RESIDENTIAL,Peoples Services,Nursing Care - Ext Provider,A56025
London Borough of Sutton,25/11/2022,50287147,-750.4,Chegworth Nursing Home Bayswift Ltd,SOCIAL SERVICES RESIDENTIAL,Peoples Services,Nursing Care - 3rd party top up payment,A56023
London Borough of Sutton,25/11/2022,50287149,"3,821.24",Chegworth Nursing Home Bayswift Ltd,SOCIAL SERVICES RESIDENTIAL,Peoples Services,Nursing Care Short Term,A56026
London Borough of Sutton,25/11/2022,50287149,-836.76,Chegworth Nursing Home Bayswift Ltd,SOCIAL SERVICES RESIDENTIAL,Peoples Services,Nursing Care - 3rd party top up payment,A56023
London Borough of Sutton,25/11/2022,50287169,"3,821.24",Chegworth Nursing Home Bayswift Ltd,SOCIAL SERVICES RESIDENTIAL,Peoples Services,Nursing Care Short Term,A56026
London Borough of Sutton,25/11/2022,50287169,-836.76,Chegworth Nursing Home Bayswift Ltd,SOCIAL SERVICES RESIDENTIAL,Peoples Services,Nursing Care - 3rd party top up payment,A56023
London Borough of Sutton,25/11/2022,50286780,"2,895.32",Cherry Lodge,SOCIAL SERVICES RESIDENTIAL,Peoples Services,Residential Care - Ext Provider,A56114
London Borough of Sutton,25/11/2022,50286780,-460.04,Cherry Lodge,SOCIAL SERVICES RESIDENTIAL,Peoples Services,Residential Care - Client Cont ( Net Paymt ),A56113
London Borough of Sutton,25/11/2022,50286799,"3,486.32",Cherry Lodge,SOCIAL SERVICES RESIDENTIAL,Peoples Services,Residential Care - Ext Provider,A56114
London Borough of Sutton,25/11/2022,50287033,"6,923.72",CHHG Ltd ,SOCIAL SERVICES RESIDENTIAL,Peoples Services,Nursing Care - Ext Provider,A56025
London Borough of Sutton,25/11/2022,50287033,-750.4,CHHG Ltd ,SOCIAL SERVICES RESIDENTIAL,Peoples Services,Nursing Care - 3rd party top up payment,A56023
London Borough of Sutton,25/11/2022,50287087,-735.68,CHHG Ltd ,SOCIAL SERVICES RESIDENTIAL,Peoples Services,Nursing Care - 3rd party top up payment,A56023
London Borough of Sutton,25/11/2022,50287087,"3,927.68",CHHG Ltd ,SOCIAL SERVICES RESIDENTIAL,Peoples Services,Nursing Care - Ext Provider,A56025
London Borough of Sutton,07/10/2022,50280379,"11,599.27",Children's Trust,CHILDREN'S SERVICES - DAY CARE,Peoples Services,Residential Care-Children,A56115
London Borough of Sutton,10/11/2022,50282014,"5,253.60",Children's Trust,CHILDREN'S SERVICES - DAY CARE,Peoples Services,Independent School Fees,A56002
London Borough of Sutton,10/11/2022,50282015,"4,410.60",Children's Trust,CHILDREN'S SERVICES - DAY CARE,Peoples Services,Independent School Fees,A56002
London Borough of Sutton,10/11/2022,50282016,"5,344.80",Children's Trust,CHILDREN'S SERVICES - DAY CARE,Peoples Services,Independent School Fees,A56002
London Borough of Sutton,08/11/2022,50277846,"2,819.25",Chiltern Day Nursery,GRANTS & EX GRATIA PAYMENTS,Peoples Services,Payment - Nursery Funding,A51056
London Borough of Sutton,17/11/2022,50284675,"7,151.32",Chipstead Valley Primary School,GRANTS & EX GRATIA PAYMENTS,Peoples Services,Top-up Funding,A51016
London Borough of Sutton,25/11/2022,50286798,"8,682.92",Choice Care Group (Surrey) Ltd,SOCIAL SERVICES RESIDENTIAL,Peoples Services,Residential Care - Ext Provider,A56114
London Borough of Sutton,25/11/2022,50286824,"7,512.24",Choice Care Group (Surrey) Ltd,SOCIAL SERVICES RESIDENTIAL,Peoples Services,Residential Care - Ext Provider,A56114
London Borough of Sutton,25/11/2022,50287053,"7,793.40",Choice Care Group (Surrey) Ltd,SOCIAL SERVICES RESIDENTIAL,Peoples Services,Residential Care - Ext Provider,A56114
London Borough of Sutton,25/11/2022,50287053,-367.8,Choice Care Group (Surrey) Ltd,SOCIAL SERVICES RESIDENTIAL,Peoples Services,Residential Care - Client Cont ( Net Paymt ),A56113
London Borough of Sutton,25/11/2022,50287065,"7,809.32",Choice Care Group (Surrey) Ltd,SOCIAL SERVICES RESIDENTIAL,Peoples Services,Residential Care - Ext Provider,A56114
London Borough of Sutton,10/10/2022,20035248,"2,055.00",Choice Support,GRANTS & EX GRATIA PAYMENTS,Peoples Services,Provider Contract Payments,A44290
London Borough of Sutton,10/10/2022,20035249,586.77,Choice Support,GRANTS & EX GRATIA PAYMENTS,Peoples Services,Provider Contract Payments,A44290
London Borough of Sutton,28/10/2022,20035250,"36,250.02",Choice Support,GRANTS & EX GRATIA PAYMENTS,Peoples Services,Imagine Sutton Mainstream,A56101
London Borough of Sutton,13/10/2022,20035252,"1,602.36",Choice Support,GRANTS & EX GRATIA PAYMENTS,Peoples Services,Provider Contract Payments,A44290
London Borough of Sutton,13/10/2022,20035253,"1,602.36",Choice Support,GRANTS & EX GRATIA PAYMENTS,Peoples Services,Provider Contract Payments,A44290
London Borough of Sutton,13/10/2022,20035254,"1,602.36",Choice Support,GRANTS & EX GRATIA PAYMENTS,Peoples Services,Provider Contract Payments,A44290
London Borough of Sutton,10/10/2022,20035304,"1,947.04",Choice Support,GRANTS & EX GRATIA PAYMENTS,Peoples Services,Provider Contract Payments,A44290
London Borough of Sutton,10/10/2022,20035305,"1,818.00",Choice Support,GRANTS & EX GRATIA PAYMENTS,Peoples Services,Provider Contract Payments,A44290
London Borough of Sutton,10/10/2022,20035306,"1,736.36",Choice Support,GRANTS & EX GRATIA PAYMENTS,Peoples Services,Provider Contract Payments,A44290
London Borough of Sutton,28/09/2022,50277072,"6,666.68",Choice Support,GRANTS & EX GRATIA PAYMENTS,Peoples Services,Supported Living,A56088
London Borough of Sutton,28/09/2022,50277072,889.72,Choice Support,GRANTS & EX GRATIA PAYMENTS,Peoples Services,Supported Living,A56088
London Borough of Sutton,28/09/2022,50277075,"2,282.01",Choice Support,GRANTS & EX GRATIA PAYMENTS,Peoples Services,Supported Living,A56088
London Borough of Sutton,28/09/2022,50277075,"1,458.00",Choice Support,GRANTS & EX GRATIA PAYMENTS,Peoples Services,Supported Living,A56088
London Borough of Sutton,28/09/2022,50277075,236.62,Choice Support,GRANTS & EX GRATIA PAYMENTS,Peoples Services,Supported Living,A56088
London Borough of Sutton,28/09/2022,50277075,613.37,Choice Support,GRANTS & EX GRATIA PAYMENTS,Peoples Services,Supported Living,A56088
London Borough of Sutton,28/09/2022,50277078,"6,123.60",Choice Support,GRANTS & EX GRATIA PAYMENTS,Peoples Services,Supported Living,A56088
London Borough of Sutton,28/09/2022,50277078,258.43,Choice Support,GRANTS & EX GRATIA PAYMENTS,Peoples Services,Supported Living,A56088
London Borough of Sutton,28/09/2022,50277078,613.37,Choice Support,GRANTS & EX GRATIA PAYMENTS,Peoples Services,Supported Living,A56088
London Borough of Sutton,28/09/2022,50277079,"1,640.27",Choice Support,GRANTS & EX GRATIA PAYMENTS,Peoples Services,Supported Living,A56088
London Borough of Sutton,28/09/2022,50277079,"1,713.17",Choice Support,GRANTS & EX GRATIA PAYMENTS,Peoples Services,Supported Living,A56088
London Borough of Sutton,28/09/2022,50277079,236.62,Choice Support,GRANTS & EX GRATIA PAYMENTS,Peoples Services,Supported Living,A56088
London Borough of Sutton,28/09/2022,50277079,635.74,Choice Support,GRANTS & EX GRATIA PAYMENTS,Peoples Services,Supported Living,A56088
London Borough of Sutton,28/09/2022,50277080,215.65,Choice Support,GRANTS & EX GRATIA PAYMENTS,Peoples Services,Supported Living,A56088
London Borough of Sutton,28/09/2022,50277080,"5,496.65",Choice Support,GRANTS & EX GRATIA PAYMENTS,Peoples Services,Supported Living,A56088
London Borough of Sutton,28/09/2022,50277086,"3,463.50",Choice Support,GRANTS & EX GRATIA PAYMENTS,Peoples Services,Supported Living,A56088
London Borough of Sutton,28/09/2022,50277086,"3,032.65",Choice Support,GRANTS & EX GRATIA PAYMENTS,Peoples Services,Supported Living,A56088
London Borough of Sutton,28/09/2022,50277086,236.62,Choice Support,GRANTS & EX GRATIA PAYMENTS,Peoples Services,Supported Living,A56088
London Borough of Sutton,28/09/2022,50277086,635.23,Choice Support,GRANTS & EX GRATIA PAYMENTS,Peoples Services,Supported Living,A56088
London Borough of Sutton,28/09/2022,50277093,"5,624.23",Choice Support,GRANTS & EX GRATIA PAYMENTS,Peoples Services,Supported Living,A56088
London Borough of Sutton,28/09/2022,50277093,889.97,Choice Support,GRANTS & EX GRATIA PAYMENTS,Peoples Services,Supported Living,A56088
London Borough of Sutton,28/09/2022,50277094,"2,744.14",Choice Support,GRANTS & EX GRATIA PAYMENTS,Peoples Services,Supported Living,A56088
London Borough of Sutton,28/09/2022,50277094,"1,567.37",Choice Support,GRANTS & EX GRATIA PAYMENTS,Peoples Services,Supported Living,A56088
London Borough of Sutton,28/09/2022,50277094,236.62,Choice Support,GRANTS & EX GRATIA PAYMENTS,Peoples Services,Supported Living,A56088
London Borough of Sutton,28/09/2022,50277094,613.37,Choice Support,GRANTS & EX GRATIA PAYMENTS,Peoples Services,Supported Living,A56088
London Borough of Sutton,28/09/2022,50277096,"5,646.08",Choice Support,GRANTS & EX GRATIA PAYMENTS,Peoples Services,Supported Living,A56088
London Borough of Sutton,28/09/2022,50277096,889.72,Choice Support,GRANTS & EX GRATIA PAYMENTS,Peoples Services,Supported Living,A56088
London Borough of Sutton,28/10/2022,50278784,"2,747.91",Choice Support,GRANTS & EX GRATIA PAYMENTS,Peoples Services,Home Care Services,A56019
London Borough of Sutton,28/10/2022,50278833,"2,835.61",Choice Support,GRANTS & EX GRATIA PAYMENTS,Peoples Services,Supported Living,A56088
London Borough of Sutton,28/10/2022,50278833,"1,619.62",Choice Support,GRANTS & EX GRATIA PAYMENTS,Peoples Services,Supported Living,A56088
London Borough of Sutton,28/10/2022,50278833,244.5,Choice Support,GRANTS & EX GRATIA PAYMENTS,Peoples Services,Supported Living,A56088
London Borough of Sutton,28/10/2022,50278833,633.82,Choice Support,GRANTS & EX GRATIA PAYMENTS,Peoples Services,Supported Living,A56088
London Borough of Sutton,28/10/2022,50278834,"6,888.91",Choice Support,GRANTS & EX GRATIA PAYMENTS,Peoples Services,Supported Living,A56088
London Borough of Sutton,28/10/2022,50278834,919.37,Choice Support,GRANTS & EX GRATIA PAYMENTS,Peoples Services,Supported Living,A56088
London Borough of Sutton,28/10/2022,50278835,"6,327.72",Choice Support,GRANTS & EX GRATIA PAYMENTS,Peoples Services,Supported Living,A56088
London Borough of Sutton,28/10/2022,50278835,267.04,Choice Support,GRANTS & EX GRATIA PAYMENTS,Peoples Services,Supported Living,A56088
London Borough of Sutton,28/10/2022,50278835,633.82,Choice Support,GRANTS & EX GRATIA PAYMENTS,Peoples Services,Supported Living,A56088
London Borough of Sutton,28/10/2022,50278836,"5,811.70",Choice Support,GRANTS & EX GRATIA PAYMENTS,Peoples Services,Supported Living,A56088
London Borough of Sutton,28/10/2022,50278836,919.64,Choice Support,GRANTS & EX GRATIA PAYMENTS,Peoples Services,Supported Living,A56088
London Borough of Sutton,28/10/2022,50278837,"5,834.29",Choice Support,GRANTS & EX GRATIA PAYMENTS,Peoples Services,Supported Living,A56088
London Borough of Sutton,28/10/2022,50278837,919.37,Choice Support,GRANTS & EX GRATIA PAYMENTS,Peoples Services,Supported Living,A56088
London Borough of Sutton,28/10/2022,50278838,"3,578.95",Choice Support,GRANTS & EX GRATIA PAYMENTS,Peoples Services,Supported Living,A56088
London Borough of Sutton,28/10/2022,50278838,"3,133.75",Choice Support,GRANTS & EX GRATIA PAYMENTS,Peoples Services,Supported Living,A56088
London Borough of Sutton,28/10/2022,50278838,267.08,Choice Support,GRANTS & EX GRATIA PAYMENTS,Peoples Services,Supported Living,A56088
London Borough of Sutton,28/10/2022,50278838,633.82,Choice Support,GRANTS & EX GRATIA PAYMENTS,Peoples Services,Supported Living,A56088
London Borough of Sutton,28/10/2022,50278839,"2,358.08",Choice Support,GRANTS & EX GRATIA PAYMENTS,Peoples Services,Supported Living,A56088
London Borough of Sutton,28/10/2022,50278839,"1,506.60",Choice Support,GRANTS & EX GRATIA PAYMENTS,Peoples Services,Supported Living,A56088
London Borough of Sutton,28/10/2022,50278839,244.5,Choice Support,GRANTS & EX GRATIA PAYMENTS,Peoples Services,Supported Living,A56088
London Borough of Sutton,28/10/2022,50278839,633.82,Choice Support,GRANTS & EX GRATIA PAYMENTS,Peoples Services,Supported Living,A56088
London Borough of Sutton,28/10/2022,50278840,"1,694.95",Choice Support,GRANTS & EX GRATIA PAYMENTS,Peoples Services,Supported Living,A56088
London Borough of Sutton,28/10/2022,50278840,"1,770.28",Choice Support,GRANTS & EX GRATIA PAYMENTS,Peoples Services,Supported Living,A56088
London Borough of Sutton,28/10/2022,50278840,267.61,Choice Support,GRANTS & EX GRATIA PAYMENTS,Peoples Services,Supported Living,A56088
London Borough of Sutton,28/10/2022,50278840,633.82,Choice Support,GRANTS & EX GRATIA PAYMENTS,Peoples Services,Supported Living,A56088
London Borough of Sutton,28/10/2022,50278841,887.35,Choice Support,GRANTS & EX GRATIA PAYMENTS,Peoples Services,Supported Living,A56088
London Borough of Sutton,28/10/2022,50278841,"5,015.36",Choice Support,GRANTS & EX GRATIA PAYMENTS,Peoples Services,Supported Living,A56088
London Borough of Sutton,16/11/2022,50282052,"4,297.89",Choice Support,GRANTS & EX GRATIA PAYMENTS,Peoples Services,Supported Living,A56088
London Borough of Sutton,16/11/2022,50282053,556.33,Choice Support,GRANTS & EX GRATIA PAYMENTS,Peoples Services,Supported Living,A56088
London Borough of Sutton,16/11/2022,50282053,"3,691.24",Choice Support,GRANTS & EX GRATIA PAYMENTS,Peoples Services,Supported Living,A56088
London Borough of Sutton,16/11/2022,50282056,545.7,Choice Support,GRANTS & EX GRATIA PAYMENTS,Peoples Services,Supported Living,A56088
London Borough of Sutton,16/11/2022,50282056,"1,180.24",Choice Support,GRANTS & EX GRATIA PAYMENTS,Peoples Services,Supported Living,A56088
London Borough of Sutton,16/11/2022,50282056,"3,147.26",Choice Support,GRANTS & EX GRATIA PAYMENTS,Peoples Services,Supported Living,A56088
London Borough of Sutton,16/11/2022,50282057,873.13,Choice Support,GRANTS & EX GRATIA PAYMENTS,Peoples Services,Supported Living,A56088
London Borough of Sutton,16/11/2022,50282057,840.47,Choice Support,GRANTS & EX GRATIA PAYMENTS,Peoples Services,Supported Living,A56088
London Borough of Sutton,16/11/2022,50282057,"3,218.79",Choice Support,GRANTS & EX GRATIA PAYMENTS,Peoples Services,Supported Living,A56088
London Borough of Sutton,16/11/2022,50282062,478.24,Choice Support,GRANTS & EX GRATIA PAYMENTS,Peoples Services,Supported Living,A56088
London Borough of Sutton,16/11/2022,50282062,128.96,Choice Support,GRANTS & EX GRATIA PAYMENTS,Peoples Services,Supported Living,A56088
London Borough of Sutton,16/11/2022,50282062,"1,659.26",Choice Support,GRANTS & EX GRATIA PAYMENTS,Peoples Services,Supported Living,A56088
London Borough of Sutton,16/11/2022,50282062,"2,360.31",Choice Support,GRANTS & EX GRATIA PAYMENTS,Peoples Services,Supported Living,A56088
London Borough of Sutton,16/11/2022,50282063,919.29,Choice Support,GRANTS & EX GRATIA PAYMENTS,Peoples Services,Supported Living,A56088
London Borough of Sutton,16/11/2022,50282063,"6,079.11",Choice Support,GRANTS & EX GRATIA PAYMENTS,Peoples Services,Supported Living,A56088
London Borough of Sutton,16/11/2022,50282064,478.24,Choice Support,GRANTS & EX GRATIA PAYMENTS,Peoples Services,Supported Living,A56088
London Borough of Sutton,16/11/2022,50282064,128.96,Choice Support,GRANTS & EX GRATIA PAYMENTS,Peoples Services,Supported Living,A56088
London Borough of Sutton,16/11/2022,50282064,"1,624.03",Choice Support,GRANTS & EX GRATIA PAYMENTS,Peoples Services,Supported Living,A56088
London Borough of Sutton,16/11/2022,50282064,"2,295.51",Choice Support,GRANTS & EX GRATIA PAYMENTS,Peoples Services,Supported Living,A56088
London Borough of Sutton,16/11/2022,50282065,431.74,Choice Support,GRANTS & EX GRATIA PAYMENTS,Peoples Services,Supported Living,A56088
London Borough of Sutton,16/11/2022,50282065,"5,732.91",Choice Support,GRANTS & EX GRATIA PAYMENTS,Peoples Services,Supported Living,A56088
London Borough of Sutton,16/11/2022,50282068,545.7,Choice Support,GRANTS & EX GRATIA PAYMENTS,Peoples Services,Supported Living,A56088
London Borough of Sutton,16/11/2022,50282068,"1,180.24",Choice Support,GRANTS & EX GRATIA PAYMENTS,Peoples Services,Supported Living,A56088
London Borough of Sutton,16/11/2022,50282068,"2,718.09",Choice Support,GRANTS & EX GRATIA PAYMENTS,Peoples Services,Supported Living,A56088
London Borough of Sutton,16/11/2022,50282076,545.7,Choice Support,GRANTS & EX GRATIA PAYMENTS,Peoples Services,Supported Living,A56088
London Borough of Sutton,16/11/2022,50282076,"1,180.24",Choice Support,GRANTS & EX GRATIA PAYMENTS,Peoples Services,Supported Living,A56088
London Borough of Sutton,16/11/2022,50282076,"3,111.51",Choice Support,GRANTS & EX GRATIA PAYMENTS,Peoples Services,Supported Living,A56088
London Borough of Sutton,16/11/2022,50282081,873.13,Choice Support,GRANTS & EX GRATIA PAYMENTS,Peoples Services,Supported Living,A56088
London Borough of Sutton,16/11/2022,50282081,840.47,Choice Support,GRANTS & EX GRATIA PAYMENTS,Peoples Services,Supported Living,A56088
London Borough of Sutton,16/11/2022,50282081,"3,719.49",Choice Support,GRANTS & EX GRATIA PAYMENTS,Peoples Services,Supported Living,A56088
London Borough of Sutton,16/11/2022,50282094,"1,286.31",Choice Support,GRANTS & EX GRATIA PAYMENTS,Peoples Services,Supported Living,A56088
London Borough of Sutton,16/11/2022,50282094,"9,599.30",Choice Support,GRANTS & EX GRATIA PAYMENTS,Peoples Services,Supported Living,A56088
London Borough of Sutton,16/11/2022,50282094,"-3,090.16",Choice Support,GRANTS & EX GRATIA PAYMENTS,Peoples Services,Supported Living,A56088
London Borough of Sutton,16/11/2022,50282095,545.7,Choice Support,GRANTS & EX GRATIA PAYMENTS,Peoples Services,Supported Living,A56088
London Borough of Sutton,16/11/2022,50282095,"1,180.24",Choice Support,GRANTS & EX GRATIA PAYMENTS,Peoples Services,Supported Living,A56088
London Borough of Sutton,16/11/2022,50282095,"3,111.51",Choice Support,GRANTS & EX GRATIA PAYMENTS,Peoples Services,Supported Living,A56088
London Borough of Sutton,16/11/2022,50282098,873.13,Choice Support,GRANTS & EX GRATIA PAYMENTS,Peoples Services,Supported Living,A56088
London Borough of Sutton,16/11/2022,50282098,"4,148.66",Choice Support,GRANTS & EX GRATIA PAYMENTS,Peoples Services,Supported Living,A56088
London Borough of Sutton,16/11/2022,50282101,545.7,Choice Support,GRANTS & EX GRATIA PAYMENTS,Peoples Services,Supported Living,A56088
London Borough of Sutton,16/11/2022,50282101,"1,180.24",Choice Support,GRANTS & EX GRATIA PAYMENTS,Peoples Services,Supported Living,A56088
London Borough of Sutton,16/11/2022,50282101,"3,218.79",Choice Support,GRANTS & EX GRATIA PAYMENTS,Peoples Services,Supported Living,A56088
London Borough of Sutton,16/11/2022,50282103,478.24,Choice Support,GRANTS & EX GRATIA PAYMENTS,Peoples Services,Supported Living,A56088
London Borough of Sutton,16/11/2022,50282103,118.37,Choice Support,GRANTS & EX GRATIA PAYMENTS,Peoples Services,Supported Living,A56088
London Borough of Sutton,16/11/2022,50282103,"2,411.06",Choice Support,GRANTS & EX GRATIA PAYMENTS,Peoples Services,Supported Living,A56088
London Borough of Sutton,16/11/2022,50282103,"1,771.71",Choice Support,GRANTS & EX GRATIA PAYMENTS,Peoples Services,Supported Living,A56088
London Borough of Sutton,16/11/2022,50282104,478.24,Choice Support,GRANTS & EX GRATIA PAYMENTS,Peoples Services,Supported Living,A56088
London Borough of Sutton,16/11/2022,50282104,118.37,Choice Support,GRANTS & EX GRATIA PAYMENTS,Peoples Services,Supported Living,A56088
London Borough of Sutton,16/11/2022,50282104,"1,820.74",Choice Support,GRANTS & EX GRATIA PAYMENTS,Peoples Services,Supported Living,A56088
London Borough of Sutton,16/11/2022,50282104,"2,044.29",Choice Support,GRANTS & EX GRATIA PAYMENTS,Peoples Services,Supported Living,A56088
London Borough of Sutton,16/11/2022,50282112,873.13,Choice Support,GRANTS & EX GRATIA PAYMENTS,Peoples Services,Supported Living,A56088
London Borough of Sutton,16/11/2022,50282112,840.47,Choice Support,GRANTS & EX GRATIA PAYMENTS,Peoples Services,Supported Living,A56088
London Borough of Sutton,16/11/2022,50282112,"4,148.66",Choice Support,GRANTS & EX GRATIA PAYMENTS,Peoples Services,Supported Living,A56088
London Borough of Sutton,16/11/2022,50282114,873.13,Choice Support,GRANTS & EX GRATIA PAYMENTS,Peoples Services,Supported Living,A56088
London Borough of Sutton,16/11/2022,50282114,840.47,Choice Support,GRANTS & EX GRATIA PAYMENTS,Peoples Services,Supported Living,A56088
London Borough of Sutton,16/11/2022,50282114,"2,467.76",Choice Support,GRANTS & EX GRATIA PAYMENTS,Peoples Services,Supported Living,A56088
London Borough of Sutton,16/11/2022,50282118,"3,452.40",Choice Support,GRANTS & EX GRATIA PAYMENTS,Peoples Services,Supported Living,A56088
London Borough of Sutton,16/11/2022,50282120,873.13,Choice Support,GRANTS & EX GRATIA PAYMENTS,Peoples Services,Supported Living,A56088
London Borough of Sutton,16/11/2022,50282120,840.47,Choice Support,GRANTS & EX GRATIA PAYMENTS,Peoples Services,Supported Living,A56088
London Borough of Sutton,16/11/2022,50282120,"3,469.16",Choice Support,GRANTS & EX GRATIA PAYMENTS,Peoples Services,Supported Living,A56088
London Borough of Sutton,16/11/2022,50282121,545.7,Choice Support,GRANTS & EX GRATIA PAYMENTS,Peoples Services,Supported Living,A56088
London Borough of Sutton,16/11/2022,50282121,"1,180.24",Choice Support,GRANTS & EX GRATIA PAYMENTS,Peoples Services,Supported Living,A56088
London Borough of Sutton,16/11/2022,50282121,"3,290.31",Choice Support,GRANTS & EX GRATIA PAYMENTS,Peoples Services,Supported Living,A56088
London Borough of Sutton,16/11/2022,50282122,478.24,Choice Support,GRANTS & EX GRATIA PAYMENTS,Peoples Services,Supported Living,A56088
London Borough of Sutton,16/11/2022,50282122,128.96,Choice Support,GRANTS & EX GRATIA PAYMENTS,Peoples Services,Supported Living,A56088
London Borough of Sutton,16/11/2022,50282122,"1,633.20",Choice Support,GRANTS & EX GRATIA PAYMENTS,Peoples Services,Supported Living,A56088
London Borough of Sutton,16/11/2022,50282122,"2,325.09",Choice Support,GRANTS & EX GRATIA PAYMENTS,Peoples Services,Supported Living,A56088
London Borough of Sutton,16/11/2022,50282123,478.24,Choice Support,GRANTS & EX GRATIA PAYMENTS,Peoples Services,Supported Living,A56088
London Borough of Sutton,16/11/2022,50282123,128.96,Choice Support,GRANTS & EX GRATIA PAYMENTS,Peoples Services,Supported Living,A56088
London Borough of Sutton,16/11/2022,50282123,"1,606.41",Choice Support,GRANTS & EX GRATIA PAYMENTS,Peoples Services,Supported Living,A56088
London Borough of Sutton,16/11/2022,50282123,"2,078.49",Choice Support,GRANTS & EX GRATIA PAYMENTS,Peoples Services,Supported Living,A56088
London Borough of Sutton,16/11/2022,50282129,545.7,Choice Support,GRANTS & EX GRATIA PAYMENTS,Peoples Services,Supported Living,A56088
London Borough of Sutton,16/11/2022,50282129,"1,180.24",Choice Support,GRANTS & EX GRATIA PAYMENTS,Peoples Services,Supported Living,A56088
London Borough of Sutton,16/11/2022,50282129,"5,221.59",Choice Support,GRANTS & EX GRATIA PAYMENTS,Peoples Services,Supported Living,A56088
London Borough of Sutton,25/11/2022,50286746,"5,716.12",Choice Support,GRANTS & EX GRATIA PAYMENTS,Peoples Services,Residential Care - Ext Provider,A56114
London Borough of Sutton,08/11/2022,50277779,"1,287.30",Christchurch Fledgelings Pre-School,GRANTS & EX GRATIA PAYMENTS,Peoples Services,Payment - Nursery Funding,A51056
London Borough of Sutton,08/11/2022,50277847,"7,048.13",Christchurch Fledgelings Pre-School,GRANTS & EX GRATIA PAYMENTS,Peoples Services,Payment - Nursery Funding,A51056
London Borough of Sutton,08/10/2022,20035453,"1,096.98",REDACTED - PERSONAL DATA,GRANTS & EX GRATIA PAYMENTS,Environment Housing and Neighbourhoods,Temporary Protection - Homeless Persons,A62028
London Borough of Sutton,08/11/2022,20036214,"1,096.98",REDACTED - PERSONAL DATA,GRANTS & EX GRATIA PAYMENTS,Environment Housing and Neighbourhoods,Temporary Protection - Homeless Persons,A62028
London Borough of Sutton,01/11/2022,20035362,"2,564.51",Chroma Vision Limited,AGRICULTURAL & ESTATE SERVICES,Environment Housing and Neighbourhoods,Other Capital Expenditure,C20002
London Borough of Sutton,08/11/2022,50277548,"11,827.20",Barrow Hedges Primary School Academy,GRANTS & EX GRATIA PAYMENTS,Peoples Services,Place Funding,A56110
London Borough of Sutton,07/11/2022,50278887,"2,576.03",Barrow Hedges Primary School Academy,GRANTS & EX GRATIA PAYMENTS,Peoples Services,Top-up Funding,A51016
London Borough of Sutton,18/11/2022,50282196,960,Barrow Hedges Primary School Academy,GRANTS & EX GRATIA PAYMENTS,Resources,"Grants, Contributions & Donations",A47005
London Borough of Sutton,20/10/2022,20035420,"1,631.40",City & Guilds,SUBSCRIPTIONS & PUBLICATIONS,Health and Wellbeing,Examination Fees,A44200
London Borough of Sutton,13/10/2022,20034249,"12,024.55",City of London Corporation,CENTRAL & LOCAL GOVERNMENT,Environment Housing and Neighbourhoods,Hazardous Waste Disposal,A56069
London Borough of Sutton,26/10/2022,20034956,"15,568.70",City of London Corporation,CENTRAL & LOCAL GOVERNMENT,Health and Wellbeing,Provider Contract Payments,A44290
London Borough of Sutton,31/10/2022,20035596,437.33,City Sprint UK (Excel) Ltd,DELIVERY AND COURIER SERVICES,Resources,Printing,A43010
London Borough of Sutton,31/10/2022,20036535,"3,207.14",City Sprint UK (Excel) Ltd,DELIVERY AND COURIER SERVICES,Health and Wellbeing,Hire of Transport - Non Staff,A32000
London Borough of Sutton,19/10/2022,20036492,-521.54,Civica UK Ltd,BUSINESS & COMPUTER SYSTEMS,Resources,IT Software Purchase,A45040
London Borough of Sutton,29/09/2022,20036493,"-3,061.59",Civica UK Ltd,BUSINESS & COMPUTER SYSTEMS,Resources,IT Software Purchase,A45040
London Borough of Sutton,19/10/2022,20036494,-521.54,Civica UK Ltd,BUSINESS & COMPUTER SYSTEMS,Resources,IT Software Purchase,A45040
London Borough of Sutton,23/02/2022,20037194,"80,822.00",Civica UK Ltd,BUSINESS & COMPUTER SYSTEMS,Resources,IT Software Purchase,A45040
London Borough of Sutton,25/11/2022,50286796,-735.68,Claremont Care Svs Ltd,SOCIAL SERVICES RESIDENTIAL,Peoples Services,Nursing Care - 3rd party top up payment,A56023
London Borough of Sutton,25/11/2022,50286796,"5,367.84",Claremont Care Svs Ltd,SOCIAL SERVICES RESIDENTIAL,Peoples Services,Nursing Care - Ext Provider,A56025
London Borough of Sutton,25/11/2022,50286949,"6,236.76",Claremont Care Svs Ltd,SOCIAL SERVICES RESIDENTIAL,Peoples Services,Nursing Care Short Term,A56026
London Borough of Sutton,25/11/2022,50286949,-836.76,Claremont Care Svs Ltd,SOCIAL SERVICES RESIDENTIAL,Peoples Services,Nursing Care - 3rd party top up payment,A56023
London Borough of Sutton,25/11/2022,50286963,"6,236.76",Claremont Care Svs Ltd,SOCIAL SERVICES RESIDENTIAL,Peoples Services,Nursing Care - Ext Provider,A56025
London Borough of Sutton,25/11/2022,50286963,-836.76,Claremont Care Svs Ltd,SOCIAL SERVICES RESIDENTIAL,Peoples Services,Nursing Care - 3rd party top up payment,A56023
London Borough of Sutton,25/11/2022,50286998,"4,525.36",Claremont Care Svs Ltd,SOCIAL SERVICES RESIDENTIAL,Peoples Services,Nursing Care - Ext Provider,A56025
London Borough of Sutton,25/11/2022,50286998,-750.4,Claremont Care Svs Ltd,SOCIAL SERVICES RESIDENTIAL,Peoples Services,Nursing Care - 3rd party top up payment,A56023
London Borough of Sutton,25/11/2022,50287034,-382.64,Claremont Care Svs Ltd,SOCIAL SERVICES RESIDENTIAL,Peoples Services,Nursing Care - 3rd party top up payment,A56023
London Borough of Sutton,25/11/2022,50287034,"2,466.84",Claremont Care Svs Ltd,SOCIAL SERVICES RESIDENTIAL,Peoples Services,Nursing Care - Ext Provider,A56025
London Borough of Sutton,25/11/2022,50287034,-248.54,Claremont Care Svs Ltd,SOCIAL SERVICES RESIDENTIAL,Peoples Services,Nursing Care - 3rd party top up payment,A56023
London Borough of Sutton,25/11/2022,50287093,"3,848.24",Claremont Care Svs Ltd,SOCIAL SERVICES RESIDENTIAL,Peoples Services,Nursing Care - Ext Provider,A56025
London Borough of Sutton,25/11/2022,50287093,-750.4,Claremont Care Svs Ltd,SOCIAL SERVICES RESIDENTIAL,Peoples Services,Nursing Care - 3rd party top up payment,A56023
London Borough of Sutton,25/11/2022,50287102,"6,487.64",Claremont Care Svs Ltd,SOCIAL SERVICES RESIDENTIAL,Peoples Services,Nursing Care - Ext Provider,A56025
London Borough of Sutton,25/11/2022,50287102,-750.4,Claremont Care Svs Ltd,SOCIAL SERVICES RESIDENTIAL,Peoples Services,Nursing Care - 3rd party top up payment,A56023
London Borough of Sutton,25/11/2022,50287129,"14,613.88",Claremont Care Svs Ltd,SOCIAL SERVICES RESIDENTIAL,Peoples Services,Nursing Care - Ext Provider,A56025
London Borough of Sutton,25/11/2022,50287129,"-11,424.00",Claremont Care Svs Ltd,SOCIAL SERVICES RESIDENTIAL,Peoples Services,Nursing Care - 3rd party top up payment,A56023
London Borough of Sutton,25/11/2022,50287166,"6,513.96",Claremont Care Svs Ltd,SOCIAL SERVICES RESIDENTIAL,Peoples Services,Nursing Care - Ext Provider,A56025
London Borough of Sutton,25/11/2022,50287166,-836.76,Claremont Care Svs Ltd,SOCIAL SERVICES RESIDENTIAL,Peoples Services,Nursing Care - 3rd party top up payment,A56023
London Borough of Sutton,25/11/2022,50286678,-735.68,Bondcare (London) Ltd,SOCIAL SERVICES RESIDENTIAL,Peoples Services,Nursing Care - 3rd party top up payment,A56023
London Borough of Sutton,25/11/2022,50286678,"3,720.16",Bondcare (London) Ltd,SOCIAL SERVICES RESIDENTIAL,Peoples Services,Nursing Care - Ext Provider,A56025
London Borough of Sutton,20/11/2022,50284701,"1,344.00",Clark Interventions Limited,CHILDREN'S SERVICES - SEN SERVICES,Peoples Services,Independent School Fees,A56002
London Borough of Sutton,26/10/2022,50277258,"1,518.90",Classroom Teachers Ltd,ACADEMIC INSTNS - OTHER,Peoples Services,Independent School Fees,A56002
London Borough of Sutton,09/11/2022,50281996,759.45,Classroom Teachers Ltd,ACADEMIC INSTNS - OTHER,Peoples Services,Independent School Fees,A56002
London Borough of Sutton,16/11/2022,50284684,759.45,Classroom Teachers Ltd,ACADEMIC INSTNS - OTHER,Peoples Services,Independent School Fees,A56002
London Borough of Sutton,30/10/2022,50276971,852.23,Clovecare Ltd,SOCIAL SERVICES RESIDENTIAL,Peoples Services,Home Care Services,A56019
London Borough of Sutton,30/10/2022,50276971,47.88,Clovecare Ltd,SOCIAL SERVICES RESIDENTIAL,Peoples Services,Home Care Services,A56019
London Borough of Sutton,30/10/2022,50276989,597,Clovecare Ltd,SOCIAL SERVICES RESIDENTIAL,Peoples Services,Home Care Services,A56019
London Borough of Sutton,30/10/2022,50277010,597,Clovecare Ltd,SOCIAL SERVICES RESIDENTIAL,Peoples Services,Home Care Services,A56019
London Borough of Sutton,06/11/2022,50281843,597,Clovecare Ltd,SOCIAL SERVICES RESIDENTIAL,Peoples Services,Home Care Services,A56019
London Borough of Sutton,13/11/2022,50281844,597,Clovecare Ltd,SOCIAL SERVICES RESIDENTIAL,Peoples Services,Home Care Services,A56019
London Borough of Sutton,06/11/2022,50281849,865.56,Clovecare Ltd,SOCIAL SERVICES RESIDENTIAL,Peoples Services,Home Care Services,A56019
London Borough of Sutton,06/11/2022,50281849,48.62,Clovecare Ltd,SOCIAL SERVICES RESIDENTIAL,Peoples Services,Home Care Services,A56019
London Borough of Sutton,13/11/2022,50281850,852.25,Clovecare Ltd,SOCIAL SERVICES RESIDENTIAL,Peoples Services,Home Care Services,A56019
London Borough of Sutton,13/11/2022,50281850,47.88,Clovecare Ltd,SOCIAL SERVICES RESIDENTIAL,Peoples Services,Home Care Services,A56019
London Borough of Sutton,06/11/2022,50281869,796,Clovecare Ltd,SOCIAL SERVICES RESIDENTIAL,Peoples Services,Home Care Services,A56019
London Borough of Sutton,13/11/2022,50281870,796,Clovecare Ltd,SOCIAL SERVICES RESIDENTIAL,Peoples Services,Home Care Services,A56019
London Borough of Sutton,20/11/2022,50287429,852.23,Clovecare Ltd,SOCIAL SERVICES RESIDENTIAL,Peoples Services,Home Care Services,A56019
London Borough of Sutton,20/11/2022,50287429,47.88,Clovecare Ltd,SOCIAL SERVICES RESIDENTIAL,Peoples Services,Home Care Services,A56019
London Borough of Sutton,20/11/2022,50287454,597,Clovecare Ltd,SOCIAL SERVICES RESIDENTIAL,Peoples Services,Home Care Services,A56019
London Borough of Sutton,20/11/2022,50287508,597,Clovecare Ltd,SOCIAL SERVICES RESIDENTIAL,Peoples Services,Home Care Services,A56019
London Borough of Sutton,25/11/2022,50286653,"4,234.16",Coast Care Homes Ltd,SOCIAL SERVICES RESIDENTIAL,Peoples Services,Residential Care - Ext Provider,A56114
London Borough of Sutton,25/11/2022,50286691,"12,960.16",Cognithan Ltd,SOCIAL SERVICES RESIDENTIAL,Peoples Services,Residential Care - Ext Provider,A56114
London Borough of Sutton,04/11/2022,20035676,"42,533.33",Cognus Ltd,LEGAL & PROFESSIONAL SERVICES,Peoples Services,Consultancy Services,A56007
London Borough of Sutton,04/11/2022,20035677,"133,895.33",Cognus Ltd,LEGAL & PROFESSIONAL SERVICES,Peoples Services,Special Educational Needs,A51015
London Borough of Sutton,04/11/2022,20035678,"133,895.33",Cognus Ltd,LEGAL & PROFESSIONAL SERVICES,Peoples Services,Special Educational Needs,A51015
London Borough of Sutton,04/11/2022,20035679,"150,275.00",Cognus Ltd,LEGAL & PROFESSIONAL SERVICES,Peoples Services,Consultancy Services,A56007
London Borough of Sutton,04/11/2022,20035681,"14,404.17",Cognus Ltd,LEGAL & PROFESSIONAL SERVICES,Peoples Services,Consultancy Services,A56007
London Borough of Sutton,04/11/2022,20035682,"14,404.17",Cognus Ltd,LEGAL & PROFESSIONAL SERVICES,Peoples Services,Consultancy Services,A56007
London Borough of Sutton,25/11/2022,50286658,"11,981.04",Coleg Elidyr Camphill Communities,CHILDREN'S SERVICES - RESIDENTIAL,Peoples Services,Interim Placements - Ext Provider,A56102
London Borough of Sutton,08/11/2022,50277848,"10,214.40",Collingwood School Ltd,GRANTS & EX GRATIA PAYMENTS,Peoples Services,Payment - Nursery Funding,A51056
London Borough of Sutton,31/10/2022,50277076,"-2,601.93",Comfort Care Services UK Ltd,SOCIAL SERVICES - DIRECT PAYMENTS,Peoples Services,Nursing Care - 3rd party top up payment,A56023
London Borough of Sutton,31/10/2022,50277076,"3,777.08",Comfort Care Services UK Ltd,SOCIAL SERVICES - DIRECT PAYMENTS,Peoples Services,Supported Living,A56088
London Borough of Sutton,01/10/2022,50280333,"3,487.81",Compass Fostering London Ltd,CHILDREN'S SERVICES - FOSTERING & ADOPTION SERVICES,Peoples Services,Foster Parents Support,A44110
London Borough of Sutton,01/10/2022,50280401,"3,340.56",Compass Fostering London Ltd,CHILDREN'S SERVICES - FOSTERING & ADOPTION SERVICES,Peoples Services,Foster Parents Support,A44110
London Borough of Sutton,01/10/2022,50280402,"3,720.00",Compass Fostering London Ltd,CHILDREN'S SERVICES - FOSTERING & ADOPTION SERVICES,Peoples Services,Foster Parents Support,A44110
London Borough of Sutton,01/10/2022,50280380,"4,230.88",Compass Fostering South Ltd,CHILDREN'S SERVICES - FOSTERING & ADOPTION SERVICES,Peoples Services,Foster Parents Support,A44110
London Borough of Sutton,01/11/2022,50280424,"3,875.00",Connect Fostering Services Ltd,CHILDREN'S SERVICES - FOSTERING & ADOPTION SERVICES,Peoples Services,Foster Parents Support,A44110
London Borough of Sutton,15/11/2022,50282018,"10,007.32",Connevans Limited,SOCIAL SERVICES - OTHER,Peoples Services,Equipment,A61013
London Borough of Sutton,08/11/2022,50277797,"1,609.13",Co-operative Childcare,GRANTS & EX GRATIA PAYMENTS,Peoples Services,Payment - Nursery Funding,A51056
London Borough of Sutton,08/11/2022,50277882,"14,378.18",Co-operative Childcare,GRANTS & EX GRATIA PAYMENTS,Peoples Services,Payment - Nursery Funding,A51056
London Borough of Sutton,01/11/2022,20035354,"2,262.00",CPCAB,TEMP STAFF & CONSULTANCY,Health and Wellbeing,Examination Fees,A44200
London Borough of Sutton,01/11/2022,20035355,"2,816.00",CPCAB,TEMP STAFF & CONSULTANCY,Health and Wellbeing,Examination Fees,A44200
London Borough of Sutton,25/11/2022,50286717,"7,107.84",Cream 1 Ltd ,SOCIAL SERVICES RESIDENTIAL,Peoples Services,Residential Care - Ext Provider,A56114
London Borough of Sutton,25/11/2022,50286717,"5,560.52",Cream 1 Ltd ,SOCIAL SERVICES RESIDENTIAL,Peoples Services,One to One Care,A56108
London Borough of Sutton,03/10/2022,50280378,"6,957.29",Credo Care Limited,CHILDREN'S SERVICE - OTHER,Peoples Services,Foster Parents Support,A44110
London Borough of Sutton,31/10/2022,50278861,571.68,Cressey Oasis Education Ltd,CHILDREN'S SERVICES - RESIDENTIAL,Peoples Services,Independent School Fees,A56002
London Borough of Sutton,09/11/2022,50281993,"9,166.66",Cricket Green School,GRANTS & EX GRATIA PAYMENTS,Peoples Services,Top-up Funding,A51016
London Borough of Sutton,25/11/2022,50286853,-735.68,CRNH Ltd,SOCIAL SERVICES RESIDENTIAL,Peoples Services,Nursing Care - 3rd party top up payment,A56023
London Borough of Sutton,25/11/2022,50286853,"3,720.16",CRNH Ltd,SOCIAL SERVICES RESIDENTIAL,Peoples Services,Nursing Care - Ext Provider,A56025
London Borough of Sutton,25/11/2022,50286945,"3,848.24",CRNH Ltd,SOCIAL SERVICES RESIDENTIAL,Peoples Services,Nursing Care - Ext Provider,A56025
London Borough of Sutton,25/11/2022,50286945,-750.4,CRNH Ltd,SOCIAL SERVICES RESIDENTIAL,Peoples Services,Nursing Care - 3rd party top up payment,A56023
London Borough of Sutton,25/11/2022,50286946,"3,848.24",CRNH Ltd,SOCIAL SERVICES RESIDENTIAL,Peoples Services,Nursing Care Short Term,A56026
London Borough of Sutton,25/11/2022,50286946,-750.4,CRNH Ltd,SOCIAL SERVICES RESIDENTIAL,Peoples Services,Nursing Care - 3rd party top up payment,A56023
London Borough of Sutton,25/11/2022,50286975,"5,400.00",CRNH Ltd,SOCIAL SERVICES RESIDENTIAL,Peoples Services,Nursing Care Short Term,A56026
London Borough of Sutton,25/11/2022,50286975,-836.76,CRNH Ltd,SOCIAL SERVICES RESIDENTIAL,Peoples Services,Nursing Care - 3rd party top up payment,A56023
London Borough of Sutton,25/11/2022,50287072,"3,609.96",CRNH Ltd,SOCIAL SERVICES RESIDENTIAL,Peoples Services,Nursing Care - Ext Provider,A56025
London Borough of Sutton,25/11/2022,50287072,-632.64,CRNH Ltd,SOCIAL SERVICES RESIDENTIAL,Peoples Services,Nursing Care - 3rd party top up payment,A56023
London Borough of Sutton,25/11/2022,50287074,"3,664.08",CRNH Ltd,SOCIAL SERVICES RESIDENTIAL,Peoples Services,Nursing Care - Ext Provider,A56025
London Borough of Sutton,25/11/2022,50287074,-662.24,CRNH Ltd,SOCIAL SERVICES RESIDENTIAL,Peoples Services,Nursing Care - 3rd party top up payment,A56023
London Borough of Sutton,25/11/2022,50287106,"5,400.00",CRNH Ltd,SOCIAL SERVICES RESIDENTIAL,Peoples Services,Nursing Care Short Term,A56026
London Borough of Sutton,25/11/2022,50287112,"4,021.24",CRNH Ltd,SOCIAL SERVICES RESIDENTIAL,Peoples Services,Nursing Care - Ext Provider,A56025
London Borough of Sutton,25/11/2022,50287112,-750.4,CRNH Ltd,SOCIAL SERVICES RESIDENTIAL,Peoples Services,Nursing Care - 3rd party top up payment,A56023
London Borough of Sutton,25/11/2022,50287140,"3,720.16",CRNH Ltd,SOCIAL SERVICES RESIDENTIAL,Peoples Services,Nursing Care - Ext Provider,A56025
London Borough of Sutton,25/11/2022,50287140,-735.68,CRNH Ltd,SOCIAL SERVICES RESIDENTIAL,Peoples Services,Nursing Care - 3rd party top up payment,A56023
London Borough of Sutton,25/11/2022,50286779,"3,633.76",Cross Care Services Ltd,SOCIAL SERVICES RESIDENTIAL,Peoples Services,Nursing Care - Ext Provider,A56025
London Borough of Sutton,25/11/2022,50286827,"3,720.16",Cross Care Services Ltd,SOCIAL SERVICES RESIDENTIAL,Peoples Services,Nursing Care - Ext Provider,A56025
London Borough of Sutton,25/11/2022,50286827,-735.68,Cross Care Services Ltd,SOCIAL SERVICES RESIDENTIAL,Peoples Services,Nursing Care - 3rd party top up payment,A56023
London Borough of Sutton,25/11/2022,50286897,"3,821.24",Cross Care Services Ltd,SOCIAL SERVICES RESIDENTIAL,Peoples Services,Nursing Care - Ext Provider,A56025
London Borough of Sutton,25/11/2022,50286897,-836.76,Cross Care Services Ltd,SOCIAL SERVICES RESIDENTIAL,Peoples Services,Nursing Care - 3rd party top up payment,A56023
London Borough of Sutton,25/11/2022,50286976,"3,720.16",Cross Care Services Ltd,SOCIAL SERVICES RESIDENTIAL,Peoples Services,Nursing Care - Ext Provider,A56025
London Borough of Sutton,25/11/2022,50286976,-735.68,Cross Care Services Ltd,SOCIAL SERVICES RESIDENTIAL,Peoples Services,Nursing Care - 3rd party top up payment,A56023
London Borough of Sutton,25/11/2022,50286980,"3,720.16",Cross Care Services Ltd,SOCIAL SERVICES RESIDENTIAL,Peoples Services,Nursing Care - Ext Provider,A56025
London Borough of Sutton,25/11/2022,50286980,-735.68,Cross Care Services Ltd,SOCIAL SERVICES RESIDENTIAL,Peoples Services,Nursing Care - 3rd party top up payment,A56023
London Borough of Sutton,25/11/2022,50287002,"-2,510.28",Cross Care Services Ltd,SOCIAL SERVICES RESIDENTIAL,Peoples Services,Nursing Care - 3rd party top up payment,A56023
London Borough of Sutton,25/11/2022,50287002,"11,463.72",Cross Care Services Ltd,SOCIAL SERVICES RESIDENTIAL,Peoples Services,Nursing Care Short Term,A56026
London Borough of Sutton,25/11/2022,50287045,"1,492.24",Cross Care Services Ltd,SOCIAL SERVICES RESIDENTIAL,Peoples Services,Respite Care,A56116
London Borough of Sutton,25/11/2022,50287103,"3,734.88",Cross Care Services Ltd,SOCIAL SERVICES RESIDENTIAL,Peoples Services,Nursing Care - Ext Provider,A56025
London Borough of Sutton,25/11/2022,50287103,-750.4,Cross Care Services Ltd,SOCIAL SERVICES RESIDENTIAL,Peoples Services,Nursing Care - 3rd party top up payment,A56023
London Borough of Sutton,31/10/2022,20035337,"5,520.00",Croydon Court Ltd,ACCOMMODATION BED & BREAKFAST,Environment Housing and Neighbourhoods,Bed & Breakfast,A56000
London Borough of Sutton,31/10/2022,20035338,"1,085.00",Croydon Court Ltd,ACCOMMODATION BED & BREAKFAST,Peoples Services,Temporary Residential Accommodation,A44140
London Borough of Sutton,25/11/2022,50286660,"8,118.44",CSS Ltd,SOCIAL SERVICES RESIDENTIAL,Peoples Services,Residential Care - Ext Provider,A56114
London Borough of Sutton,10/08/2022,50282168,907.2,CSS Ltd,SOCIAL SERVICES RESIDENTIAL,Peoples Services,Day Care Services,A56021
London Borough of Sutton,07/11/2022,50282169,683.76,CSS Ltd,SOCIAL SERVICES RESIDENTIAL,Peoples Services,Day Care Services,A56021
London Borough of Sutton,11/10/2022,50282171,699.6,CSS Ltd,SOCIAL SERVICES RESIDENTIAL,Peoples Services,Day Care Services,A56021
London Borough of Sutton,08/11/2022,50277512,"174,548.46",Culvers House Primary School,GRANTS & EX GRATIA PAYMENTS,Peoples Services,Payments to Schools,A51013
London Borough of Sutton,08/11/2022,50277555,"7,795.20",Culvers House Primary School,GRANTS & EX GRATIA PAYMENTS,Peoples Services,Place Funding,A56110
London Borough of Sutton,08/11/2022,50277601,"5,075.00",Culvers House Primary School,GRANTS & EX GRATIA PAYMENTS,Peoples Services,Payment - Covid 19 Recovery Premium,A51039
London Borough of Sutton,08/11/2022,50277624,"5,622.75",Culvers House Primary School,GRANTS & EX GRATIA PAYMENTS,Peoples Services,Payment - school led tutoring grant,A51060
London Borough of Sutton,08/11/2022,50277647,"47,436.25",Culvers House Primary School,GRANTS & EX GRATIA PAYMENTS,Peoples Services,Payment - Deprivation Pupil Premium,A51030
London Borough of Sutton,08/11/2022,50277670,"1,807.50",Culvers House Primary School,GRANTS & EX GRATIA PAYMENTS,Peoples Services,Payment - Post-LAC Pupil Premium,A51032
London Borough of Sutton,08/11/2022,50277698,"11,404.00",Culvers House Primary School,GRANTS & EX GRATIA PAYMENTS,Peoples Services,Payment - Primary PE and Sport Premium,A51028
London Borough of Sutton,08/11/2022,50277715,"36,278.00",Culvers House Primary School,GRANTS & EX GRATIA PAYMENTS,Peoples Services,Payment - school supplementary grant,A51062
London Borough of Sutton,08/11/2022,50277747,"3,667.00",Culvers House Primary School,GRANTS & EX GRATIA PAYMENTS,Peoples Services,Payment - Teachers Pension Grant,A51027
London Borough of Sutton,08/11/2022,50277765,"1,298.00",Culvers House Primary School,GRANTS & EX GRATIA PAYMENTS,Peoples Services,Payment - Teachers Pay Grant,A51026
London Borough of Sutton,18/11/2022,50282208,"2,295.00",Culvers House Primary School,GRANTS & EX GRATIA PAYMENTS,Resources,"Grants, Contributions & Donations",A47005
London Borough of Sutton,16/11/2022,50282108,"1,928.57",Curado Limited,GRANTS & EX GRATIA PAYMENTS,Peoples Services,Supported Living,A56088
London Borough of Sutton,25/11/2022,50286706,"5,810.56",Curado Limited,GRANTS & EX GRATIA PAYMENTS,Peoples Services,Interim Placements - Ext Provider,A56102
London Borough of Sutton,31/10/2022,20035465,"45,000.00",Cushman & Wakefield Debenham Tie Leung Limited,LEGAL & PROFESSIONAL SERVICES,Development Growth and Regeneration,External Fees and Consultants,C20000
London Borough of Sutton,31/10/2022,20037178,"1,062.50",Cygnet IT Services CIC,BUSINESS & COMPUTER SYSTEMS,Development Growth and Regeneration,Other Capital Expenditure,C20002
London Borough of Sutton,25/11/2022,50286742,-758,Cygnet Learning Disabilities Midlands Ltd,SOCIAL SERVICES RESIDENTIAL,Peoples Services,Residential Care - Client Cont ( Net Paymt ),A56113
London Borough of Sutton,25/11/2022,50286742,"6,827.40",Cygnet Learning Disabilities Midlands Ltd,SOCIAL SERVICES RESIDENTIAL,Peoples Services,Residential Care - Ext Provider,A56114
London Borough of Sutton,07/11/2022,20035837,"1,706.79",REDACTED - PERSONAL DATA,SUNDRY SUPPLIER - HOUSING,Environment Housing and Neighbourhoods,Rent Deposit Scheme,B32179
London Borough of Sutton,09/11/2022,20036137,"4,168.16",Darwin Group Ltd,CONSTRUCTION INDUSTRY,Peoples Services,Payments to Contractors,C14000
London Borough of Sutton,01/11/2022,20035448,"1,571.46",Angel Lettings,ACCOMMODATION BED & BREAKFAST,Environment Housing and Neighbourhoods,Temporary Protection - Homeless Persons,A62028
London Borough of Sutton,01/11/2022,20035423,"2,560.89",Dreamlettings,ACCOMMODATION BED & BREAKFAST,Environment Housing and Neighbourhoods,Temporary Protection - Homeless Persons,A62028
London Borough of Sutton,01/11/2022,20035434,"1,209.00",REDACTED - PERSONAL DATA,GRANTS & EX GRATIA PAYMENTS,Environment Housing and Neighbourhoods,Temporary Protection - Homeless Persons,A62028
London Borough of Sutton,30/10/2022,50277027,504,Day and Nite Services,SOCIAL SERVICES DAY CARE,Peoples Services,Home Care Services,A56019
London Borough of Sutton,06/11/2022,50281367,504,Day and Nite Services,SOCIAL SERVICES DAY CARE,Peoples Services,Home Care Services,A56019
London Borough of Sutton,13/11/2022,50281803,504,Day and Nite Services,SOCIAL SERVICES DAY CARE,Peoples Services,Home Care Services,A56019
London Borough of Sutton,20/11/2022,50287530,504,Day and Nite Services,SOCIAL SERVICES DAY CARE,Peoples Services,Home Care Services,A56019
London Borough of Sutton,29/11/2022,50286029,"1,293.52",Worth Primary,SCHOOLS ONLY,Peoples Services,Payments to Schools,A51013
London Borough of Sutton,01/11/2022,20035619,688,Delta Wise Limited,ACCOMMODATION BED & BREAKFAST,Environment Housing and Neighbourhoods,Bed & Breakfast,A56000
London Borough of Sutton,01/11/2022,20035620,781,Delta Wise Limited,ACCOMMODATION BED & BREAKFAST,Environment Housing and Neighbourhoods,Bed & Breakfast,A56000
London Borough of Sutton,01/11/2022,20035621,"1,530.00",Delta Wise Limited,ACCOMMODATION BED & BREAKFAST,Environment Housing and Neighbourhoods,Bed & Breakfast,A56000
London Borough of Sutton,01/11/2022,20035622,"1,085.00",Delta Wise Limited,ACCOMMODATION BED & BREAKFAST,Environment Housing and Neighbourhoods,Bed & Breakfast,A56000
London Borough of Sutton,01/11/2022,20035624,"2,170.00",Delta Wise Limited,ACCOMMODATION BED & BREAKFAST,Environment Housing and Neighbourhoods,Bed & Breakfast,A56000
London Borough of Sutton,01/11/2022,20035625,"1,520.00",Delta Wise Limited,ACCOMMODATION BED & BREAKFAST,Environment Housing and Neighbourhoods,Bed & Breakfast,A56000
London Borough of Sutton,01/11/2022,20035626,"3,255.00",Delta Wise Limited,ACCOMMODATION BED & BREAKFAST,Environment Housing and Neighbourhoods,Bed & Breakfast,A56000
London Borough of Sutton,01/11/2022,20035627,792,Delta Wise Limited,ACCOMMODATION BED & BREAKFAST,Environment Housing and Neighbourhoods,Bed & Breakfast,A56000
London Borough of Sutton,01/11/2022,20035628,"1,116.00",Delta Wise Limited,ACCOMMODATION BED & BREAKFAST,Environment Housing and Neighbourhoods,Bed & Breakfast,A56000
London Borough of Sutton,01/11/2022,20035629,"2,170.00",Delta Wise Limited,ACCOMMODATION BED & BREAKFAST,Environment Housing and Neighbourhoods,Bed & Breakfast,A56000
London Borough of Sutton,01/11/2022,20035630,"1,728.00",Delta Wise Limited,ACCOMMODATION BED & BREAKFAST,Environment Housing and Neighbourhoods,Bed & Breakfast,A56000
London Borough of Sutton,01/11/2022,20035632,"3,720.00",Delta Wise Limited,ACCOMMODATION BED & BREAKFAST,Environment Housing and Neighbourhoods,Bed & Breakfast,A56000
London Borough of Sutton,03/11/2022,20035651,"1,147.00",Denhan Property Services,ACCOMMODATION BED & BREAKFAST,Environment Housing and Neighbourhoods,Bed & Breakfast,A56000
London Borough of Sutton,03/11/2022,20035652,"1,619.75",Denhan Property Services,ACCOMMODATION BED & BREAKFAST,Environment Housing and Neighbourhoods,Bed & Breakfast,A56000
London Borough of Sutton,03/11/2022,20035653,"1,085.00",Denhan Property Services,ACCOMMODATION BED & BREAKFAST,Environment Housing and Neighbourhoods,Bed & Breakfast,A56000
London Borough of Sutton,03/11/2022,20035654,992,Denhan Property Services,ACCOMMODATION BED & BREAKFAST,Environment Housing and Neighbourhoods,Bed & Breakfast,A56000
London Borough of Sutton,03/11/2022,20035655,"1,929.75",Denhan Property Services,ACCOMMODATION BED & BREAKFAST,Environment Housing and Neighbourhoods,Bed & Breakfast,A56000
London Borough of Sutton,03/11/2022,20035656,851,Denhan Property Services,ACCOMMODATION BED & BREAKFAST,Environment Housing and Neighbourhoods,Bed & Breakfast,A56000
London Borough of Sutton,03/11/2022,20035657,"1,147.00",Denhan Property Services,ACCOMMODATION BED & BREAKFAST,Environment Housing and Neighbourhoods,Bed & Breakfast,A56000
London Borough of Sutton,03/11/2022,20035658,"1,860.00",Denhan Property Services,ACCOMMODATION BED & BREAKFAST,Environment Housing and Neighbourhoods,Bed & Breakfast,A56000
London Borough of Sutton,25/11/2022,50286733,"3,505.00",Denville Hall,SOCIAL SERVICES RESIDENTIAL,Peoples Services,Residential Care - Ext Provider,A56114
London Borough of Sutton,25/11/2022,50286729,"3,175.04",Devaglade Trading Limited,SOCIAL SERVICES RESIDENTIAL,Peoples Services,Residential Care - Ext Provider,A56114
London Borough of Sutton,08/11/2022,50277505,"254,143.43",Devonshire Primary School,GRANTS & EX GRATIA PAYMENTS,Peoples Services,Payments to Schools,A51013
London Borough of Sutton,08/11/2022,50277556,"9,021.60",Devonshire Primary School,GRANTS & EX GRATIA PAYMENTS,Peoples Services,Place Funding,A56110
London Borough of Sutton,08/11/2022,50277594,"6,851.25",Devonshire Primary School,GRANTS & EX GRATIA PAYMENTS,Peoples Services,Payment - Covid 19 Recovery Premium,A51039
London Borough of Sutton,08/11/2022,50277617,"8,316.00",Devonshire Primary School,GRANTS & EX GRATIA PAYMENTS,Peoples Services,Payment - school led tutoring grant,A51060
London Borough of Sutton,08/11/2022,50277640,"65,095.00",Devonshire Primary School,GRANTS & EX GRATIA PAYMENTS,Peoples Services,Payment - Deprivation Pupil Premium,A51030
London Borough of Sutton,08/11/2022,50277666,602.5,Devonshire Primary School,GRANTS & EX GRATIA PAYMENTS,Peoples Services,Payment - Post-LAC Pupil Premium,A51032
London Borough of Sutton,08/11/2022,50277696,"12,466.00",Devonshire Primary School,GRANTS & EX GRATIA PAYMENTS,Peoples Services,Payment - Primary PE and Sport Premium,A51028
London Borough of Sutton,08/11/2022,50277708,"52,370.00",Devonshire Primary School,GRANTS & EX GRATIA PAYMENTS,Peoples Services,Payment - school supplementary grant,A51062
London Borough of Sutton,08/11/2022,50277734,"3,241.00",Devonshire Primary School,GRANTS & EX GRATIA PAYMENTS,Peoples Services,Payment - Teachers Pension Grant,A51027
London Borough of Sutton,08/11/2022,50277752,"1,147.00",Devonshire Primary School,GRANTS & EX GRATIA PAYMENTS,Peoples Services,Payment - Teachers Pay Grant,A51026
London Borough of Sutton,08/11/2022,50277767,"2,550.00",Devonshire Primary School,GRANTS & EX GRATIA PAYMENTS,Peoples Services,Payments to Schools,A51013
London Borough of Sutton,07/11/2022,50278894,"6,505.31",Devonshire Primary School,GRANTS & EX GRATIA PAYMENTS,Peoples Services,Top-up Funding,A51016
London Borough of Sutton,18/11/2022,50282209,"2,895.00",Devonshire Primary School,GRANTS & EX GRATIA PAYMENTS,Resources,"Grants, Contributions & Donations",A47005
London Borough of Sutton,03/10/2022,50284137,"4,145.92",Direct Care And Support Services,ACCOMMODATION - OTHER,Peoples Services,Home Care Services,A56019
London Borough of Sutton,03/10/2022,50284145,"4,145.92",Direct Care And Support Services,ACCOMMODATION - OTHER,Peoples Services,Home Care Services,A56019
London Borough of Sutton,03/11/2022,50284146,"4,145.92",Direct Care And Support Services,ACCOMMODATION - OTHER,Peoples Services,Home Care Services,A56019
London Borough of Sutton,09/10/2022,50284147,"4,145.92",Direct Care And Support Services,ACCOMMODATION - OTHER,Peoples Services,Home Care Services,A56019
London Borough of Sutton,03/10/2022,50284148,"4,145.92",Direct Care And Support Services,ACCOMMODATION - OTHER,Peoples Services,Home Care Services,A56019
London Borough of Sutton,03/10/2022,50284149,"4,145.92",Direct Care And Support Services,ACCOMMODATION - OTHER,Peoples Services,Home Care Services,A56019
London Borough of Sutton,03/10/2022,50284150,"4,145.92",Direct Care And Support Services,ACCOMMODATION - OTHER,Peoples Services,Home Care Services,A56019
London Borough of Sutton,03/10/2022,50284151,"4,024.50",Direct Care And Support Services,ACCOMMODATION - OTHER,Peoples Services,Home Care Services,A56019
London Borough of Sutton,22/09/2022,50285885,"3,130.66",Direct Care And Support Services,ACCOMMODATION - OTHER,Peoples Services,Supported Living,A56088
London Borough of Sutton,01/09/2022,50285886,"4,667.96",Direct Care And Support Services,ACCOMMODATION - OTHER,Peoples Services,Supported Living,A56088
London Borough of Sutton,22/09/2022,50285887,"3,130.66",Direct Care And Support Services,ACCOMMODATION - OTHER,Peoples Services,Supported Living,A56088
London Borough of Sutton,03/10/2022,50285888,"3,262.13",Direct Care And Support Services,ACCOMMODATION - OTHER,Peoples Services,Home Care Services,A56019
London Borough of Sutton,22/09/2022,50285889,"3,130.66",Direct Care And Support Services,ACCOMMODATION - OTHER,Peoples Services,Supported Living,A56088
London Borough of Sutton,01/11/2022,50285890,"4,667.96",Direct Care And Support Services,ACCOMMODATION - OTHER,Peoples Services,Supported Living,A56088
London Borough of Sutton,14/11/2022,50285891,"3,130.66",Direct Care And Support Services,ACCOMMODATION - OTHER,Peoples Services,Supported Living,A56088
London Borough of Sutton,03/10/2022,50285892,"4,667.96",Direct Care And Support Services,ACCOMMODATION - OTHER,Peoples Services,Supported Living,A56088
London Borough of Sutton,01/11/2022,50285893,"3,262.13",Direct Care And Support Services,ACCOMMODATION - OTHER,Peoples Services,Home Care Services,A56019
London Borough of Sutton,22/09/2022,50285894,"3,130.66",Direct Care And Support Services,ACCOMMODATION - OTHER,Peoples Services,Supported Living,A56088
London Borough of Sutton,23/09/2022,50285895,549.72,Direct Care And Support Services,ACCOMMODATION - OTHER,Peoples Services,Supported Living,A56088
London Borough of Sutton,15/10/2022,50285896,"3,130.66",Direct Care And Support Services,ACCOMMODATION - OTHER,Peoples Services,Supported Living,A56088
London Borough of Sutton,03/10/2022,50285898,"3,262.13",Direct Care And Support Services,ACCOMMODATION - OTHER,Peoples Services,Home Care Services,A56019
London Borough of Sutton,03/10/2022,50285899,"3,130.66",Direct Care And Support Services,ACCOMMODATION - OTHER,Peoples Services,Supported Living,A56088
London Borough of Sutton,03/10/2022,50285900,726.04,Direct Care And Support Services,ACCOMMODATION - OTHER,Peoples Services,Home Care Services,A56019
London Borough of Sutton,04/10/2022,50285901,"3,262.13",Direct Care And Support Services,ACCOMMODATION - OTHER,Peoples Services,Home Care Services,A56019
London Borough of Sutton,04/10/2022,50285902,"3,262.13",Direct Care And Support Services,ACCOMMODATION - OTHER,Peoples Services,Home Care Services,A56019
London Borough of Sutton,03/10/2022,50285903,"3,262.13",Direct Care And Support Services,ACCOMMODATION - OTHER,Peoples Services,Home Care Services,A56019
London Borough of Sutton,26/07/2022,50287173,"8,400.17",Direct Care And Support Services,ACCOMMODATION - OTHER,Peoples Services,Supported Living,A56088
London Borough of Sutton,20/10/2022,50287184,"8,400.17",Direct Care And Support Services,ACCOMMODATION - OTHER,Peoples Services,Supported Living,A56088
London Borough of Sutton,31/10/2022,50287185,"8,400.17",Direct Care And Support Services,ACCOMMODATION - OTHER,Peoples Services,Supported Living,A56088
London Borough of Sutton,20/10/2022,50287186,"8,400.17",Direct Care And Support Services,ACCOMMODATION - OTHER,Peoples Services,Supported Living,A56088
London Borough of Sutton,22/11/2022,50287199,"1,680.00",Direct Care And Support Services,ACCOMMODATION - OTHER,Peoples Services,Supported Living,A56088
London Borough of Sutton,22/11/2022,50287199,"3,021.20",Direct Care And Support Services,ACCOMMODATION - OTHER,Peoples Services,Supported Living,A56088
London Borough of Sutton,23/11/2022,50287200,"1,620.00",Direct Care And Support Services,ACCOMMODATION - OTHER,Peoples Services,Supported Living,A56088
London Borough of Sutton,23/11/2022,50287200,"3,081.20",Direct Care And Support Services,ACCOMMODATION - OTHER,Peoples Services,Supported Living,A56088
London Borough of Sutton,22/11/2022,50287201,"1,680.00",Direct Care And Support Services,ACCOMMODATION - OTHER,Peoples Services,Supported Living,A56088
London Borough of Sutton,22/11/2022,50287201,"3,021.20",Direct Care And Support Services,ACCOMMODATION - OTHER,Peoples Services,Supported Living,A56088
London Borough of Sutton,14/11/2022,50287239,"3,664.52",Direct Care And Support Services,ACCOMMODATION - OTHER,Peoples Services,Supported Living,A56088
London Borough of Sutton,14/11/2022,50287240,"3,664.52",Direct Care And Support Services,ACCOMMODATION - OTHER,Peoples Services,Supported Living,A56088
London Borough of Sutton,22/11/2022,50287241,"3,664.52",Direct Care And Support Services,ACCOMMODATION - OTHER,Peoples Services,Supported Living,A56088
London Borough of Sutton,01/10/2022,50287244,"4,328.52",Direct Care And Support Services,ACCOMMODATION - OTHER,Peoples Services,Supported Living,A56088
London Borough of Sutton,03/11/2022,50287245,"4,328.52",Direct Care And Support Services,ACCOMMODATION - OTHER,Peoples Services,Supported Living,A56088
London Borough of Sutton,01/09/2022,50287616,"3,696.06",Direct Care And Support Services,ACCOMMODATION - OTHER,Peoples Services,Supported Living,A56088
London Borough of Sutton,07/10/2022,50287617,"3,696.06",Direct Care And Support Services,ACCOMMODATION - OTHER,Peoples Services,Supported Living,A56088
London Borough of Sutton,14/11/2022,50287618,"2,752.18",Direct Care And Support Services,ACCOMMODATION - OTHER,Peoples Services,Supported Living,A56088
London Borough of Sutton,26/09/2022,50287619,"2,752.18",Direct Care And Support Services,ACCOMMODATION - OTHER,Peoples Services,Supported Living,A56088
London Borough of Sutton,03/11/2022,50287620,"5,833.81",Direct Care And Support Services,ACCOMMODATION - OTHER,Peoples Services,Supported Living,A56088
London Borough of Sutton,01/11/2022,50287621,"3,696.06",Direct Care And Support Services,ACCOMMODATION - OTHER,Peoples Services,Supported Living,A56088
London Borough of Sutton,01/11/2022,50287622,"5,565.56",Direct Care And Support Services,ACCOMMODATION - OTHER,Peoples Services,Supported Living,A56088
London Borough of Sutton,27/10/2022,20034970,938.34,REDACTED - PERSONAL DATA,PLS LANDLORDS,Environment Housing and Neighbourhoods,Temporary Protection - Homeless Persons,A62028
London Borough of Sutton,08/11/2022,50277780,643.65,REDACTED - PERSONAL DATA,GRANTS & EX GRATIA PAYMENTS,Peoples Services,Payment - Nursery Funding,A51056
London Borough of Sutton,08/11/2022,50277852,563.85,REDACTED - PERSONAL DATA,GRANTS & EX GRATIA PAYMENTS,Peoples Services,Payment - Nursery Funding,A51056
London Borough of Sutton,08/11/2022,50277507,"197,787.27",Dorchester Primary School,GRANTS & EX GRATIA PAYMENTS,Peoples Services,Payments to Schools,A51013
London Borough of Sutton,08/11/2022,50277557,"12,122.78",Dorchester Primary School,GRANTS & EX GRATIA PAYMENTS,Peoples Services,Place Funding,A56110
London Borough of Sutton,08/11/2022,50277596,"3,190.00",Dorchester Primary School,GRANTS & EX GRATIA PAYMENTS,Peoples Services,Payment - Covid 19 Recovery Premium,A51039
London Borough of Sutton,08/11/2022,50277619,"3,969.00",Dorchester Primary School,GRANTS & EX GRATIA PAYMENTS,Peoples Services,Payment - school led tutoring grant,A51060
London Borough of Sutton,08/11/2022,50277642,"30,470.00",Dorchester Primary School,GRANTS & EX GRATIA PAYMENTS,Peoples Services,Payment - Deprivation Pupil Premium,A51030
London Borough of Sutton,08/11/2022,50277692,"12,279.00",Dorchester Primary School,GRANTS & EX GRATIA PAYMENTS,Peoples Services,Payment - Primary PE and Sport Premium,A51028
London Borough of Sutton,08/11/2022,50277710,"40,921.00",Dorchester Primary School,GRANTS & EX GRATIA PAYMENTS,Peoples Services,Payment - school supplementary grant,A51062
London Borough of Sutton,08/11/2022,50277735,"3,156.00",Dorchester Primary School,GRANTS & EX GRATIA PAYMENTS,Peoples Services,Payment - Teachers Pension Grant,A51027
London Borough of Sutton,08/11/2022,50277753,"1,117.00",Dorchester Primary School,GRANTS & EX GRATIA PAYMENTS,Peoples Services,Payment - Teachers Pay Grant,A51026
London Borough of Sutton,07/11/2022,50278895,"1,728.23",Dorchester Primary School,GRANTS & EX GRATIA PAYMENTS,Peoples Services,Top-up Funding,A51016
London Borough of Sutton,18/11/2022,50282210,"1,485.00",Dorchester Primary School,GRANTS & EX GRATIA PAYMENTS,Resources,"Grants, Contributions & Donations",A47005
London Borough of Sutton,14/11/2022,20036262,625,REDACTED - PERSONAL DATA,SUNDRY SUPPLIER - EDUCATION,Peoples Services,Miscellaneous Expenses,A49000
London Borough of Sutton,27/10/2022,20035001,605.05,DSI Billing Services Ltd,OFFICE SERVICES,Resources,Postage & Couriers,A45015
London Borough of Sutton,27/10/2022,20035001,605.04,DSI Billing Services Ltd,OFFICE SERVICES,Resources,Postage & Couriers,A45015
London Borough of Sutton,01/10/2022,20035114,"3,203.57",Dunfield & Mead Ltd,CHILDREN'S SERVICES - RESIDENTIAL,Peoples Services,Approved Lodgings,A61000
London Borough of Sutton,01/10/2022,20035116,"2,269.64",Dunfield & Mead Ltd,CHILDREN'S SERVICES - RESIDENTIAL,Peoples Services,Approved Lodgings,A61000
London Borough of Sutton,01/10/2022,20035117,"1,542.85",Dunfield & Mead Ltd,CHILDREN'S SERVICES - RESIDENTIAL,Peoples Services,Approved Lodgings,A61000
London Borough of Sutton,01/10/2022,20035120,"1,771.42",Dunfield & Mead Ltd,CHILDREN'S SERVICES - RESIDENTIAL,Peoples Services,Approved Lodgings,A61000
London Borough of Sutton,01/10/2022,50280369,"3,653.56",Dunfield & Mead Ltd,CHILDREN'S SERVICES - RESIDENTIAL,Peoples Services,Approved Lodgings,A61000
London Borough of Sutton,01/10/2022,50280369,276.79,Dunfield & Mead Ltd,CHILDREN'S SERVICES - RESIDENTIAL,Peoples Services,Approved Lodgings,A61000
London Borough of Sutton,01/10/2022,50280397,"4,594.63",Dunfield & Mead Ltd,CHILDREN'S SERVICES - RESIDENTIAL,Peoples Services,Accommodation - Supported Living,A62001
London Borough of Sutton,31/10/2022,20035314,"5,490.00",Dunheved Hotel Ltd,ACCOMMODATION BED & BREAKFAST,Environment Housing and Neighbourhoods,Bed & Breakfast,A56000
London Borough of Sutton,25/11/2022,50286692,"3,187.44",Dunheved Lodge,SOCIAL SERVICES RESIDENTIAL,Peoples Services,Residential Care - Ext Provider,A56114
London Borough of Sutton,25/11/2022,50286692,"3,016.00",Dunheved Lodge,SOCIAL SERVICES RESIDENTIAL,Peoples Services,One to One Care,A56108
London Borough of Sutton,27/10/2022,50276646,"3,250.00",DWT Windows & Doors,CONSTRUCTION INDUSTRY,HRA,Payments to Contractors,C14000
London Borough of Sutton,30/08/2022,50281619,"2,100.00",DWT Windows & Doors,CONSTRUCTION INDUSTRY,HRA,Payments to Contractors,C14000
London Borough of Sutton,30/08/2022,50281620,"1,540.00",DWT Windows & Doors,CONSTRUCTION INDUSTRY,HRA,Payments to Contractors,C14000
London Borough of Sutton,20/10/2022,20035065,"1,697.42",Dynamic Care Ltd,SOCIAL SERVICES RESIDENTIAL,Peoples Services,Approved Lodgings,A61000
London Borough of Sutton,01/11/2022,50280382,"5,480.34",Dynamic Care Ltd,SOCIAL SERVICES RESIDENTIAL,Peoples Services,Approved Lodgings,A61000
London Borough of Sutton,01/11/2022,50280394,437.5,Dynamic Care Ltd,SOCIAL SERVICES RESIDENTIAL,Peoples Services,Approved Lodgings,A61000
London Borough of Sutton,01/11/2022,50280394,"8,225.00",Dynamic Care Ltd,SOCIAL SERVICES RESIDENTIAL,Peoples Services,Accommodation - Supported Living,A62001
London Borough of Sutton,01/11/2022,50280423,"4,926.77",Dynamic Care Ltd,SOCIAL SERVICES RESIDENTIAL,Peoples Services,Approved Lodgings,A61000
London Borough of Sutton,31/10/2022,20035343,"18,614.80",E Homes And Shelters,ACCOMMODATION BED & BREAKFAST,Environment Housing and Neighbourhoods,Bed & Breakfast,A56000
London Borough of Sutton,30/09/2022,20035723,"18,533.10",E Homes And Shelters,ACCOMMODATION BED & BREAKFAST,Environment Housing and Neighbourhoods,Bed & Breakfast,A56000
London Borough of Sutton,28/10/2022,20035067,659,Earth Anchors Ltd,REFUSE COLLECTION / DISPOSAL,Environment Housing and Neighbourhoods,Furniture - Purchase,A40015
London Borough of Sutton,25/11/2022,50286791,"3,734.88",Eastcroft Nursing Home,SOCIAL SERVICES RESIDENTIAL,Peoples Services,Nursing Care - Ext Provider,A56025
London Borough of Sutton,25/11/2022,50286791,-750.4,Eastcroft Nursing Home,SOCIAL SERVICES RESIDENTIAL,Peoples Services,Nursing Care - 3rd party top up payment,A56023
London Borough of Sutton,25/11/2022,50286804,"3,848.24",Eastcroft Nursing Home,SOCIAL SERVICES RESIDENTIAL,Peoples Services,Nursing Care - Ext Provider,A56025
London Borough of Sutton,25/11/2022,50286804,-750.4,Eastcroft Nursing Home,SOCIAL SERVICES RESIDENTIAL,Peoples Services,Nursing Care - 3rd party top up payment,A56023
London Borough of Sutton,25/11/2022,50286819,-298.84,Eastcroft Nursing Home,SOCIAL SERVICES RESIDENTIAL,Peoples Services,Nursing Care - 3rd party top up payment,A56023
London Borough of Sutton,25/11/2022,50286819,"1,447.41",Eastcroft Nursing Home,SOCIAL SERVICES RESIDENTIAL,Peoples Services,Nursing Care Short Term,A56026
London Borough of Sutton,25/11/2022,50286906,"3,734.88",Eastcroft Nursing Home,SOCIAL SERVICES RESIDENTIAL,Peoples Services,Nursing Care - Ext Provider,A56025
London Borough of Sutton,25/11/2022,50286906,-750.4,Eastcroft Nursing Home,SOCIAL SERVICES RESIDENTIAL,Peoples Services,Nursing Care - 3rd party top up payment,A56023
London Borough of Sutton,25/11/2022,50287021,-836.76,Eastcroft Nursing Home,SOCIAL SERVICES RESIDENTIAL,Peoples Services,Nursing Care - 3rd party top up payment,A56023
London Borough of Sutton,25/11/2022,50287021,"3,821.24",Eastcroft Nursing Home,SOCIAL SERVICES RESIDENTIAL,Peoples Services,Nursing Care Short Term,A56026
London Borough of Sutton,25/11/2022,50287066,-750.4,Eastcroft Nursing Home,SOCIAL SERVICES RESIDENTIAL,Peoples Services,Nursing Care - 3rd party top up payment,A56023
London Borough of Sutton,25/11/2022,50287066,"3,736.00",Eastcroft Nursing Home,SOCIAL SERVICES RESIDENTIAL,Peoples Services,Nursing Care Short Term,A56026
London Borough of Sutton,22/09/2022,20034788,"1,891.40",EDF Energy,UTILITIES,Peoples Services,Gas,A21003
London Borough of Sutton,24/10/2022,20035302,664.58,EDF Energy,UTILITIES,HRA,Electricity,A21000
London Borough of Sutton,01/11/2022,20035769,895.92,EDF Energy,UTILITIES,Environment Housing and Neighbourhoods,Electricity,A21000
London Borough of Sutton,27/10/2022,20035963,621.31,EDF Energy,UTILITIES,HRA,Electricity,A21000
London Borough of Sutton,03/11/2022,20036200,"1,820.66",EDF Energy,UTILITIES,Environment Housing and Neighbourhoods,Electricity,A21000
London Borough of Sutton,08/11/2022,50277842,845.78,REDACTED - PERSONAL DATA,GRANTS & EX GRATIA PAYMENTS,Peoples Services,Payment - Nursery Funding,A51056
London Borough of Sutton,24/10/2022,20034715,"2,632.00",Elite Guarding (UK) Ltd,GRANTS & EX GRATIA PAYMENTS,HRA,Payments to Contractors,C14000
London Borough of Sutton,31/10/2022,20035078,"2,632.00",Elite Guarding (UK) Ltd,GRANTS & EX GRATIA PAYMENTS,HRA,Payments to Contractors,C14000
London Borough of Sutton,01/11/2022,50278214,571.43,Elite Supported Living Ltd,CHILDREN'S SERVICE - OTHER,Peoples Services,Residential Care-Children,A56115
London Borough of Sutton,01/11/2022,50280375,"47,727.07",Elite Supported Living Ltd,CHILDREN'S SERVICE - OTHER,Peoples Services,Residential Care-Children,A56115
London Borough of Sutton,25/11/2022,50286763,"9,101.84",Elysium Healthcare Ltd,CHILDREN'S SERVICES - FOSTERING & ADOPTION SERVICES,Peoples Services,Residential Care - Ext Provider,A56114
London Borough of Sutton,25/11/2022,50286715,"7,668.40",Elysium Supported Living Limited,SOCIAL SERVICES RESIDENTIAL,Peoples Services,Residential Care - Ext Provider,A56114
London Borough of Sutton,27/10/2022,20034982,"2,300.00",Emerging Field Ltd,TEMP STAFF & CONSULTANCY,Resources,Consultancy Services - Other,A44065
London Borough of Sutton,01/11/2022,50278857,"2,720.00",EMPOWER KNOWLEDGE LIMITED,CHILDREN'S SERVICES - SEN SERVICES,Peoples Services,Independent School Fees,A56002
London Borough of Sutton,03/10/2022,50278859,"2,125.00",EMPOWER KNOWLEDGE LIMITED,CHILDREN'S SERVICES - SEN SERVICES,Peoples Services,Independent School Fees,A56002
London Borough of Sutton,14/11/2022,50282012,"1,400.00",EMPOWER KNOWLEDGE LIMITED,CHILDREN'S SERVICES - SEN SERVICES,Peoples Services,Independent School Fees,A56002
London Borough of Sutton,14/11/2022,50282013,"1,530.00",EMPOWER KNOWLEDGE LIMITED,CHILDREN'S SERVICES - SEN SERVICES,Peoples Services,Independent School Fees,A56002
London Borough of Sutton,16/11/2022,50282042,"3,642.86",Enriched Care Ltd,CHILDREN'S SERVICES - RESIDENTIAL,Peoples Services,Supported Living,A56088
London Borough of Sutton,27/10/2022,20035258,"25,000.00",EPPF European Primary Placement Facility,LEGAL & PROFESSIONAL SERVICES,Non-Service Cost Centres,Interest Charges,A83000
London Borough of Sutton,08/11/2022,50277932,"12,874.58",Epsom & St Helier Nhs Trust,OFFICE SERVICES,Peoples Services,Payment - Nursery Funding,A51056
London Borough of Sutton,25/11/2022,50286738,"5,415.00",Equinox Care,SOCIAL SERVICES RESIDENTIAL,Peoples Services,Residential Care - Ext Provider,A56114
London Borough of Sutton,06/11/2022,50281704,630,Escoben Care Services Ltd,SOCIAL SERVICES RESIDENTIAL,Peoples Services,Home Care Services,A56019
London Borough of Sutton,06/11/2022,50281707,"1,134.00",Escoben Care Services Ltd,SOCIAL SERVICES RESIDENTIAL,Peoples Services,Home Care Services,A56019
London Borough of Sutton,06/11/2022,50281709,797.9,Escoben Care Services Ltd,SOCIAL SERVICES RESIDENTIAL,Peoples Services,Home Care Services,A56019
London Borough of Sutton,13/11/2022,50284011,630,Escoben Care Services Ltd,SOCIAL SERVICES RESIDENTIAL,Peoples Services,Home Care Services,A56019
London Borough of Sutton,13/11/2022,50284012,"1,134.00",Escoben Care Services Ltd,SOCIAL SERVICES RESIDENTIAL,Peoples Services,Home Care Services,A56019
London Borough of Sutton,13/11/2022,50284101,797.9,Escoben Care Services Ltd,SOCIAL SERVICES RESIDENTIAL,Peoples Services,Home Care Services,A56019
London Borough of Sutton,03/11/2022,50277496,808.77,REDACTED - PERSONAL DATA,UASC SUBS PAYMENTS,Peoples Services,Set Up Costs - Children Leaving Care,A61021
London Borough of Sutton,05/10/2022,50280405,"4,042.49",Ethelbert Specialist Homes Ltd,CHILDREN'S SERVICES - RESIDENTIAL,Peoples Services,Foster Parents Support,A44110
London Borough of Sutton,04/11/2022,50278880,"3,521.70",Ewell Castle School,SCHOOL FUNDS,Peoples Services,Independent School Fees,A56002
London Borough of Sutton,23/10/2022,50276773,367.47,Exodus Health Care Services Ltd,SOCIAL SERVICES RESIDENTIAL,Peoples Services,Home Care Services,A56019
London Borough of Sutton,23/10/2022,50276773,336.91,Exodus Health Care Services Ltd,SOCIAL SERVICES RESIDENTIAL,Peoples Services,Home Care Services,A56019
London Borough of Sutton,23/10/2022,50276839,796.25,Exodus Health Care Services Ltd,SOCIAL SERVICES RESIDENTIAL,Peoples Services,Home Care Services,A56019
London Borough of Sutton,31/10/2022,50276845,551.25,Exodus Health Care Services Ltd,SOCIAL SERVICES RESIDENTIAL,Peoples Services,Home Care Services,A56019
London Borough of Sutton,23/10/2022,50276878,568.75,Exodus Health Care Services Ltd,SOCIAL SERVICES RESIDENTIAL,Peoples Services,Home Care Services,A56019
London Borough of Sutton,23/10/2022,50276898,551.25,Exodus Health Care Services Ltd,SOCIAL SERVICES RESIDENTIAL,Peoples Services,Home Care Services,A56019
London Borough of Sutton,23/10/2022,50276911,560,Exodus Health Care Services Ltd,SOCIAL SERVICES RESIDENTIAL,Peoples Services,Home Care Services,A56019
London Borough of Sutton,23/10/2022,50276921,551.15,Exodus Health Care Services Ltd,SOCIAL SERVICES RESIDENTIAL,Peoples Services,Home Care Services,A56019
London Borough of Sutton,23/10/2022,50276921,91.98,Exodus Health Care Services Ltd,SOCIAL SERVICES RESIDENTIAL,Peoples Services,Home Care Services,A56019
London Borough of Sutton,23/10/2022,50276923,612.5,Exodus Health Care Services Ltd,SOCIAL SERVICES RESIDENTIAL,Peoples Services,Home Care Services,A56019
London Borough of Sutton,23/10/2022,50276923,52.5,Exodus Health Care Services Ltd,SOCIAL SERVICES RESIDENTIAL,Peoples Services,Home Care Services,A56019
London Borough of Sutton,23/10/2022,50276925,551.25,Exodus Health Care Services Ltd,SOCIAL SERVICES RESIDENTIAL,Peoples Services,Home Care Services,A56019
London Borough of Sutton,23/10/2022,50276925,52.5,Exodus Health Care Services Ltd,SOCIAL SERVICES RESIDENTIAL,Peoples Services,Home Care Services,A56019
London Borough of Sutton,23/10/2022,50276929,551.25,Exodus Health Care Services Ltd,SOCIAL SERVICES RESIDENTIAL,Peoples Services,Home Care Services,A56019
London Borough of Sutton,23/10/2022,50276930,551.25,Exodus Health Care Services Ltd,SOCIAL SERVICES RESIDENTIAL,Peoples Services,Home Care Services,A56019
London Borough of Sutton,23/10/2022,50276935,612.5,Exodus Health Care Services Ltd,SOCIAL SERVICES RESIDENTIAL,Peoples Services,Home Care Services,A56019
London Borough of Sutton,30/10/2022,50278225,568.75,Exodus Health Care Services Ltd,SOCIAL SERVICES RESIDENTIAL,Peoples Services,Home Care Services,A56019
London Borough of Sutton,30/10/2022,50278228,612.5,Exodus Health Care Services Ltd,SOCIAL SERVICES RESIDENTIAL,Peoples Services,Home Care Services,A56019
London Borough of Sutton,30/10/2022,50278238,367.47,Exodus Health Care Services Ltd,SOCIAL SERVICES RESIDENTIAL,Peoples Services,Home Care Services,A56019
London Borough of Sutton,30/10/2022,50278238,336.91,Exodus Health Care Services Ltd,SOCIAL SERVICES RESIDENTIAL,Peoples Services,Home Care Services,A56019
London Borough of Sutton,30/10/2022,50278260,796.25,Exodus Health Care Services Ltd,SOCIAL SERVICES RESIDENTIAL,Peoples Services,Home Care Services,A56019
London Borough of Sutton,30/10/2022,50278287,551.25,Exodus Health Care Services Ltd,SOCIAL SERVICES RESIDENTIAL,Peoples Services,Home Care Services,A56019
London Borough of Sutton,30/10/2022,50278298,560,Exodus Health Care Services Ltd,SOCIAL SERVICES RESIDENTIAL,Peoples Services,Home Care Services,A56019
London Borough of Sutton,30/10/2022,50278303,551.25,Exodus Health Care Services Ltd,SOCIAL SERVICES RESIDENTIAL,Peoples Services,Home Care Services,A56019
London Borough of Sutton,30/10/2022,50278309,551.15,Exodus Health Care Services Ltd,SOCIAL SERVICES RESIDENTIAL,Peoples Services,Home Care Services,A56019
London Borough of Sutton,30/10/2022,50278309,91.98,Exodus Health Care Services Ltd,SOCIAL SERVICES RESIDENTIAL,Peoples Services,Home Care Services,A56019
London Borough of Sutton,30/10/2022,50278311,612.5,Exodus Health Care Services Ltd,SOCIAL SERVICES RESIDENTIAL,Peoples Services,Home Care Services,A56019
London Borough of Sutton,30/10/2022,50278311,52.5,Exodus Health Care Services Ltd,SOCIAL SERVICES RESIDENTIAL,Peoples Services,Home Care Services,A56019
London Borough of Sutton,30/10/2022,50278312,551.25,Exodus Health Care Services Ltd,SOCIAL SERVICES RESIDENTIAL,Peoples Services,Home Care Services,A56019
London Borough of Sutton,30/10/2022,50278312,52.5,Exodus Health Care Services Ltd,SOCIAL SERVICES RESIDENTIAL,Peoples Services,Home Care Services,A56019
London Borough of Sutton,30/10/2022,50278314,551.25,Exodus Health Care Services Ltd,SOCIAL SERVICES RESIDENTIAL,Peoples Services,Home Care Services,A56019
London Borough of Sutton,30/10/2022,50278315,551.25,Exodus Health Care Services Ltd,SOCIAL SERVICES RESIDENTIAL,Peoples Services,Home Care Services,A56019
London Borough of Sutton,06/11/2022,50281143,560,Exodus Health Care Services Ltd,SOCIAL SERVICES RESIDENTIAL,Peoples Services,Home Care Services,A56019
London Borough of Sutton,06/11/2022,50281152,551.25,Exodus Health Care Services Ltd,SOCIAL SERVICES RESIDENTIAL,Peoples Services,Home Care Services,A56019
London Borough of Sutton,06/11/2022,50281164,796.25,Exodus Health Care Services Ltd,SOCIAL SERVICES RESIDENTIAL,Peoples Services,Home Care Services,A56019
London Borough of Sutton,06/11/2022,50281182,568.75,Exodus Health Care Services Ltd,SOCIAL SERVICES RESIDENTIAL,Peoples Services,Home Care Services,A56019
London Borough of Sutton,06/11/2022,50281201,551.15,Exodus Health Care Services Ltd,SOCIAL SERVICES RESIDENTIAL,Peoples Services,Home Care Services,A56019
London Borough of Sutton,06/11/2022,50281201,91.98,Exodus Health Care Services Ltd,SOCIAL SERVICES RESIDENTIAL,Peoples Services,Home Care Services,A56019
London Borough of Sutton,06/11/2022,50281202,612.5,Exodus Health Care Services Ltd,SOCIAL SERVICES RESIDENTIAL,Peoples Services,Home Care Services,A56019
London Borough of Sutton,06/11/2022,50281202,52.5,Exodus Health Care Services Ltd,SOCIAL SERVICES RESIDENTIAL,Peoples Services,Home Care Services,A56019
London Borough of Sutton,06/11/2022,50281203,551.25,Exodus Health Care Services Ltd,SOCIAL SERVICES RESIDENTIAL,Peoples Services,Home Care Services,A56019
London Borough of Sutton,06/11/2022,50281203,52.5,Exodus Health Care Services Ltd,SOCIAL SERVICES RESIDENTIAL,Peoples Services,Home Care Services,A56019
London Borough of Sutton,06/11/2022,50281207,551.25,Exodus Health Care Services Ltd,SOCIAL SERVICES RESIDENTIAL,Peoples Services,Home Care Services,A56019
London Borough of Sutton,06/11/2022,50281209,551.25,Exodus Health Care Services Ltd,SOCIAL SERVICES RESIDENTIAL,Peoples Services,Home Care Services,A56019
London Borough of Sutton,06/11/2022,50281216,612.5,Exodus Health Care Services Ltd,SOCIAL SERVICES RESIDENTIAL,Peoples Services,Home Care Services,A56019
London Borough of Sutton,06/11/2022,50281231,367.47,Exodus Health Care Services Ltd,SOCIAL SERVICES RESIDENTIAL,Peoples Services,Home Care Services,A56019
London Borough of Sutton,06/11/2022,50281231,336.91,Exodus Health Care Services Ltd,SOCIAL SERVICES RESIDENTIAL,Peoples Services,Home Care Services,A56019
London Borough of Sutton,06/11/2022,50281257,551.25,Exodus Health Care Services Ltd,SOCIAL SERVICES RESIDENTIAL,Peoples Services,Home Care Services,A56019
London Borough of Sutton,13/11/2022,50282841,560,Exodus Health Care Services Ltd,SOCIAL SERVICES RESIDENTIAL,Peoples Services,Home Care Services,A56019
London Borough of Sutton,13/11/2022,50282847,551.25,Exodus Health Care Services Ltd,SOCIAL SERVICES RESIDENTIAL,Peoples Services,Home Care Services,A56019
London Borough of Sutton,13/11/2022,50282857,551.15,Exodus Health Care Services Ltd,SOCIAL SERVICES RESIDENTIAL,Peoples Services,Home Care Services,A56019
London Borough of Sutton,13/11/2022,50282857,91.98,Exodus Health Care Services Ltd,SOCIAL SERVICES RESIDENTIAL,Peoples Services,Home Care Services,A56019
London Borough of Sutton,13/11/2022,50282859,612.5,Exodus Health Care Services Ltd,SOCIAL SERVICES RESIDENTIAL,Peoples Services,Home Care Services,A56019
London Borough of Sutton,13/11/2022,50282859,52.5,Exodus Health Care Services Ltd,SOCIAL SERVICES RESIDENTIAL,Peoples Services,Home Care Services,A56019
London Borough of Sutton,13/11/2022,50282860,551.25,Exodus Health Care Services Ltd,SOCIAL SERVICES RESIDENTIAL,Peoples Services,Home Care Services,A56019
London Borough of Sutton,13/11/2022,50282860,52.5,Exodus Health Care Services Ltd,SOCIAL SERVICES RESIDENTIAL,Peoples Services,Home Care Services,A56019
London Borough of Sutton,13/11/2022,50282862,551.25,Exodus Health Care Services Ltd,SOCIAL SERVICES RESIDENTIAL,Peoples Services,Home Care Services,A56019
London Borough of Sutton,13/11/2022,50282863,551.25,Exodus Health Care Services Ltd,SOCIAL SERVICES RESIDENTIAL,Peoples Services,Home Care Services,A56019
London Borough of Sutton,13/11/2022,50282869,612.5,Exodus Health Care Services Ltd,SOCIAL SERVICES RESIDENTIAL,Peoples Services,Home Care Services,A56019
London Borough of Sutton,13/11/2022,50282870,586.25,Exodus Health Care Services Ltd,SOCIAL SERVICES RESIDENTIAL,Peoples Services,Home Care Services,A56019
London Borough of Sutton,13/11/2022,50282879,424.37,Exodus Health Care Services Ltd,SOCIAL SERVICES RESIDENTIAL,Peoples Services,Home Care Services,A56019
London Borough of Sutton,13/11/2022,50282879,280.01,Exodus Health Care Services Ltd,SOCIAL SERVICES RESIDENTIAL,Peoples Services,Home Care Services,A56019
London Borough of Sutton,13/11/2022,50282905,796.25,Exodus Health Care Services Ltd,SOCIAL SERVICES RESIDENTIAL,Peoples Services,Home Care Services,A56019
London Borough of Sutton,13/11/2022,50282907,568.75,Exodus Health Care Services Ltd,SOCIAL SERVICES RESIDENTIAL,Peoples Services,Home Care Services,A56019
London Borough of Sutton,13/11/2022,50282919,551.25,Exodus Health Care Services Ltd,SOCIAL SERVICES RESIDENTIAL,Peoples Services,Home Care Services,A56019
London Borough of Sutton,22/11/2022,50284139,551.25,Exodus Health Care Services Ltd,SOCIAL SERVICES RESIDENTIAL,Peoples Services,Home Care Services,A56019
London Borough of Sutton,14/11/2022,20036217,"4,850.00",F L Beadle & Sons Ltd,CONSTRUCTION INDUSTRY,Environment Housing and Neighbourhoods,Council Dwellings - Fire Safety,C10004
London Borough of Sutton,08/11/2022,50277781,"2,574.60",Fairlands Pre-School,GRANTS & EX GRATIA PAYMENTS,Peoples Services,Payment - Nursery Funding,A51056
London Borough of Sutton,08/11/2022,50277854,"1,785.53",Fairlands Pre-School,GRANTS & EX GRATIA PAYMENTS,Peoples Services,Payment - Nursery Funding,A51056
London Borough of Sutton,25/11/2022,50286785,-836.76,Family Star Ltd,SOCIAL SERVICES RESIDENTIAL,Peoples Services,Nursing Care - 3rd party top up payment,A56023
London Borough of Sutton,25/11/2022,50286785,"5,415.82",Family Star Ltd,SOCIAL SERVICES RESIDENTIAL,Peoples Services,Nursing Care Short Term,A56026
London Borough of Sutton,25/11/2022,50286785,-351.56,Family Star Ltd,SOCIAL SERVICES RESIDENTIAL,Peoples Services,Nursing Care - 3rd party top up payment,A56023
London Borough of Sutton,25/11/2022,50286816,"3,736.00",Family Star Ltd,SOCIAL SERVICES RESIDENTIAL,Peoples Services,Nursing Care - Ext Provider,A56025
London Borough of Sutton,25/11/2022,50286816,-750.4,Family Star Ltd,SOCIAL SERVICES RESIDENTIAL,Peoples Services,Nursing Care - 3rd party top up payment,A56023
London Borough of Sutton,25/11/2022,50286825,-836.76,Family Star Ltd,SOCIAL SERVICES RESIDENTIAL,Peoples Services,Nursing Care - 3rd party top up payment,A56023
London Borough of Sutton,25/11/2022,50286825,"3,821.24",Family Star Ltd,SOCIAL SERVICES RESIDENTIAL,Peoples Services,Nursing Care Short Term,A56026
London Borough of Sutton,25/11/2022,50286918,"3,646.72",Family Star Ltd,SOCIAL SERVICES RESIDENTIAL,Peoples Services,Nursing Care - Ext Provider,A56025
London Borough of Sutton,25/11/2022,50286918,-662.24,Family Star Ltd,SOCIAL SERVICES RESIDENTIAL,Peoples Services,Nursing Care - 3rd party top up payment,A56023
London Borough of Sutton,25/11/2022,50286984,-836.76,Family Star Ltd,SOCIAL SERVICES RESIDENTIAL,Peoples Services,Nursing Care - 3rd party top up payment,A56023
London Borough of Sutton,25/11/2022,50286984,"3,821.24",Family Star Ltd,SOCIAL SERVICES RESIDENTIAL,Peoples Services,Nursing Care Short Term,A56026
London Borough of Sutton,25/11/2022,50287011,-836.76,Family Star Ltd,SOCIAL SERVICES RESIDENTIAL,Peoples Services,Nursing Care - 3rd party top up payment,A56023
London Borough of Sutton,25/11/2022,50287011,"3,934.60",Family Star Ltd,SOCIAL SERVICES RESIDENTIAL,Peoples Services,Nursing Care - Ext Provider,A56025
London Borough of Sutton,25/11/2022,50287052,"3,848.24",Family Star Ltd,SOCIAL SERVICES RESIDENTIAL,Peoples Services,Nursing Care - Ext Provider,A56025
London Borough of Sutton,25/11/2022,50287052,-750.4,Family Star Ltd,SOCIAL SERVICES RESIDENTIAL,Peoples Services,Nursing Care - 3rd party top up payment,A56023
London Borough of Sutton,25/11/2022,50287144,"3,821.24",Family Star Ltd,SOCIAL SERVICES RESIDENTIAL,Peoples Services,Nursing Care - Ext Provider,A56025
London Borough of Sutton,25/11/2022,50287144,-836.76,Family Star Ltd,SOCIAL SERVICES RESIDENTIAL,Peoples Services,Nursing Care - 3rd party top up payment,A56023
London Borough of Sutton,25/11/2022,50287152,-750.4,Family Star Ltd,SOCIAL SERVICES RESIDENTIAL,Peoples Services,Nursing Care - 3rd party top up payment,A56023
London Borough of Sutton,25/11/2022,50287152,"3,734.88",Family Star Ltd,SOCIAL SERVICES RESIDENTIAL,Peoples Services,Nursing Care Short Term,A56026
London Borough of Sutton,01/11/2022,20035687,"9,940.00",Fern Court London Limited,ACCOMMODATION BED & BREAKFAST,Environment Housing and Neighbourhoods,Bed & Breakfast,A56000
London Borough of Sutton,07/11/2022,50281078,"2,443.18",Field Lane Foundation,CHARITIES & VOLUNTARY ORGNS,Peoples Services,Home Care Services,A56019
London Borough of Sutton,01/09/2022,20033698,"2,038.97",Financial Data Management Limited,REPROGRAPHICS & PHOTOGRAPHY,Resources,Publicity,A44266
London Borough of Sutton,08/11/2022,50277883,805.18,REDACTED - PERSONAL DATA,GRANTS & EX GRATIA PAYMENTS,Peoples Services,Payment - Nursery Funding,A51056
London Borough of Sutton,25/11/2022,50286736,"3,652.88",Fircroft Homes,SOCIAL SERVICES RESIDENTIAL,Peoples Services,Residential Care - Ext Provider,A56114
London Borough of Sutton,25/11/2022,50286736,-643.8,Fircroft Homes,SOCIAL SERVICES RESIDENTIAL,Peoples Services,Residential Care - Client Cont ( Net Paymt ),A56113
London Borough of Sutton,08/11/2022,50277782,"4,827.38",First Little Steps Day Nursery,GRANTS & EX GRATIA PAYMENTS,Peoples Services,Payment - Nursery Funding,A51056
London Borough of Sutton,08/11/2022,50277855,"4,228.88",First Little Steps Day Nursery,GRANTS & EX GRATIA PAYMENTS,Peoples Services,Payment - Nursery Funding,A51056
London Borough of Sutton,25/11/2022,50286765,"5,647.16",REDACTED - PERSONAL DATA,SOCIAL SERVICES RESIDENTIAL,Peoples Services,Residential Care - Ext Provider,A56114
London Borough of Sutton,25/11/2022,50286765,-438.8,REDACTED - PERSONAL DATA,SOCIAL SERVICES RESIDENTIAL,Peoples Services,Residential Care - Client Cont ( Net Paymt ),A56113
London Borough of Sutton,26/10/2022,50280363,"3,702.86",Five Rivers Child Care Ltd,CHILDREN'S SERVICES - FOSTERING & ADOPTION SERVICES,Peoples Services,Foster Parents Support,A44110
London Borough of Sutton,04/11/2022,50278875,"1,602.00",Fleet Tutors,TEMP STAFF & CONSULTANCY,Peoples Services,Independent School Fees,A56002
London Borough of Sutton,04/11/2022,50278876,"2,730.00",Fleet Tutors,TEMP STAFF & CONSULTANCY,Peoples Services,Independent School Fees,A56002
London Borough of Sutton,04/11/2022,50278877,"1,440.00",Fleet Tutors,TEMP STAFF & CONSULTANCY,Peoples Services,Independent School Fees,A56002
London Borough of Sutton,04/11/2022,50278878,"3,300.00",Fleet Tutors,TEMP STAFF & CONSULTANCY,Peoples Services,Independent School Fees,A56002
London Borough of Sutton,04/11/2022,50278879,"2,324.00",Fleet Tutors,TEMP STAFF & CONSULTANCY,Peoples Services,Independent School Fees,A56002
London Borough of Sutton,25/11/2022,50286689,"7,470.72",Florence Avenue Care Home Ltd,SOCIAL SERVICES RESIDENTIAL,Peoples Services,Residential Care - Ext Provider,A56114
London Borough of Sutton,26/01/2022,20035393,"1,436.19",Flowers Consulting Limited,TEMP STAFF & CONSULTANCY,HRA,External Fees and Consultants,C20000
London Borough of Sutton,23/03/2022,20035394,491.97,Flowers Consulting Limited,TEMP STAFF & CONSULTANCY,HRA,External Fees and Consultants,C20000
London Borough of Sutton,08/11/2022,50277888,"9,585.45",Mill House Day Nursery,GRANTS & EX GRATIA PAYMENTS,Peoples Services,Payment - Nursery Funding,A51056
